Workbook

Sheet АР АПТЛ
A1: РЕЙТИНГ | D1: ОЦЕНОЧНЫЙ ЛИСТ РЕЙТИНГА РЕЗУЛЬТАТИВНОСТИ ОБРАЗОВАТЕЛЬНЫХ ПРОГРАММ ЦЕНТРОВ ГРАЖДАНСКОГО ОБРАЗОВАНИЯ 2012-2013
A2: первый | C2: =SUM(I13:I22) -> 11
A3: второй | C3: =SUM(I23:I38) -> 16.3
A4: третий | C4: =SUM(I39:I41,I43:I46,I48:I51,I53:I62,I64:I67) -> 16.1 | D4: Сокращенное наименование образовательного учреждения ОГБОУ СПО "АТПромИс"
A5: общее | C5: =SUM(C2:C4) -> 43.4 | D5: Центр гражданского образования "Содружество"
A6: 1.04 | C6: =C5*A6 -> 45.136 | D6: Образовательная Программа "Социальное проектирование""
A7: Общее количество слушателей образовательной Программы | H7: 15 | I7: человек
A8: Количество педагогических работников | H8: 3 | I8: человек
A9: Количество консультантов из числа опытных старшеклассников, выпускников Центра | H9: 0 | I9: человек
A10: Количество привлеченных специалистов | H10: 0 | I10: человек
A11: Продолжительность образовательной Программы | H11: 32 | I11: часов
A12: № | B12: Направ-ление | C12: Критерии | E12: Значение критерия | F12: Единица измерения | G12: Значение в единицах измерения | H12: Система оценки | I12: Рейтинговое значение
A13: 1 | B13: Образовательная программа | C13: адаптированность | D13: продолжительность образовательной Программы | E13: количество часов | G13: =H11 -> 32 | H13: 18-24 + 1б, 25-48 + 2б, более 48 + 3б | I13: =IF($G$13>17,1,0)+IF($G$13>24,1,0)+IF($G$13>48,1,0) -> 2
A14: 2 | D14: наличие модулей в образовательной Программе для разновозрастных групп | E14: для обучающихся = 1, для обучающихся и взрослых = 2 | G14: 1 | H14: 1 + 1б, 2 + 2б | I14: =IF(G14=1,1,0)+IF(G14=2,2,0) -> 1
A15: 3 | D15: наличие в образовательной Программе активных и интерактивных форм обучения | E15: менее 50% занятий = 1, более 50% занятий = 2 | G15: 2 | H15: 1 + 1б, 2 + 2б | I15: =IF(G15=1,1,0)+IF(G15=2,2,0) -> 2
A16: 4 | D16: преемственность образовательных Программ из года в год | E16: если существует = 1 | G16: 1 | H16: да + 1б | I16: =IF(G16=1,1,0) -> 1
A17: 5 | C17: доступность | D17: наличие модулей, предложенных слушателям на выбор | E17: если 2 модуля = 1, 3 и более модулей = 2 | G17: 0 | H17: 1 + 1б, 2 + 2б | I17: =IF(G17=1,1,0)+IF(G17=2,2,0) -> 0
A18: 6 | D18: проведение мониторинга уровня сформированности ключевых компетентностей | E18: если да = 1 | G18: 1 | H18: да + 3б | I18: =IF(G18=1,3,0) -> 3
A19: 7 | D19: программа реализуется в сетевом взаимодействии с другими Центрами | E19: если да = 1 | G19: 0 | H19: да + 2б | I19: =IF(G19=1,2,0) -> 0
A20: 8 | D20: доля слушателей, привлеченных из других ОУ | E20: количество | G20: 0 | H20: 100% + 3б | I20: =ROUND((G20/H7*3),1) -> 0
A21: 9 | C21: полнота реализации | D21: Программа реализуется в полном объеме | E21: если да = 1 | G21: 1 | H21: да + 1,5б, нет + 1б | I21: =IF(G21=1,1.5,1) -> 1.5
A22: 10 | D22: Программа изменилась при лучших условиях | E22: если да = 1 | G22: 1 | H22: да + 0,5б | I22: =IF(G22=1,0.5,0) -> 0.5
A23: 11 | B23: Организация образовательного процесса | C23: кадровое обеспечение | D23: укомплектованность преподавательского состава в соответствии с Программой | E23: состав полностью укомплектован = 1 | G23: 1 | H23: да + 2б, нет + 1б | I23: =IF(G23=1,2,1) -> 2
A24: 12 | D24: подготовка преподавателей по теме Программы | E24: количество | G24: 2 | H24: 100% + 2б | I24: =ROUND((G24/(H8+H9+H10)*2),1) -> 1.3
A25: 13 | D25: привлечение специалистов из профессионального сообщества | E25: количество | G25: =H10 -> 0 | H25: 100% + 2б | I25: =ROUND((G25/(H9+H10+H8)*2),1) -> 0
A26: 14 | D26: привлечение консультантов из числа обучающихся, выпускников | E26: количество | G26: =H9 -> 0 | H26: 100% + 2б | I26: =ROUND((G26/(H10+H9+H8)*2),1) -> 0
A27: 15 | C27: материально-техническое обеспечение | D27: наличие достаточной материальной базы для проведения знаний | E27: если да = 1 | G27: 1 | H27: да + 2б, нет + 1б | I27: =IF(G27=1,2,1) -> 2
A28: 16 | D28: использование материальной базы иных организаций | E28: если да = 1 | G28: 1 | H28: да + 2б | I28: =IF(G28=1,2,0) -> 2
A29: 17 | D29: наличие оборудованных рабочих мест для слушателей и преподавателей | E29: если да = 1, только преподавателей = 2 | G29: 2 | H29: 1 + 1б, 2 + 0,5б | I29: =IF(G29=1,1,0)+IF(G29=2,0.5,0) -> 0.5
A30: 18 | C30: информационно-технологическое обеспечение | D30: наличие страницы Центра на сайте образовательного учреждения | E30: если да = 1 | G30: 1 | H30: да + 1б | I30: =IF(G30=1,1,0) -> 1
A31: 19 | D31: регулярность обновления страницы Центра на сайте | E31: более 1 раза в месяц = 1, реже = 2 | G31: 2 | H31: 1 + 1б, 2 + 0,5б | I31: =IF(G31=1,1,0)+IF(G31=2,0.5,0) -> 0.5
A32: 20 | D32: использование доступа в интернет преподавателями и слушателями | E32: если да = 1, только преподавателями = 2 | G32: 1 | H32: 1 + 1б, 2 + 0,5б | I32: =IF(G32=1,1,0)+IF(G32=2,0.5,0) -> 1
A33: 21 | D33: наличие методических материалов Центра на сайте ОУ | E33: если да = 1 | G33: 1 | H33: да + 1б | I33: =IF(G33=1,1,0) -> 1
A34: 22 | D34: наличие Совета Центра | E34: если да = 1 | G34: 1 | H34: да + 0,5б | I34: =IF(G34=1,0.5,0) -> 0.5
A35: 23 | D35: наличие утвержденного положения о деятельности Центра | E35: если да = 1 | G35: 1 | H35: да + 0,5б | I35: =IF(G35=1,0.5,0) -> 0.5
A36: 24 | D36: наличие оформленных договоров с социальными партнерами | E36: если да = 1 | G36: 1 | H36: да + 1б | I36: =IF(G36=1,1,0) -> 1
A37: 25 | C37: учебно-методическое обеспечение | D37: обеспеченность слушателей учебниками, справочной литературой | E37: полное обеспечение = 1, частичное = 2 | G37: 2 | H37: 1 + 2б, 2 + 1б | I37: =IF(G37=1,2,0)+IF(G37=2,1,0) -> 1
A38: 26 | D38: обеспеченность преподавателей методической литературой, программными средствами обучения | E38: полное обеспечение = 1, частичное = 2 | G38: 1 | H38: 1 + 2б, 2 + 1б | I38: =IF(G38=1,2,0)+IF(G38=2,1,0) -> 2
A39: 27 | B39: Результаты образовательной деятельности | C39: уровень и качество общеобразовательной подготовки слушателей | D39: слушатели, применившие полученную информацию на практике | E39: количество | G39: 16 | H39: 100% + 2б | I39: =ROUND(G39/H7*2,1) -> 2.1
A40: 28 | D40: слушатели, освоившие программу и получившие удостоверение | E40: количество | G40: 16 | H40: 100% + 4б | I40: =ROUND(G40/$H$7*4,1) -> 4.3
A41: 29 | D41: слушатели, получившие сертификат | E41: количество | G41: 0 | H41: 100% + 1б | I41: =ROUND(G41/H7*1,1) -> 0
A42: 30 | C42: сформированность ключевых компетентностей слушателей | D42: слушатели, имеющие документально подтвержденные достижения по теме Программы:
D43: - на школьном уровне | E43: количество | G43: 9 | H43: 100% + 2б | I43: =ROUND(G43/$H$7*2,1) -> 1.2
D44: - на муниципальном уровне | E44: количество | G44: 0 | H44: 100% + 3б | I44: =ROUND(G44/$H$7*3,1) -> 0
D45: - на региональном уровне | E45: количество | G45: 15 | H45: 100% + 4б | I45: =ROUND(G45/$H$7*4,1) -> 4
D46: - на федеральном и международном уровнях | E46: количество | G46: 0 | H46: 100% + 5б | I46: =ROUND(G46/$H$7*5,1) -> 0
A47: 31 | C47: уровень обобщения и представления опыта деятельности Центра по теме Программы | D47: публичное представление промежуточных результатов реализации образовательной Программы:
D48: - на школьном уровне | E48: количество | G48: 0 | H48: за 1 + 0,1б | I48: =G48*0.1 -> 0
D49: - на муниципальном уровне | E49: количество | G49: 0 | H49: за 1 + 0,2б | I49: =G49*0.2 -> 0
D50: - на региональном уровне | E50: количество | G50: 0 | H50: за 1 + 0,3б | I50: =G50*0.3 -> 0
D51: - на федеральном и международном уровнях | E51: количество | H51: за 1 + 0,5б | I51: =G51*0.4 -> 0
A52: 32 | D52: организация мероприятий, семинаров различного уровня по теме образовательной Программы:
D53: - на муниципальном уровне | E53: количество | G53: 0 | H53: за 1 + 0,3б | I53: =G53*0.3 -> 0
D54: - на региональном уровне | E54: количество | G54: 1 | H54: за 1 + 0,5б | I54: =G54*0.5 -> 0.5
D55: - на федеральном и международном уровнях | E55: количество | H55: за 1 + 0,7б | I55: =G55*0.7 -> 0
A56: 33 | D56: внешкольная экспертная деятельность преподавателей Центра по теме Программы | E56: количество часов | H56: за 100ч + 2б | I56: =G56*0.02 -> 0
A57: 34 | D57: наличие публикаций в методических изданиях по теме Программы | E57: количество страниц А4, интервал 1,5, шрифт 14 | H57: за 24 стр. + 2б | I57: =ROUND(G57*2/24,1) -> 0
A58: 35 | D58: количество публикаций в СМИ муниципального и регионального уровня по теме Программы | E58: количество статей | G58: 0 | H58: за 1 ст. + 0,1б | I58: =G58*0.1 -> 0
A59: 36 | C59: уровень организации и степень достижения целей и задач инновационной деятельности | D59: наличие рецензии на образовательную Программу | E59: если да = 1 | G59: 1 | H59: да + 2б | I59: =IF(G59=1,2,0) -> 2
A60: 37 | D60: Программа Центра является частью программы развития ОУ | E60: если да = 1 | G60: 1 | H60: да + 1б | I60: =IF(G60=1,1,0) -> 1
A61: 38 | D61: Программа Центра является частью муниципальной программы развития | E61: если да = 1 | H61: да + 2б | I61: =IF(G61=1,2,0) -> 0
A62: 39 | D62: наличие общественной экспертизы результатов реализации образовательной Программы | E62: если да = 1 | H62: да + 1б | I62: =IF(G62=1,1,0) -> 0
A63: 40 | D63: публичное представление результатов инновационной деятельности на научно-практических конференциях
D64: - на школьном уровне | E64: если да = 1 | G64: 0 | H64: да + 0,3б | I64: =IF(G64=1,0.3,0) -> 0
D65: - на муниципальном уровне | E65: если да = 1 | G65: 0 | H65: да + 0,5б | I65: =IF(G65=1,0.5,0) -> 0
D66: - на региональном уровне | E66: если да = 1 | G66: 1 | H66: да + 1б | I66: =IF(G66=1,1,0) -> 1
D67: - на федеральном и международном уровнях | E67: если да = 1 | H67: да + 2б | I67: =IF(G67=1,2,0) -> 0
A68: Общее рейтинговое значение | I68: =SUM(I13:I41,I43:I46,I48:I51,I53:I62,I64:I67) -> 43.4

Sheet Т Ак.л
A1: РЕЙТИНГ | D1: ОЦЕНОЧНЫЙ ЛИСТ РЕЙТИНГА РЕЗУЛЬТАТИВНОСТИ ОБРАЗОВАТЕЛЬНЫХ ПРОГРАММ ЦЕНТРОВ ГРАЖДАНСКОГО ОБРАЗОВАНИЯ 2012-2013
A2: первый | C2: =SUM(I13:I22) -> 14
A3: второй | C3: =SUM(I23:I38) -> 18.5
A4: третий | C4: =SUM(I39:I41,I43:I46,I48:I51,I53:I62,I64:I67) -> 25.38 | D4: МБОУ Академический лицей
A5: общее | C5: =SUM(C2:C4) -> 57.88 | D5: Центр Гражданского образования "Я - Гражданин"
A6: 1.04 | C6: =C5*A6 -> 60.1952 | D6: Программа "Путь к успеху" (3 модуль, "Учимся управлять вместе")
A7: Общее количество слушателей образовательной Программы | H7: 41 | I7: человек
A8: Количество педагогических работников | H8: 5 | I8: человек
A9: Количество консультантов из числа опытных старшеклассников, выпускников Центра | H9: 5 | I9: человек
A10: Количество привлеченных специалистов | H10: 1 | I10: человек
A11: Продолжительность образовательной Программы | H11: 54 | I11: часов
A12: № | B12: Направ-ление | C12: Критерии | E12: Значение критерия | F12: Единица измерения | G12: Значение в единицах измерения | H12: Система оценки | I12: Рейтинговое значение
A13: 1 | B13: Образовательная программа | C13: адаптированность | D13: продолжительность образовательной Программы | E13: количество часов | G13: =H11 -> 54 | H13: 18-24 + 1б, 25-48 + 2б, более 48 + 3б | I13: =IF($G$13>17,1,0)+IF($G$13>24,1,0)+IF($G$13>48,1,0) -> 3
A14: 2 | D14: наличие модулей в образовательной Программе для разновозрастных групп | E14: для обучающихся = 1, для обучающихся и взрослых = 2 | G14: 1 | H14: 1 + 1б, 2 + 2б | I14: =IF(G14=1,1,0)+IF(G14=2,2,0) -> 1
A15: 3 | D15: наличие в образовательной Программе активных и интерактивных форм обучения | E15: менее 50% занятий = 1, более 50% занятий = 2 | G15: 2 | H15: 1 + 1б, 2 + 2б | I15: =IF(G15=1,1,0)+IF(G15=2,2,0) -> 2
A16: 4 | D16: преемственность образовательных Программ из года в год | E16: если существует = 1 | G16: 1 | H16: да + 1б | I16: =IF(G16=1,1,0) -> 1
A17: 5 | C17: доступность | D17: наличие модулей, предложенных слушателям на выбор | E17: если 2 модуля = 1, 3 и более модулей = 2 | G17: 0 | H17: 1 + 1б, 2 + 2б | I17: =IF(G17=1,1,0)+IF(G17=2,2,0) -> 0
A18: 6 | D18: проведение мониторинга уровня сформированности ключевых компетентностей | E18: если да = 1 | G18: 1 | H18: да + 3б | I18: =IF(G18=1,3,0) -> 3
A19: 7 | D19: программа реализуется в сетевом взаимодействии с другими Центрами | E19: если да = 1 | G19: 1 | H19: да + 2б | I19: =IF(G19=1,2,0) -> 2
A20: 8 | D20: доля слушателей, привлеченных из других ОУ | E20: количество | G20: 0 | H20: 100% + 3б | I20: =ROUND((G20/H7*3),1) -> 0
A21: 9 | C21: полнота реализации | D21: Программа реализуется в полном объеме | E21: если да = 1 | G21: 1 | H21: да + 1,5б, нет + 1б | I21: =IF(G21=1,1.5,1) -> 1.5
A22: 10 | D22: Программа изменилась при лучших условиях | E22: если да = 1 | G22: 1 | H22: да + 0,5б | I22: =IF(G22=1,0.5,0) -> 0.5
A23: 11 | B23: Организация образовательного процесса | C23: кадровое обеспечение | D23: укомплектованность преподавательского состава в соответствии с Программой | E23: состав полностью укомплектован = 1 | G23: 1 | H23: да + 2б, нет + 1б | I23: =IF(G23=1,2,1) -> 2
A24: 12 | D24: подготовка преподавателей по теме Программы | E24: количество | G24: 2 | H24: 100% + 2б | I24: =ROUND((G24/(H8+H9+H10)*2),1) -> 0.4
A25: 13 | D25: привлечение специалистов из профессионального сообщества | E25: количество | G25: =H10 -> 1 | H25: 100% + 2б | I25: =ROUND((G25/(H9+H10+H8)*2),1) -> 0.2
A26: 14 | D26: привлечение консультантов из числа обучающихся, выпускников | E26: количество | G26: =H9 -> 5 | H26: 100% + 2б | I26: =ROUND((G26/(H10+H9+H8)*2),1) -> 0.9
A27: 15 | C27: материально-техническое обеспечение | D27: наличие достаточной материальной базы для проведения знаний | E27: если да = 1 | G27: 1 | H27: да + 2б, нет + 1б | I27: =IF(G27=1,2,1) -> 2
A28: 16 | D28: использование материальной базы иных организаций | E28: если да = 1 | G28: 1 | H28: да + 2б | I28: =IF(G28=1,2,0) -> 2
A29: 17 | D29: наличие оборудованных рабочих мест для слушателей и преподавателей | E29: если да = 1, только преподавателей = 2 | G29: 1 | H29: 1 + 1б, 2 + 0,5б | I29: =IF(G29=1,1,0)+IF(G29=2,0.5,0) -> 1
A30: 18 | C30: информационно-технологическое обеспечение | D30: наличие страницы Центра на сайте образовательного учреждения | E30: если да = 1 | G30: 1 | H30: да + 1б | I30: =IF(G30=1,1,0) -> 1
A31: 19 | D31: регулярность обновления страницы Центра на сайте | E31: более 1 раза в месяц = 1, реже = 2 | G31: 1 | H31: 1 + 1б, 2 + 0,5б | I31: =IF(G31=1,1,0)+IF(G31=2,0.5,0) -> 1
A32: 20 | D32: использование доступа в интернет преподавателями и слушателями | E32: если да = 1, только преподавателями = 2 | G32: 1 | H32: 1 + 1б, 2 + 0,5б | I32: =IF(G32=1,1,0)+IF(G32=2,0.5,0) -> 1
A33: 21 | D33: наличие методических материалов Центра на сайте ОУ | E33: если да = 1 | G33: 1 | H33: да + 1б | I33: =IF(G33=1,1,0) -> 1
A34: 22 | D34: наличие Совета Центра | E34: если да = 1 | G34: 1 | H34: да + 0,5б | I34: =IF(G34=1,0.5,0) -> 0.5
A35: 23 | D35: наличие утвержденного положения о деятельности Центра | E35: если да = 1 | G35: 1 | H35: да + 0,5б | I35: =IF(G35=1,0.5,0) -> 0.5
A36: 24 | D36: наличие оформленных договоров с социальными партнерами | E36: если да = 1 | G36: 1 | H36: да + 1б | I36: =IF(G36=1,1,0) -> 1
A37: 25 | C37: учебно-методическое обеспечение | D37: обеспеченность слушателей учебниками, справочной литературой | E37: полное обеспечение = 1, частичное = 2 | G37: 1 | H37: 1 + 2б, 2 + 1б | I37: =IF(G37=1,2,0)+IF(G37=2,1,0) -> 2
A38: 26 | D38: обеспеченность преподавателей методической литературой, программными средствами обучения | E38: полное обеспечение = 1, частичное = 2 | G38: 1 | H38: 1 + 2б, 2 + 1б | I38: =IF(G38=1,2,0)+IF(G38=2,1,0) -> 2
A39: 27 | B39: Результаты образовательной деятельности | C39: уровень и качество общеобразовательной подготовки слушателей | D39: слушатели, применившие полученную информацию на практике | E39: количество | G39: 41 | H39: 100% + 2б | I39: =ROUND(G39/H7*2,1) -> 2
A40: 28 | D40: слушатели, освоившие программу и получившие удостоверение | E40: количество | G40: 17 | H40: 100% + 4б | I40: =ROUND(G40/$H$7*4,1) -> 1.7
A41: 29 | D41: слушатели, получившие сертификат | E41: количество | G41: 24 | H41: 100% + 1б | I41: =ROUND(G41/H7*1,1) -> 0.6
A42: 30 | C42: сформированность ключевых компетентностей слушателей | D42: слушатели, имеющие документально подтвержденные достижения по теме Программы:
D43: - на школьном уровне | E43: количество | G43: 41 | H43: 100% + 2б | I43: =ROUND(G43/$H$7*2,1) -> 2
D44: - на муниципальном уровне | E44: количество | G44: 6 | H44: 100% + 3б | I44: =ROUND(G44/$H$7*3,1) -> 0.4
D45: - на региональном уровне | E45: количество | G45: 21 | H45: 100% + 4б | I45: =ROUND(G45/$H$7*4,1) -> 2
D46: - на федеральном и международном уровнях | E46: количество | G46: 4 | H46: 100% + 5б | I46: =ROUND(G46/$H$7*5,1) -> 0.5
A47: 31 | C47: уровень обобщения и представления опыта деятельности Центра по теме Программы | D47: публичное представление промежуточных результатов реализации образовательной Программы:
D48: - на школьном уровне | E48: количество | G48: 16 | H48: за 1 + 0,1б | I48: =G48*0.1 -> 1.6
D49: - на муниципальном уровне | E49: количество | G49: 3 | H49: за 1 + 0,2б | I49: =G49*0.2 -> 0.6
D50: - на региональном уровне | E50: количество | G50: 9 | H50: за 1 + 0,3б | I50: =G50*0.3 -> 2.7
D51: - на федеральном и международном уровнях | E51: количество | G51: 3 | H51: за 1 + 0,5б | I51: =G51*0.4 -> 1.2
A52: 32 | D52: организация мероприятий, семинаров различного уровня по теме образовательной Программы:
D53: - на муниципальном уровне | E53: количество | G53: 2 | H53: за 1 + 0,3б | I53: =G53*0.3 -> 0.6
D54: - на региональном уровне | E54: количество | G54: 2 | H54: за 1 + 0,5б | I54: =G54*0.5 -> 1
D55: - на федеральном и международном уровнях | E55: количество | G55: 0 | H55: за 1 + 0,7б | I55: =G55*0.7 -> 0
A56: 33 | D56: внешкольная экспертная деятельность преподавателей Центра по теме Программы | E56: количество часов | G56: 4 | H56: за 100ч + 2б | I56: =G56*0.02 -> 0.08
A57: 34 | D57: наличие публикаций в методических изданиях по теме Программы | E57: количество страниц А4, интервал 1,5, шрифт 14 | G57: 4 | H57: за 24 стр. + 2б | I57: =ROUND(G57*2/24,1) -> 0.3
A58: 35 | D58: количество публикаций в СМИ муниципального и регионального уровня по теме Программы | E58: количество статей | G58: 1 | H58: за 1 ст. + 0,1б | I58: =G58*0.1 -> 0.1
A59: 36 | C59: уровень организации и степень достижения целей и задач инновационной деятельности | D59: наличие рецензии на образовательную Программу | E59: если да = 1 | G59: 1 | H59: да + 2б | I59: =IF(G59=1,2,0) -> 2
A60: 37 | D60: Программа Центра является частью программы развития ОУ | E60: если да = 1 | G60: 1 | H60: да + 1б | I60: =IF(G60=1,1,0) -> 1
A61: 38 | D61: Программа Центра является частью муниципальной программы развития | E61: если да = 1 | G61: 1 | H61: да + 2б | I61: =IF(G61=1,2,0) -> 2
A62: 39 | D62: наличие общественной экспертизы результатов реализации образовательной Программы | E62: если да = 1 | G62: 1 | H62: да + 1б | I62: =IF(G62=1,1,0) -> 1
A63: 40 | D63: публичное представление результатов инновационной деятельности на научно-практических конференциях
D64: - на школьном уровне | E64: если да = 1 | G64: 0 | H64: да + 0,3б | I64: =IF(G64=1,0.3,0) -> 0
D65: - на муниципальном уровне | E65: если да = 1 | G65: 0 | H65: да + 0,5б | I65: =IF(G65=1,0.5,0) -> 0
D66: - на региональном уровне | E66: если да = 1 | G66: 0 | H66: да + 1б | I66: =IF(G66=1,1,0) -> 0
D67: - на федеральном и международном уровнях | E67: если да = 1 | G67: 1 | H67: да + 2б | I67: =IF(G67=1,2,0) -> 2
A68: Общее рейтинговое значение | I68: =SUM(I13:I41,I43:I46,I48:I51,I53:I62,I64:I67) -> 57.88

Sheet Т №6
A1: РЕЙТИНГ | D1: ОЦЕНОЧНЫЙ ЛИСТ РЕЙТИНГА РЕЗУЛЬТАТИВНОСТИ ОБРАЗОВАТЕЛЬНЫХ ПРОГРАММ ЦЕНТРОВ ГРАЖДАНСКОГО ОБРАЗОВАНИЯ 2012-2013
A2: первый | C2: =SUM(I13:I22) -> 14
A3: второй | C3: =SUM(I23:I38) -> 19
A4: третий | C4: =SUM(I39:I41,I43:I46,I48:I51,I53:I62,I64:I67) -> 16.7 | D4: МАОУ ГИМНАЗИЯ № 6
A5: общее | C5: =SUM(C2:C4) -> 49.7 | D5: "Школа лектора"
A6: 1.04 | C6: =C5*A6 -> 51.688 | D6: "ШКОЛА ЛЕКТОРА"
A7: Общее количество слушателей образовательной Программы | H7: 53 | I7: человек
A8: Количество педагогических работников | H8: 4 | I8: человек
A9: Количество консультантов из числа опытных старшеклассников, выпускников Центра | H9: 3 | I9: человек
A10: Количество привлеченных специалистов | H10: 2 | I10: человек
A11: Продолжительность образовательной Программы | H11: 94 | I11: часов
A12: № | B12: Направ-ление | C12: Критерии | E12: Значение критерия | F12: Единица измерения | G12: Значение в единицах измерения | H12: Система оценки | I12: Рейтинговое значение
A13: 1 | B13: Образовательная программа | C13: адаптированность | D13: продолжительность образовательной Программы | E13: количество часов | G13: =H11 -> 94 | H13: 18-24 + 1б, 25-48 + 2б, более 48 + 3б | I13: =IF($G$13>17,1,0)+IF($G$13>24,1,0)+IF($G$13>48,1,0) -> 3
A14: 2 | D14: наличие модулей в образовательной Программе для разновозрастных групп | E14: для обучающихся = 1, для обучающихся и взрослых = 2 | G14: 1 | H14: 1 + 1б, 2 + 2б | I14: =IF(G14=1,1,0)+IF(G14=2,2,0) -> 1
A15: 3 | D15: наличие в образовательной Программе активных и интерактивных форм обучения | E15: менее 50% занятий = 1, более 50% занятий = 2 | G15: 2 | H15: 1 + 1б, 2 + 2б | I15: =IF(G15=1,1,0)+IF(G15=2,2,0) -> 2
A16: 4 | D16: преемственность образовательных Программ из года в год | E16: если существует = 1 | G16: 1 | H16: да + 1б | I16: =IF(G16=1,1,0) -> 1
A17: 5 | C17: доступность | D17: наличие модулей, предложенных слушателям на выбор | E17: если 2 модуля = 1, 3 и более модулей = 2 | G17: 0 | H17: 1 + 1б, 2 + 2б | I17: =IF(G17=1,1,0)+IF(G17=2,2,0) -> 0
A18: 6 | D18: проведение мониторинга уровня сформированности ключевых компетентностей | E18: если да = 1 | G18: 1 | H18: да + 3б | I18: =IF(G18=1,3,0) -> 3
A19: 7 | D19: программа реализуется в сетевом взаимодействии с другими Центрами | E19: если да = 1 | G19: 1 | H19: да + 2б | I19: =IF(G19=1,2,0) -> 2
A20: 8 | D20: доля слушателей, привлеченных из других ОУ | E20: количество | H20: 100% + 3б | I20: =ROUND((G20/H7*3),1) -> 0
A21: 9 | C21: полнота реализации | D21: Программа реализуется в полном объеме | E21: если да = 1 | G21: 1 | H21: да + 1,5б, нет + 1б | I21: =IF(G21=1,1.5,1) -> 1.5
A22: 10 | D22: Программа изменилась при лучших условиях | E22: если да = 1 | G22: 1 | H22: да + 0,5б | I22: =IF(G22=1,0.5,0) -> 0.5
A23: 11 | B23: Организация образовательного процесса | C23: кадровое обеспечение | D23: укомплектованность преподавательского состава в соответствии с Программой | E23: состав полностью укомплектован = 1 | G23: 1 | H23: да + 2б, нет + 1б | I23: =IF(G23=1,2,1) -> 2
A24: 12 | D24: подготовка преподавателей по теме Программы | E24: количество | G24: 4 | H24: 100% + 2б | I24: =ROUND((G24/(H8+H9+H10)*2),1) -> 0.9
A25: 13 | D25: привлечение специалистов из профессионального сообщества | E25: количество | G25: =H10 -> 2 | H25: 100% + 2б | I25: =ROUND((G25/(H9+H10+H8)*2),1) -> 0.4
A26: 14 | D26: привлечение консультантов из числа обучающихся, выпускников | E26: количество | G26: =H9 -> 3 | H26: 100% + 2б | I26: =ROUND((G26/(H10+H9+H8)*2),1) -> 0.7
A27: 15 | C27: материально-техническое обеспечение | D27: наличие достаточной материальной базы для проведения знаний | E27: если да = 1 | G27: 1 | H27: да + 2б, нет + 1б | I27: =IF(G27=1,2,1) -> 2
A28: 16 | D28: использование материальной базы иных организаций | E28: если да = 1 | G28: 1 | H28: да + 2б | I28: =IF(G28=1,2,0) -> 2
A29: 17 | D29: наличие оборудованных рабочих мест для слушателей и преподавателей | E29: если да = 1, только преподавателей = 2 | G29: 1 | H29: 1 + 1б, 2 + 0,5б | I29: =IF(G29=1,1,0)+IF(G29=2,0.5,0) -> 1
A30: 18 | C30: информационно-технологическое обеспечение | D30: наличие страницы Центра на сайте образовательного учреждения | E30: если да = 1 | G30: 1 | H30: да + 1б | I30: =IF(G30=1,1,0) -> 1
A31: 19 | D31: регулярность обновления страницы Центра на сайте | E31: более 1 раза в месяц = 1, реже = 2 | G31: 1 | H31: 1 + 1б, 2 + 0,5б | I31: =IF(G31=1,1,0)+IF(G31=2,0.5,0) -> 1
A32: 20 | D32: использование доступа в интернет преподавателями и слушателями | E32: если да = 1, только преподавателями = 2 | G32: 1 | H32: 1 + 1б, 2 + 0,5б | I32: =IF(G32=1,1,0)+IF(G32=2,0.5,0) -> 1
A33: 21 | D33: наличие методических материалов Центра на сайте ОУ | E33: если да = 1 | G33: 1 | H33: да + 1б | I33: =IF(G33=1,1,0) -> 1
A34: 22 | D34: наличие Совета Центра | E34: если да = 1 | G34: 1 | H34: да + 0,5б | I34: =IF(G34=1,0.5,0) -> 0.5
A35: 23 | D35: наличие утвержденного положения о деятельности Центра | E35: если да = 1 | G35: 1 | H35: да + 0,5б | I35: =IF(G35=1,0.5,0) -> 0.5
A36: 24 | D36: наличие оформленных договоров с социальными партнерами | E36: если да = 1 | G36: 1 | H36: да + 1б | I36: =IF(G36=1,1,0) -> 1
A37: 25 | C37: учебно-методическое обеспечение | D37: обеспеченность слушателей учебниками, справочной литературой | E37: полное обеспечение = 1, частичное = 2 | G37: 1 | H37: 1 + 2б, 2 + 1б | I37: =IF(G37=1,2,0)+IF(G37=2,1,0) -> 2
A38: 26 | D38: обеспеченность преподавателей методической литературой, программными средствами обучения | E38: полное обеспечение = 1, частичное = 2 | G38: 1 | H38: 1 + 2б, 2 + 1б | I38: =IF(G38=1,2,0)+IF(G38=2,1,0) -> 2
A39: 27 | B39: Результаты образовательной деятельности | C39: уровень и качество общеобразовательной подготовки слушателей | D39: слушатели, применившие полученную информацию на практике | E39: количество | G39: 53 | H39: 100% + 2б | I39: =ROUND(G39/H7*2,1) -> 2
A40: 28 | D40: слушатели, освоившие программу и получившие удостоверение | E40: количество | G40: 21 | H40: 100% + 4б | I40: =ROUND(G40/$H$7*4,1) -> 1.6
A41: 29 | D41: слушатели, получившие сертификат | E41: количество | G41: 32 | H41: 100% + 1б | I41: =ROUND(G41/H7*1,1) -> 0.6
A42: 30 | C42: сформированность ключевых компетентностей слушателей | D42: слушатели, имеющие документально подтвержденные достижения по теме Программы:
D43: - на школьном уровне | E43: количество | G43: 37 | H43: 100% + 2б | I43: =ROUND(G43/$H$7*2,1) -> 1.4
D44: - на муниципальном уровне | E44: количество | G44: 24 | H44: 100% + 3б | I44: =ROUND(G44/$H$7*3,1) -> 1.4
D45: - на региональном уровне | E45: количество | G45: 12 | H45: 100% + 4б | I45: =ROUND(G45/$H$7*4,1) -> 0.9
D46: - на федеральном и международном уровнях | E46: количество | G46: 16 | H46: 100% + 5б | I46: =ROUND(G46/$H$7*5,1) -> 1.5
A47: 31 | C47: уровень обобщения и представления опыта деятельности Центра по теме Программы | D47: публичное представление промежуточных результатов реализации образовательной Программы:
D48: - на школьном уровне | E48: количество | G48: 2 | H48: за 1 + 0,1б | I48: =G48*0.1 -> 0.2
D49: - на муниципальном уровне | E49: количество | H49: за 1 + 0,2б | I49: =G49*0.2 -> 0
D50: - на региональном уровне | E50: количество | H50: за 1 + 0,3б | I50: =G50*0.3 -> 0
D51: - на федеральном и международном уровнях | E51: количество | H51: за 1 + 0,5б | I51: =G51*0.4 -> 0
A52: 32 | D52: организация мероприятий, семинаров различного уровня по теме образовательной Программы:
D53: - на муниципальном уровне | E53: количество | G53: 0 | H53: за 1 + 0,3б | I53: =G53*0.3 -> 0
D54: - на региональном уровне | E54: количество | G54: 1 | H54: за 1 + 0,5б | I54: =G54*0.5 -> 0.5
D55: - на федеральном и международном уровнях | E55: количество | G55: 0 | H55: за 1 + 0,7б | I55: =G55*0.7 -> 0
A56: 33 | D56: внешкольная экспертная деятельность преподавателей Центра по теме Программы | E56: количество часов | G56: 0 | H56: за 100ч + 2б | I56: =G56*0.02 -> 0
A57: 34 | D57: наличие публикаций в методических изданиях по теме Программы | E57: количество страниц А4, интервал 1,5, шрифт 14 | G57: 1 | H57: за 24 стр. + 2б | I57: =ROUND(G57*2/24,1) -> 0.1
A58: 35 | D58: количество публикаций в СМИ муниципального и регионального уровня по теме Программы | E58: количество статей | G58: 0 | H58: за 1 ст. + 0,1б | I58: =G58*0.1 -> 0
A59: 36 | C59: уровень организации и степень достижения целей и задач инновационной деятельности | D59: наличие рецензии на образовательную Программу | E59: если да = 1 | G59: 0 | H59: да + 2б | I59: =IF(G59=1,2,0) -> 0
A60: 37 | D60: Программа Центра является частью программы развития ОУ | E60: если да = 1 | G60: 1 | H60: да + 1б | I60: =IF(G60=1,1,0) -> 1
A61: 38 | D61: Программа Центра является частью муниципальной программы развития | E61: если да = 1 | G61: 1 | H61: да + 2б | I61: =IF(G61=1,2,0) -> 2
A62: 39 | D62: наличие общественной экспертизы результатов реализации образовательной Программы | E62: если да = 1 | G62: 1 | H62: да + 1б | I62: =IF(G62=1,1,0) -> 1
A63: 40 | D63: публичное представление результатов инновационной деятельности на научно-практических конференциях
D64: - на школьном уровне | E64: если да = 1 | G64: 0 | H64: да + 0,3б | I64: =IF(G64=1,0.3,0) -> 0
D65: - на муниципальном уровне | E65: если да = 1 | G65: 1 | H65: да + 0,5б | I65: =IF(G65=1,0.5,0) -> 0.5
D66: - на региональном уровне | E66: если да = 1 | G66: 0 | H66: да + 1б | I66: =IF(G66=1,1,0) -> 0
D67: - на федеральном и международном уровнях | E67: если да = 1 | G67: 1 | H67: да + 2б | I67: =IF(G67=1,2,0) -> 2
A68: Общее рейтинговое значение | I68: =SUM(I13:I41,I43:I46,I48:I51,I53:I62,I64:I67) -> 49.7

Sheet Т № 55
A1: РЕЙТИНГ | D1: ОЦЕНОЧНЫЙ ЛИСТ РЕЙТИНГА РЕЗУЛЬТАТИВНОСТИ ОБРАЗОВАТЕЛЬНЫХ ПРОГРАММ ЦЕНТРОВ ГРАЖДАНСКОГО ОБРАЗОВАНИЯ 2012-2013
A2: первый | C2: =SUM(I13:I22) -> 11
A3: второй | C3: =SUM(I23:I38) -> 18
A4: третий | C4: =SUM(I39:I41,I43:I46,I48:I51,I53:I62,I64:I67) -> 15.1 | D4: МАОУ гимназия №55 г.Томска
A5: общее | C5: =SUM(C2:C4) -> 44.1 | D5: Центр гражданского образования "Росток"
A6: 1.04 | C6: =C5*A6 -> 45.864 | D6: Образовательная программа "К вершинам личного роста"
A7: Общее количество слушателей образовательной Программы | H7: 24 | I7: человек
A8: Количество педагогических работников | H8: 3 | I8: человек
A9: Количество консультантов из числа опытных старшеклассников, выпускников Центра | H9: 6 | I9: человек
A10: Количество привлеченных специалистов | H10: 0 | I10: человек
A11: Продолжительность образовательной Программы | H11: 32 | I11: часов
A12: № | B12: Направ-ление | C12: Критерии | E12: Значение критерия | F12: Единица измерения | G12: Значение в единицах измерения | H12: Система оценки | I12: Рейтинговое значение
A13: 1 | B13: Образовательная программа | C13: адаптированность | D13: продолжительность образовательной Программы | E13: количество часов | G13: =H11 -> 32 | H13: 18-24 + 1б, 25-48 + 2б, более 48 + 3б | I13: =IF($G$13>17,1,0)+IF($G$13>24,1,0)+IF($G$13>48,1,0) -> 2
A14: 2 | D14: наличие модулей в образовательной Программе для разновозрастных групп | E14: для обучающихся = 1, для обучающихся и взрослых = 2 | G14: нет | H14: 1 + 1б, 2 + 2б | I14: =IF(G14=1,1,0)+IF(G14=2,2,0) -> 0
A15: 3 | D15: наличие в образовательной Программе активных и интерактивных форм обучения | E15: менее 50% занятий = 1, более 50% занятий = 2 | G15: 1 | H15: 1 + 1б, 2 + 2б | I15: =IF(G15=1,1,0)+IF(G15=2,2,0) -> 1
A16: 4 | D16: преемственность образовательных Программ из года в год | E16: если существует = 1 | G16: 1 | H16: да + 1б | I16: =IF(G16=1,1,0) -> 1
A17: 5 | C17: доступность | D17: наличие модулей, предложенных слушателям на выбор | E17: если 2 модуля = 1, 3 и более модулей = 2 | G17: нет | H17: 1 + 1б, 2 + 2б | I17: =IF(G17=1,1,0)+IF(G17=2,2,0) -> 0
A18: 6 | D18: проведение мониторинга уровня сформированности ключевых компетентностей | E18: если да = 1 | G18: 1 | H18: да + 3б | I18: =IF(G18=1,3,0) -> 3
A19: 7 | D19: программа реализуется в сетевом взаимодействии с другими Центрами | E19: если да = 1 | G19: 1 | H19: да + 2б | I19: =IF(G19=1,2,0) -> 2
A20: 8 | D20: доля слушателей, привлеченных из других ОУ | E20: количество | G20: 0 | H20: 100% + 3б | I20: =ROUND((G20/H7*3),1) -> 0
A21: 9 | C21: полнота реализации | D21: Программа реализуется в полном объеме | E21: если да = 1 | G21: 1 | H21: да + 1,5б, нет + 1б | I21: =IF(G21=1,1.5,1) -> 1.5
A22: 10 | D22: Программа изменилась при лучших условиях | E22: если да = 1 | G22: 1 | H22: да + 0,5б | I22: =IF(G22=1,0.5,0) -> 0.5
A23: 11 | B23: Организация образовательного процесса | C23: кадровое обеспечение | D23: укомплектованность преподавательского состава в соответствии с Программой | E23: состав полностью укомплектован = 1 | G23: 1 | H23: да + 2б, нет + 1б | I23: =IF(G23=1,2,1) -> 2
A24: 12 | D24: подготовка преподавателей по теме Программы | E24: количество | G24: 1 | H24: 100% + 2б | I24: =ROUND((G24/(H8+H9+H10)*2),1) -> 0.2
A25: 13 | D25: привлечение специалистов из профессионального сообщества | E25: количество | G25: =H10 -> 0 | H25: 100% + 2б | I25: =ROUND((G25/(H9+H10+H8)*2),1) -> 0
A26: 14 | D26: привлечение консультантов из числа обучающихся, выпускников | E26: количество | G26: =H9 -> 6 | H26: 100% + 2б | I26: =ROUND((G26/(H10+H9+H8)*2),1) -> 1.3
A27: 15 | C27: материально-техническое обеспечение | D27: наличие достаточной материальной базы для проведения знаний | E27: если да = 1 | G27: 1 | H27: да + 2б, нет + 1б | I27: =IF(G27=1,2,1) -> 2
A28: 16 | D28: использование материальной базы иных организаций | E28: если да = 1 | G28: 1 | H28: да + 2б | I28: =IF(G28=1,2,0) -> 2
A29: 17 | D29: наличие оборудованных рабочих мест для слушателей и преподавателей | E29: если да = 1, только преподавателей = 2 | G29: 1 | H29: 1 + 1б, 2 + 0,5б | I29: =IF(G29=1,1,0)+IF(G29=2,0.5,0) -> 1
A30: 18 | C30: информационно-технологическое обеспечение | D30: наличие страницы Центра на сайте образовательного учреждения | E30: если да = 1 | G30: 1 | H30: да + 1б | I30: =IF(G30=1,1,0) -> 1
A31: 19 | D31: регулярность обновления страницы Центра на сайте | E31: более 1 раза в месяц = 1, реже = 2 | G31: 2 | H31: 1 + 1б, 2 + 0,5б | I31: =IF(G31=1,1,0)+IF(G31=2,0.5,0) -> 0.5
A32: 20 | D32: использование доступа в интернет преподавателями и слушателями | E32: если да = 1, только преподавателями = 2 | G32: 1 | H32: 1 + 1б, 2 + 0,5б | I32: =IF(G32=1,1,0)+IF(G32=2,0.5,0) -> 1
A33: 21 | D33: наличие методических материалов Центра на сайте ОУ | E33: если да = 1 | G33: 1 | H33: да + 1б | I33: =IF(G33=1,1,0) -> 1
A34: 22 | D34: наличие Совета Центра | E34: если да = 1 | G34: 1 | H34: да + 0,5б | I34: =IF(G34=1,0.5,0) -> 0.5
A35: 23 | D35: наличие утвержденного положения о деятельности Центра | E35: если да = 1 | G35: 1 | H35: да + 0,5б | I35: =IF(G35=1,0.5,0) -> 0.5
A36: 24 | D36: наличие оформленных договоров с социальными партнерами | E36: если да = 1 | G36: 1 | H36: да + 1б | I36: =IF(G36=1,1,0) -> 1
A37: 25 | C37: учебно-методическое обеспечение | D37: обеспеченность слушателей учебниками, справочной литературой | E37: полное обеспечение = 1, частичное = 2 | G37: 1 | H37: 1 + 2б, 2 + 1б | I37: =IF(G37=1,2,0)+IF(G37=2,1,0) -> 2
A38: 26 | D38: обеспеченность преподавателей методической литературой, программными средствами обучения | E38: полное обеспечение = 1, частичное = 2 | G38: 1 | H38: 1 + 2б, 2 + 1б | I38: =IF(G38=1,2,0)+IF(G38=2,1,0) -> 2
A39: 27 | B39: Результаты образовательной деятельности | C39: уровень и качество общеобразовательной подготовки слушателей | D39: слушатели, применившие полученную информацию на практике | E39: количество | G39: 24 | H39: 100% + 2б | I39: =ROUND(G39/H7*2,1) -> 2
A40: 28 | D40: слушатели, освоившие программу и получившие удостоверение | E40: количество | G40: 9 | H40: 100% + 4б | I40: =ROUND(G40/$H$7*4,1) -> 1.5
A41: 29 | D41: слушатели, получившие сертификат | E41: количество | G41: 15 | H41: 100% + 1б | I41: =ROUND(G41/H7*1,1) -> 0.6
A42: 30 | C42: сформированность ключевых компетентностей слушателей | D42: слушатели, имеющие документально подтвержденные достижения по теме Программы:
D43: - на школьном уровне | E43: количество | G43: 24 | H43: 100% + 2б | I43: =ROUND(G43/$H$7*2,1) -> 2
D44: - на муниципальном уровне | E44: количество | G44: 5 | H44: 100% + 3б | I44: =ROUND(G44/$H$7*3,1) -> 0.6
D45: - на региональном уровне | E45: количество | G45: 0 | H45: 100% + 4б | I45: =ROUND(G45/$H$7*4,1) -> 0
D46: - на федеральном и международном уровнях | E46: количество | G46: 0 | H46: 100% + 5б | I46: =ROUND(G46/$H$7*5,1) -> 0
A47: 31 | C47: уровень обобщения и представления опыта деятельности Центра по теме Программы | D47: публичное представление промежуточных результатов реализации образовательной Программы:
D48: - на школьном уровне | E48: количество | G48: 1 | H48: за 1 + 0,1б | I48: =G48*0.1 -> 0.1
D49: - на муниципальном уровне | E49: количество | G49: 1 | H49: за 1 + 0,2б | I49: =G49*0.2 -> 0.2
D50: - на региональном уровне | E50: количество | G50: 1 | H50: за 1 + 0,3б | I50: =G50*0.3 -> 0.3
D51: - на федеральном и международном уровнях | E51: количество | G51: 0 | H51: за 1 + 0,5б | I51: =G51*0.4 -> 0
A52: 32 | D52: организация мероприятий, семинаров различного уровня по теме образовательной Программы:
D53: - на муниципальном уровне | E53: количество | G53: 2 | H53: за 1 + 0,3б | I53: =G53*0.3 -> 0.6
D54: - на региональном уровне | E54: количество | G54: 2 | H54: за 1 + 0,5б | I54: =G54*0.5 -> 1
D55: - на федеральном и международном уровнях | E55: количество | G55: 0 | H55: за 1 + 0,7б | I55: =G55*0.7 -> 0
A56: 33 | D56: внешкольная экспертная деятельность преподавателей Центра по теме Программы | E56: количество часов | G56: 0 | H56: за 100ч + 2б | I56: =G56*0.02 -> 0
A57: 34 | D57: наличие публикаций в методических изданиях по теме Программы | E57: количество страниц А4, интервал 1,5, шрифт 14 | G57: 1 | H57: за 24 стр. + 2б | I57: =ROUND(G57*2/24,1) -> 0.1
A58: 35 | D58: количество публикаций в СМИ муниципального и регионального уровня по теме Программы | E58: количество статей | G58: 1 | H58: за 1 ст. + 0,1б | I58: =G58*0.1 -> 0.1
A59: 36 | C59: уровень организации и степень достижения целей и задач инновационной деятельности | D59: наличие рецензии на образовательную Программу | E59: если да = 1 | G59: 1 | H59: да + 2б | I59: =IF(G59=1,2,0) -> 2
A60: 37 | D60: Программа Центра является частью программы развития ОУ | E60: если да = 1 | G60: 1 | H60: да + 1б | I60: =IF(G60=1,1,0) -> 1
A61: 38 | D61: Программа Центра является частью муниципальной программы развития | E61: если да = 1 | G61: 1 | H61: да + 2б | I61: =IF(G61=1,2,0) -> 2
A62: 39 | D62: наличие общественной экспертизы результатов реализации образовательной Программы | E62: если да = 1 | G62: 1 | H62: да + 1б | I62: =IF(G62=1,1,0) -> 1
A63: 40 | D63: публичное представление результатов инновационной деятельности на научно-практических конференциях
D64: - на школьном уровне | E64: если да = 1 | G64: 0 | H64: да + 0,3б | I64: =IF(G64=1,0.3,0) -> 0
D65: - на муниципальном уровне | E65: если да = 1 | G65: 0 | H65: да + 0,5б | I65: =IF(G65=1,0.5,0) -> 0
D66: - на региональном уровне | E66: если да = 1 | G66: 0 | H66: да + 1б | I66: =IF(G66=1,1,0) -> 0
D67: - на федеральном и международном уровнях | E67: если да = 1 | G67: 0 | H67: да + 2б | I67: =IF(G67=1,2,0) -> 0
A68: Общее рейтинговое значение | I68: =SUM(I13:I41,I43:I46,I48:I51,I53:I62,I64:I67) -> 44.1

Sheet Т №14
A1: РЕЙТИНГ | D1: ОЦЕНОЧНЫЙ ЛИСТ РЕЙТИНГА РЕЗУЛЬТАТИВНОСТИ ОБРАЗОВАТЕЛЬНЫХ ПРОГРАММ ЦЕНТРОВ ГРАЖДАНСКОГО ОБРАЗОВАНИЯ 2012-2013
A2: первый | C2: =SUM(I13:I22) -> 9.5
A3: второй | C3: =SUM(I23:I38) -> 13.9
A4: третий | C4: =SUM(I39:I41,I43:I46,I48:I51,I53:I62,I64:I67) -> 9.8 | D4: МАОУ СОШ №14 им. А. Ф. Лебедева
A5: общее | C5: =SUM(C2:C4) -> 33.2 | D5: Центр гражданского образования "Шаги в будущее"
A6: 1.04 | C6: =C5*A6 -> 34.528 | D6: Образовательная Программа "Шаги в будущее"
A7: Общее количество слушателей образовательной Программы | H7: 50 | I7: человек
A8: Количество педагогических работников | H8: 8 | I8: человек
A9: Количество консультантов из числа опытных старшеклассников, выпускников Центра | H9: 0 | I9: человек
A10: Количество привлеченных специалистов | H10: 4 | I10: человек
A11: Продолжительность образовательной Программы | H11: 105 | I11: часов
A12: № | B12: Направ-ление | C12: Критерии | E12: Значение критерия | F12: Единица измерения | G12: Значение в единицах измерения | H12: Система оценки | I12: Рейтинговое значение
A13: 1 | B13: Образовательная программа | C13: адаптированность | D13: продолжительность образовательной Программы | E13: количество часов | G13: =H11 -> 105 | H13: 18-24 + 1б, 25-48 + 2б, более 48 + 3б | I13: =IF($G$13>17,1,0)+IF($G$13>24,1,0)+IF($G$13>48,1,0) -> 3
A14: 2 | D14: наличие модулей в образовательной Программе для разновозрастных групп | E14: для обучающихся = 1, для обучающихся и взрослых = 2 | H14: 1 + 1б, 2 + 2б | I14: =IF(G14=1,1,0)+IF(G14=2,2,0) -> 0
A15: 3 | D15: наличие в образовательной Программе активных и интерактивных форм обучения | E15: менее 50% занятий = 1, более 50% занятий = 2 | G15: 2 | H15: 1 + 1б, 2 + 2б | I15: =IF(G15=1,1,0)+IF(G15=2,2,0) -> 2
A16: 4 | D16: преемственность образовательных Программ из года в год | E16: если существует = 1 | G16: 0 | H16: да + 1б | I16: =IF(G16=1,1,0) -> 0
A17: 5 | C17: доступность | D17: наличие модулей, предложенных слушателям на выбор | E17: если 2 модуля = 1, 3 и более модулей = 2 | H17: 1 + 1б, 2 + 2б | I17: =IF(G17=1,1,0)+IF(G17=2,2,0) -> 0
A18: 6 | D18: проведение мониторинга уровня сформированности ключевых компетентностей | E18: если да = 1 | G18: 1 | H18: да + 3б | I18: =IF(G18=1,3,0) -> 3
A19: 7 | D19: программа реализуется в сетевом взаимодействии с другими Центрами | E19: если да = 1 | H19: да + 2б | I19: =IF(G19=1,2,0) -> 0
A20: 8 | D20: доля слушателей, привлеченных из других ОУ | E20: количество | G20: 0 | H20: 100% + 3б | I20: =ROUND((G20/H7*3),1) -> 0
A21: 9 | C21: полнота реализации | D21: Программа реализуется в полном объеме | E21: если да = 1 | G21: 1 | H21: да + 1,5б, нет + 1б | I21: =IF(G21=1,1.5,1) -> 1.5
A22: 10 | D22: Программа изменилась при лучших условиях | E22: если да = 1 | H22: да + 0,5б | I22: =IF(G22=1,0.5,0) -> 0
A23: 11 | B23: Организация образовательного процесса | C23: кадровое обеспечение | D23: укомплектованность преподавательского состава в соответствии с Программой | E23: состав полностью укомплектован = 1 | G23: 1 | H23: да + 2б, нет + 1б | I23: =IF(G23=1,2,1) -> 2
A24: 12 | D24: подготовка преподавателей по теме Программы | E24: количество | G24: 1 | H24: 100% + 2б | I24: =ROUND((G24/(H8+H9+H10)*2),1) -> 0.2
A25: 13 | D25: привлечение специалистов из профессионального сообщества | E25: количество | G25: =H10 -> 4 | H25: 100% + 2б | I25: =ROUND((G25/(H9+H10+H8)*2),1) -> 0.7
A26: 14 | D26: привлечение консультантов из числа обучающихся, выпускников | E26: количество | G26: =H9 -> 0 | H26: 100% + 2б | I26: =ROUND((G26/(H10+H9+H8)*2),1) -> 0
A27: 15 | C27: материально-техническое обеспечение | D27: наличие достаточной материальной базы для проведения знаний | E27: если да = 1 | G27: 1 | H27: да + 2б, нет + 1б | I27: =IF(G27=1,2,1) -> 2
A28: 16 | D28: использование материальной базы иных организаций | E28: если да = 1 | G28: 1 | H28: да + 2б | I28: =IF(G28=1,2,0) -> 2
A29: 17 | D29: наличие оборудованных рабочих мест для слушателей и преподавателей | E29: если да = 1, только преподавателей = 2 | G29: 1 | H29: 1 + 1б, 2 + 0,5б | I29: =IF(G29=1,1,0)+IF(G29=2,0.5,0) -> 1
A30: 18 | C30: информационно-технологическое обеспечение | D30: наличие страницы Центра на сайте образовательного учреждения | E30: если да = 1 | G30: 1 | H30: да + 1б | I30: =IF(G30=1,1,0) -> 1
A31: 19 | D31: регулярность обновления страницы Центра на сайте | E31: более 1 раза в месяц = 1, реже = 2 | G31: 2 | H31: 1 + 1б, 2 + 0,5б | I31: =IF(G31=1,1,0)+IF(G31=2,0.5,0) -> 0.5
A32: 20 | D32: использование доступа в интернет преподавателями и слушателями | E32: если да = 1, только преподавателями = 2 | G32: 2 | H32: 1 + 1б, 2 + 0,5б | I32: =IF(G32=1,1,0)+IF(G32=2,0.5,0) -> 0.5
A33: 21 | D33: наличие методических материалов Центра на сайте ОУ | E33: если да = 1 | H33: да + 1б | I33: =IF(G33=1,1,0) -> 0
A34: 22 | D34: наличие Совета Центра | E34: если да = 1 | G34: 1 | H34: да + 0,5б | I34: =IF(G34=1,0.5,0) -> 0.5
A35: 23 | D35: наличие утвержденного положения о деятельности Центра | E35: если да = 1 | G35: 1 | H35: да + 0,5б | I35: =IF(G35=1,0.5,0) -> 0.5
A36: 24 | D36: наличие оформленных договоров с социальными партнерами | E36: если да = 1 | G36: 1 | H36: да + 1б | I36: =IF(G36=1,1,0) -> 1
A37: 25 | C37: учебно-методическое обеспечение | D37: обеспеченность слушателей учебниками, справочной литературой | E37: полное обеспечение = 1, частичное = 2 | G37: 2 | H37: 1 + 2б, 2 + 1б | I37: =IF(G37=1,2,0)+IF(G37=2,1,0) -> 1
A38: 26 | D38: обеспеченность преподавателей методической литературой, программными средствами обучения | E38: полное обеспечение = 1, частичное = 2 | G38: 2 | H38: 1 + 2б, 2 + 1б | I38: =IF(G38=1,2,0)+IF(G38=2,1,0) -> 1
A39: 27 | B39: Результаты образовательной деятельности | C39: уровень и качество общеобразовательной подготовки слушателей | D39: слушатели, применившие полученную информацию на практике | E39: количество | G39: 50 | H39: 100% + 2б | I39: =ROUND(G39/H7*2,1) -> 2
A40: 28 | D40: слушатели, освоившие программу и получившие удостоверение | E40: количество | G40: 48 | H40: 100% + 4б | I40: =ROUND(G40/$H$7*4,1) -> 3.8
A41: 29 | D41: слушатели, получившие сертификат | E41: количество | G41: 2 | H41: 100% + 1б | I41: =ROUND(G41/H7*1,1) -> 0
A42: 30 | C42: сформированность ключевых компетентностей слушателей | D42: слушатели, имеющие документально подтвержденные достижения по теме Программы:
D43: - на школьном уровне | E43: количество | G43: 50 | H43: 100% + 2б | I43: =ROUND(G43/$H$7*2,1) -> 2
D44: - на муниципальном уровне | E44: количество | G44: 1 | H44: 100% + 3б | I44: =ROUND(G44/$H$7*3,1) -> 0.1
D45: - на региональном уровне | E45: количество | G45: 12 | H45: 100% + 4б | I45: =ROUND(G45/$H$7*4,1) -> 1
D46: - на федеральном и международном уровнях | E46: количество | H46: 100% + 5б | I46: =ROUND(G46/$H$7*5,1) -> 0
A47: 31 | C47: уровень обобщения и представления опыта деятельности Центра по теме Программы | D47: публичное представление промежуточных результатов реализации образовательной Программы:
D48: - на школьном уровне | E48: количество | G48: 2 | H48: за 1 + 0,1б | I48: =G48*0.1 -> 0.2
D49: - на муниципальном уровне | E49: количество | G49: 1 | H49: за 1 + 0,2б | I49: =G49*0.2 -> 0.2
D50: - на региональном уровне | E50: количество | H50: за 1 + 0,3б | I50: =G50*0.3 -> 0
D51: - на федеральном и международном уровнях | E51: количество | H51: за 1 + 0,5б | I51: =G51*0.4 -> 0
A52: 32 | D52: организация мероприятий, семинаров различного уровня по теме образовательной Программы:
D53: - на муниципальном уровне | E53: количество | G53: 0 | H53: за 1 + 0,3б | I53: =G53*0.3 -> 0
D54: - на региональном уровне | E54: количество | G54: 1 | H54: за 1 + 0,5б | I54: =G54*0.5 -> 0.5
D55: - на федеральном и международном уровнях | E55: количество | H55: за 1 + 0,7б | I55: =G55*0.7 -> 0
A56: 33 | D56: внешкольная экспертная деятельность преподавателей Центра по теме Программы | E56: количество часов | H56: за 100ч + 2б | I56: =G56*0.02 -> 0
A57: 34 | D57: наличие публикаций в методических изданиях по теме Программы | E57: количество страниц А4, интервал 1,5, шрифт 14 | H57: за 24 стр. + 2б | I57: =ROUND(G57*2/24,1) -> 0
A58: 35 | D58: количество публикаций в СМИ муниципального и регионального уровня по теме Программы | E58: количество статей | G58: 0 | H58: за 1 ст. + 0,1б | I58: =G58*0.1 -> 0
A59: 36 | C59: уровень организации и степень достижения целей и задач инновационной деятельности | D59: наличие рецензии на образовательную Программу | E59: если да = 1 | H59: да + 2б | I59: =IF(G59=1,2,0) -> 0
A60: 37 | D60: Программа Центра является частью программы развития ОУ | E60: если да = 1 | H60: да + 1б | I60: =IF(G60=1,1,0) -> 0
A61: 38 | D61: Программа Центра является частью муниципальной программы развития | E61: если да = 1 | H61: да + 2б | I61: =IF(G61=1,2,0) -> 0
A62: 39 | D62: наличие общественной экспертизы результатов реализации образовательной Программы | E62: если да = 1 | G62: 0 | H62: да + 1б | I62: =IF(G62=1,1,0) -> 0
A63: 40 | D63: публичное представление результатов инновационной деятельности на научно-практических конференциях
D64: - на школьном уровне | E64: если да = 1 | H64: да + 0,3б | I64: =IF(G64=1,0.3,0) -> 0
D65: - на муниципальном уровне | E65: если да = 1 | H65: да + 0,5б | I65: =IF(G65=1,0.5,0) -> 0
D66: - на региональном уровне | E66: если да = 1 | H66: да + 1б | I66: =IF(G66=1,1,0) -> 0
D67: - на федеральном и международном уровнях | E67: если да = 1 | H67: да + 2б | I67: =IF(G67=1,2,0) -> 0
A68: Общее рейтинговое значение | I68: =SUM(I13:I41,I43:I46,I48:I51,I53:I62,I64:I67) -> 33.2

Sheet Т №16
A1: РЕЙТИНГ | D1: ОЦЕНОЧНЫЙ ЛИСТ РЕЙТИНГА РЕЗУЛЬТАТИВНОСТИ ОБРАЗОВАТЕЛЬНЫХ ПРОГРАММ ЦЕНТРОВ ГРАЖДАНСКОГО ОБРАЗОВАНИЯ 2012-2013
A2: первый | C2: =SUM(I13:I22) -> 16.6
A3: второй | C3: =SUM(I23:I38) -> 18.1
A4: третий | C4: =SUM(I39:I41,I43:I46,I48:I51,I53:I62,I64:I67) -> 18 | D4: МАОУ Заозёрная СОШ №16
A5: общее | C5: =SUM(C2:C4) -> 52.7 | D5: Центр гражданского образования " РОСТ"
A6: 1.04 | C6: =C5*A6 -> 54.808 | D6: Образовательная прграмма " Основы социального лидерства"
A7: Общее количество слушателей образовательной Программы | H7: 50 | I7: человек
A8: Количество педагогических работников | H8: 5 | I8: человек
A9: Количество консультантов из числа опытных старшеклассников, выпускников Центра | H9: 3 | I9: человек
A10: Количество привлеченных специалистов | H10: 0 | I10: человек
A11: Продолжительность образовательной Программы | H11: 78 | I11: часов
A12: № | B12: Направ-ление | C12: Критерии | E12: Значение критерия | F12: Единица измерения | G12: Значение в единицах измерения | H12: Система оценки | I12: Рейтинговое значение
A13: 1 | B13: Образовательная программа | C13: адаптированность | D13: продолжительность образовательной Программы | E13: количество часов | G13: =H11 -> 78 | H13: 18-24 + 1б, 25-48 + 2б, более 48 + 3б | I13: =IF($G$13>17,1,0)+IF($G$13>24,1,0)+IF($G$13>48,1,0) -> 3
A14: 2 | D14: наличие модулей в образовательной Программе для разновозрастных групп | E14: для обучающихся = 1, для обучающихся и взрослых = 2 | G14: 1 | H14: 1 + 1б, 2 + 2б | I14: =IF(G14=1,1,0)+IF(G14=2,2,0) -> 1
A15: 3 | D15: наличие в образовательной Программе активных и интерактивных форм обучения | E15: менее 50% занятий = 1, более 50% занятий = 2 | G15: 2 | H15: 1 + 1б, 2 + 2б | I15: =IF(G15=1,1,0)+IF(G15=2,2,0) -> 2
A16: 4 | D16: преемственность образовательных Программ из года в год | E16: если существует = 1 | G16: 1 | H16: да + 1б | I16: =IF(G16=1,1,0) -> 1
A17: 5 | C17: доступность | D17: наличие модулей, предложенных слушателям на выбор | E17: если 2 модуля = 1, 3 и более модулей = 2 | G17: 2 | H17: 1 + 1б, 2 + 2б | I17: =IF(G17=1,1,0)+IF(G17=2,2,0) -> 2
A18: 6 | D18: проведение мониторинга уровня сформированности ключевых компетентностей | E18: если да = 1 | G18: 1 | H18: да + 3б | I18: =IF(G18=1,3,0) -> 3
A19: 7 | D19: программа реализуется в сетевом взаимодействии с другими Центрами | E19: если да = 1 | G19: 1 | H19: да + 2б | I19: =IF(G19=1,2,0) -> 2
A20: 8 | D20: доля слушателей, привлеченных из других ОУ | E20: количество | G20: 10 | H20: 100% + 3б | I20: =ROUND((G20/H7*3),1) -> 0.6
A21: 9 | C21: полнота реализации | D21: Программа реализуется в полном объеме | E21: если да = 1 | G21: 1 | H21: да + 1,5б, нет + 1б | I21: =IF(G21=1,1.5,1) -> 1.5
A22: 10 | D22: Программа изменилась при лучших условиях | E22: если да = 1 | G22: 1 | H22: да + 0,5б | I22: =IF(G22=1,0.5,0) -> 0.5
A23: 11 | B23: Организация образовательного процесса | C23: кадровое обеспечение | D23: укомплектованность преподавательского состава в соответствии с Программой | E23: состав полностью укомплектован = 1 | G23: 1 | H23: да + 2б, нет + 1б | I23: =IF(G23=1,2,1) -> 2
A24: 12 | D24: подготовка преподавателей по теме Программы | E24: количество | G24: 5 | H24: 100% + 2б | I24: =ROUND((G24/(H8+H9+H10)*2),1) -> 1.3
A25: 13 | D25: привлечение специалистов из профессионального сообщества | E25: количество | G25: =H10 -> 0 | H25: 100% + 2б | I25: =ROUND((G25/(H9+H10+H8)*2),1) -> 0
A26: 14 | D26: привлечение консультантов из числа обучающихся, выпускников | E26: количество | G26: =H9 -> 3 | H26: 100% + 2б | I26: =ROUND((G26/(H10+H9+H8)*2),1) -> 0.8
A27: 15 | C27: материально-техническое обеспечение | D27: наличие достаточной материальной базы для проведения знаний | E27: если да = 1 | G27: , | H27: да + 2б, нет + 1б | I27: =IF(G27=1,2,1) -> 1
A28: 16 | D28: использование материальной базы иных организаций | E28: если да = 1 | G28: 1 | H28: да + 2б | I28: =IF(G28=1,2,0) -> 2
A29: 17 | D29: наличие оборудованных рабочих мест для слушателей и преподавателей | E29: если да = 1, только преподавателей = 2 | G29: 1 | H29: 1 + 1б, 2 + 0,5б | I29: =IF(G29=1,1,0)+IF(G29=2,0.5,0) -> 1
A30: 18 | C30: информационно-технологическое обеспечение | D30: наличие страницы Центра на сайте образовательного учреждения | E30: если да = 1 | G30: 1 | H30: да + 1б | I30: =IF(G30=1,1,0) -> 1
A31: 19 | D31: регулярность обновления страницы Центра на сайте | E31: более 1 раза в месяц = 1, реже = 2 | G31: 1 | H31: 1 + 1б, 2 + 0,5б | I31: =IF(G31=1,1,0)+IF(G31=2,0.5,0) -> 1
A32: 20 | D32: использование доступа в интернет преподавателями и слушателями | E32: если да = 1, только преподавателями = 2 | G32: 1 | H32: 1 + 1б, 2 + 0,5б | I32: =IF(G32=1,1,0)+IF(G32=2,0.5,0) -> 1
A33: 21 | D33: наличие методических материалов Центра на сайте ОУ | E33: если да = 1 | G33: 1 | H33: да + 1б | I33: =IF(G33=1,1,0) -> 1
A34: 22 | D34: наличие Совета Центра | E34: если да = 1 | G34: 1 | H34: да + 0,5б | I34: =IF(G34=1,0.5,0) -> 0.5
A35: 23 | D35: наличие утвержденного положения о деятельности Центра | E35: если да = 1 | G35: 1 | H35: да + 0,5б | I35: =IF(G35=1,0.5,0) -> 0.5
A36: 24 | D36: наличие оформленных договоров с социальными партнерами | E36: если да = 1 | G36: 1 | H36: да + 1б | I36: =IF(G36=1,1,0) -> 1
A37: 25 | C37: учебно-методическое обеспечение | D37: обеспеченность слушателей учебниками, справочной литературой | E37: полное обеспечение = 1, частичное = 2 | G37: 1 | H37: 1 + 2б, 2 + 1б | I37: =IF(G37=1,2,0)+IF(G37=2,1,0) -> 2
A38: 26 | D38: обеспеченность преподавателей методической литературой, программными средствами обучения | E38: полное обеспечение = 1, частичное = 2 | G38: 1 | H38: 1 + 2б, 2 + 1б | I38: =IF(G38=1,2,0)+IF(G38=2,1,0) -> 2
A39: 27 | B39: Результаты образовательной деятельности | C39: уровень и качество общеобразовательной подготовки слушателей | D39: слушатели, применившие полученную информацию на практике | E39: количество | G39: 50 | H39: 100% + 2б | I39: =ROUND(G39/H7*2,1) -> 2
A40: 28 | D40: слушатели, освоившие программу и получившие удостоверение | E40: количество | G40: 30 | H40: 100% + 4б | I40: =ROUND(G40/$H$7*4,1) -> 2.4
A41: 29 | D41: слушатели, получившие сертификат | E41: количество | G41: 20 | H41: 100% + 1б | I41: =ROUND(G41/H7*1,1) -> 0.4
A42: 30 | C42: сформированность ключевых компетентностей слушателей | D42: слушатели, имеющие документально подтвержденные достижения по теме Программы:
D43: - на школьном уровне | E43: количество | G43: 0 | H43: 100% + 2б | I43: =ROUND(G43/$H$7*2,1) -> 0
D44: - на муниципальном уровне | E44: количество | G44: 14 | H44: 100% + 3б | I44: =ROUND(G44/$H$7*3,1) -> 0.8
D45: - на региональном уровне | E45: количество | G45: 31 | H45: 100% + 4б | I45: =ROUND(G45/$H$7*4,1) -> 2.5
D46: - на федеральном и международном уровнях | E46: количество | G46: 3 | H46: 100% + 5б | I46: =ROUND(G46/$H$7*5,1) -> 0.3
A47: 31 | C47: уровень обобщения и представления опыта деятельности Центра по теме Программы | D47: публичное представление промежуточных результатов реализации образовательной Программы:
D48: - на школьном уровне | E48: количество | G48: 0 | H48: за 1 + 0,1б | I48: =G48*0.1 -> 0
D49: - на муниципальном уровне | E49: количество | G49: 0 | H49: за 1 + 0,2б | I49: =G49*0.2 -> 0
D50: - на региональном уровне | E50: количество | G50: 4 | H50: за 1 + 0,3б | I50: =G50*0.3 -> 1.2
D51: - на федеральном и международном уровнях | E51: количество | G51: 2 | H51: за 1 + 0,5б | I51: =G51*0.4 -> 0.8
A52: 32 | D52: организация мероприятий, семинаров различного уровня по теме образовательной Программы:
D53: - на муниципальном уровне | E53: количество | G53: 1 | H53: за 1 + 0,3б | I53: =G53*0.3 -> 0.3
D54: - на региональном уровне | E54: количество | G54: 1 | H54: за 1 + 0,5б | I54: =G54*0.5 -> 0.5
D55: - на федеральном и международном уровнях | E55: количество | G55: 1 | H55: за 1 + 0,7б | I55: =G55*0.7 -> 0.7
A56: 33 | D56: внешкольная экспертная деятельность преподавателей Центра по теме Программы | E56: количество часов | G56: 0 | H56: за 100ч + 2б | I56: =G56*0.02 -> 0
A57: 34 | D57: наличие публикаций в методических изданиях по теме Программы | E57: количество страниц А4, интервал 1,5, шрифт 14 | G57: 2 | H57: за 24 стр. + 2б | I57: =ROUND(G57*2/24,1) -> 0.2
A58: 35 | D58: количество публикаций в СМИ муниципального и регионального уровня по теме Программы | E58: количество статей | G58: 4 | H58: за 1 ст. + 0,1б | I58: =G58*0.1 -> 0.4
A59: 36 | C59: уровень организации и степень достижения целей и задач инновационной деятельности | D59: наличие рецензии на образовательную Программу | E59: если да = 1 | G59: 1 | H59: да + 2б | I59: =IF(G59=1,2,0) -> 2
A60: 37 | D60: Программа Центра является частью программы развития ОУ | E60: если да = 1 | G60: 1 | H60: да + 1б | I60: =IF(G60=1,1,0) -> 1
A61: 38 | D61: Программа Центра является частью муниципальной программы развития | E61: если да = 1 | G61: 1 | H61: да + 2б | I61: =IF(G61=1,2,0) -> 2
A62: 39 | D62: наличие общественной экспертизы результатов реализации образовательной Программы | E62: если да = 1 | G62: 0 | H62: да + 1б | I62: =IF(G62=1,1,0) -> 0
A63: 40 | D63: публичное представление результатов инновационной деятельности на научно-практических конференциях
D64: - на школьном уровне | E64: если да = 1 | G64: 0 | H64: да + 0,3б | I64: =IF(G64=1,0.3,0) -> 0
D65: - на муниципальном уровне | E65: если да = 1 | G65: 1 | H65: да + 0,5б | I65: =IF(G65=1,0.5,0) -> 0.5
D66: - на региональном уровне | E66: если да = 1 | G66: 0 | H66: да + 1б | I66: =IF(G66=1,1,0) -> 0
D67: - на федеральном и международном уровнях | E67: если да = 1 | H67: да + 2б | I67: =IF(G67=1,2,0) -> 0
A68: Общее рейтинговое значение | I68: =SUM(I13:I41,I43:I46,I48:I51,I53:I62,I64:I67) -> 52.7

Sheet Т №33
A1: РЕЙТИНГ | D1: ОЦЕНОЧНЫЙ ЛИСТ РЕЙТИНГА РЕЗУЛЬТАТИВНОСТИ ОБРАЗОВАТЕЛЬНЫХ ПРОГРАММ ЦЕНТРОВ ГРАЖДАНСКОГО ОБРАЗОВАНИЯ 2012-2013
A2: первый | C2: =SUM(I13:I22) -> 13
A3: второй | C3: =SUM(I23:I38) -> 17.7
A4: третий | C4: =SUM(I39:I41,I43:I46,I48:I51,I53:I62,I64:I67) -> 16.72 | D4: МБОУ СОШ № 33 г. Томска
A5: общее | C5: =SUM(C2:C4) -> 47.42 | D5: Центр гражданского образования "Социальное проектирование"
A6: 1.09 | C6: =C5*A6 -> 51.6878 | D6: Образовательная программа "Основы управления"
A7: Общее количество слушателей образовательной Программы | H7: 33 | I7: человек
A8: Количество педагогических работников | H8: 3 | I8: человек
A9: Количество консультантов из числа опытных старшеклассников, выпускников Центра | H9: 3 | I9: человек
A10: Количество привлеченных специалистов | H10: 0 | I10: человек
A11: Продолжительность образовательной Программы | H11: 30 | I11: часов
A12: № | B12: Направ-ление | C12: Критерии | E12: Значение критерия | F12: Единица измерения | G12: Значение в единицах измерения | H12: Система оценки | I12: Рейтинговое значение
A13: 1 | B13: Образовательная программа | C13: адаптированность | D13: продолжительность образовательной Программы | E13: количество часов | G13: =H11 -> 30 | H13: 18-24 + 1б, 25-48 + 2б, более 48 + 3б | I13: =IF($G$13>17,1,0)+IF($G$13>24,1,0)+IF($G$13>48,1,0) -> 2
A14: 2 | D14: наличие модулей в образовательной Программе для разновозрастных групп | E14: для обучающихся = 1, для обучающихся и взрослых = 2 | G14: 2 | H14: 1 + 1б, 2 + 2б | I14: =IF(G14=1,1,0)+IF(G14=2,2,0) -> 2
A15: 3 | D15: наличие в образовательной Программе активных и интерактивных форм обучения | E15: менее 50% занятий = 1, более 50% занятий = 2 | G15: 2 | H15: 1 + 1б, 2 + 2б | I15: =IF(G15=1,1,0)+IF(G15=2,2,0) -> 2
A16: 4 | D16: преемственность образовательных Программ из года в год | E16: если существует = 1 | G16: 1 | H16: да + 1б | I16: =IF(G16=1,1,0) -> 1
A17: 5 | C17: доступность | D17: наличие модулей, предложенных слушателям на выбор | E17: если 2 модуля = 1, 3 и более модулей = 2 | G17: 1 | H17: 1 + 1б, 2 + 2б | I17: =IF(G17=1,1,0)+IF(G17=2,2,0) -> 1
A18: 6 | D18: проведение мониторинга уровня сформированности ключевых компетентностей | E18: если да = 1 | G18: 1 | H18: да + 3б | I18: =IF(G18=1,3,0) -> 3
A19: 7 | D19: программа реализуется в сетевом взаимодействии с другими Центрами | E19: если да = 1 | G19: 0 | H19: да + 2б | I19: =IF(G19=1,2,0) -> 0
A20: 8 | D20: доля слушателей, привлеченных из других ОУ | E20: количество | G20: 0 | H20: 100% + 3б | I20: =ROUND((G20/H7*3),1) -> 0
A21: 9 | C21: полнота реализации | D21: Программа реализуется в полном объеме | E21: если да = 1 | G21: 1 | H21: да + 1,5б, нет + 1б | I21: =IF(G21=1,1.5,1) -> 1.5
A22: 10 | D22: Программа изменилась при лучших условиях | E22: если да = 1 | G22: 1 | H22: да + 0,5б | I22: =IF(G22=1,0.5,0) -> 0.5
A23: 11 | B23: Организация образовательного процесса | C23: кадровое обеспечение | D23: укомплектованность преподавательского состава в соответствии с Программой | E23: состав полностью укомплектован = 1 | G23: 1 | H23: да + 2б, нет + 1б | I23: =IF(G23=1,2,1) -> 2
A24: 12 | D24: подготовка преподавателей по теме Программы | E24: количество | G24: 2 | H24: 100% + 2б | I24: =ROUND((G24/(H8+H9+H10)*2),1) -> 0.7
A25: 13 | D25: привлечение специалистов из профессионального сообщества | E25: количество | G25: =H10 -> 0 | H25: 100% + 2б | I25: =ROUND((G25/(H9+H10+H8)*2),1) -> 0
A26: 14 | D26: привлечение консультантов из числа обучающихся, выпускников | E26: количество | G26: =H9 -> 3 | H26: 100% + 2б | I26: =ROUND((G26/(H10+H9+H8)*2),1) -> 1
A27: 15 | C27: материально-техническое обеспечение | D27: наличие достаточной материальной базы для проведения знаний | E27: если да = 1 | G27: 1 | H27: да + 2б, нет + 1б | I27: =IF(G27=1,2,1) -> 2
A28: 16 | D28: использование материальной базы иных организаций | E28: если да = 1 | G28: 1 | H28: да + 2б | I28: =IF(G28=1,2,0) -> 2
A29: 17 | D29: наличие оборудованных рабочих мест для слушателей и преподавателей | E29: если да = 1, только преподавателей = 2 | G29: 2 | H29: 1 + 1б, 2 + 0,5б | I29: =IF(G29=1,1,0)+IF(G29=2,0.5,0) -> 0.5
A30: 18 | C30: информационно-технологическое обеспечение | D30: наличие страницы Центра на сайте образовательного учреждения | E30: если да = 1 | G30: 1 | H30: да + 1б | I30: =IF(G30=1,1,0) -> 1
A31: 19 | D31: регулярность обновления страницы Центра на сайте | E31: более 1 раза в месяц = 1, реже = 2 | G31: 2 | H31: 1 + 1б, 2 + 0,5б | I31: =IF(G31=1,1,0)+IF(G31=2,0.5,0) -> 0.5
A32: 20 | D32: использование доступа в интернет преподавателями и слушателями | E32: если да = 1, только преподавателями = 2 | G32: 1 | H32: 1 + 1б, 2 + 0,5б | I32: =IF(G32=1,1,0)+IF(G32=2,0.5,0) -> 1
A33: 21 | D33: наличие методических материалов Центра на сайте ОУ | E33: если да = 1 | G33: 1 | H33: да + 1б | I33: =IF(G33=1,1,0) -> 1
A34: 22 | D34: наличие Совета Центра | E34: если да = 1 | G34: 1 | H34: да + 0,5б | I34: =IF(G34=1,0.5,0) -> 0.5
A35: 23 | D35: наличие утвержденного положения о деятельности Центра | E35: если да = 1 | G35: 1 | H35: да + 0,5б | I35: =IF(G35=1,0.5,0) -> 0.5
A36: 24 | D36: наличие оформленных договоров с социальными партнерами | E36: если да = 1 | G36: 1 | H36: да + 1б | I36: =IF(G36=1,1,0) -> 1
A37: 25 | C37: учебно-методическое обеспечение | D37: обеспеченность слушателей учебниками, справочной литературой | E37: полное обеспечение = 1, частичное = 2 | G37: 1 | H37: 1 + 2б, 2 + 1б | I37: =IF(G37=1,2,0)+IF(G37=2,1,0) -> 2
A38: 26 | D38: обеспеченность преподавателей методической литературой, программными средствами обучения | E38: полное обеспечение = 1, частичное = 2 | G38: 1 | H38: 1 + 2б, 2 + 1б | I38: =IF(G38=1,2,0)+IF(G38=2,1,0) -> 2
A39: 27 | B39: Результаты образовательной деятельности | C39: уровень и качество общеобразовательной подготовки слушателей | D39: слушатели, применившие полученную информацию на практике | E39: количество | G39: 33 | H39: 100% + 2б | I39: =ROUND(G39/H7*2,1) -> 2
A40: 28 | D40: слушатели, освоившие программу и получившие удостоверение | E40: количество | G40: 9 | H40: 100% + 4б | I40: =ROUND(G40/$H$7*4,1) -> 1.1
A41: 29 | D41: слушатели, получившие сертификат | E41: количество | G41: 24 | H41: 100% + 1б | I41: =ROUND(G41/H7*1,1) -> 0.7
A42: 30 | C42: сформированность ключевых компетентностей слушателей | D42: слушатели, имеющие документально подтвержденные достижения по теме Программы:
D43: - на школьном уровне | E43: количество | G43: 33 | H43: 100% + 2б | I43: =ROUND(G43/$H$7*2,1) -> 2
D44: - на муниципальном уровне | E44: количество | G44: 7 | H44: 100% + 3б | I44: =ROUND(G44/$H$7*3,1) -> 0.6
D45: - на региональном уровне | E45: количество | G45: 17 | H45: 100% + 4б | I45: =ROUND(G45/$H$7*4,1) -> 2.1
D46: - на федеральном и международном уровнях | E46: количество | G46: 0 | H46: 100% + 5б | I46: =ROUND(G46/$H$7*5,1) -> 0
A47: 31 | C47: уровень обобщения и представления опыта деятельности Центра по теме Программы | D47: публичное представление промежуточных результатов реализации образовательной Программы:
D48: - на школьном уровне | E48: количество | G48: 2 | H48: за 1 + 0,1б | I48: =G48*0.1 -> 0.2
D49: - на муниципальном уровне | E49: количество | G49: 2 | H49: за 1 + 0,2б | I49: =G49*0.2 -> 0.4
D50: - на региональном уровне | E50: количество | G50: 2 | H50: за 1 + 0,3б | I50: =G50*0.3 -> 0.6
D51: - на федеральном и международном уровнях | E51: количество | G51: 1 | H51: за 1 + 0,5б | I51: =G51*0.4 -> 0.4
A52: 32 | D52: организация мероприятий, семинаров различного уровня по теме образовательной Программы:
D53: - на муниципальном уровне | E53: количество | G53: 1 | H53: за 1 + 0,3б | I53: =G53*0.3 -> 0.3
D54: - на региональном уровне | E54: количество | G54: 1 | H54: за 1 + 0,5б | I54: =G54*0.5 -> 0.5
D55: - на федеральном и международном уровнях | E55: количество | G55: 0 | H55: за 1 + 0,7б | I55: =G55*0.7 -> 0
A56: 33 | D56: внешкольная экспертная деятельность преподавателей Центра по теме Программы | E56: количество часов | G56: 1 | H56: за 100ч + 2б | I56: =G56*0.02 -> 0.02
A57: 34 | D57: наличие публикаций в методических изданиях по теме Программы | E57: количество страниц А4, интервал 1,5, шрифт 14 | G57: 0 | H57: за 24 стр. + 2б | I57: =ROUND(G57*2/24,1) -> 0
A58: 35 | D58: количество публикаций в СМИ муниципального и регионального уровня по теме Программы | E58: количество статей | G58: 0 | H58: за 1 ст. + 0,1б | I58: =G58*0.1 -> 0
A59: 36 | C59: уровень организации и степень достижения целей и задач инновационной деятельности | D59: наличие рецензии на образовательную Программу | E59: если да = 1 | G59: 0 | H59: да + 2б | I59: =IF(G59=1,2,0) -> 0
A60: 37 | D60: Программа Центра является частью программы развития ОУ | E60: если да = 1 | G60: 1 | H60: да + 1б | I60: =IF(G60=1,1,0) -> 1
A61: 38 | D61: Программа Центра является частью муниципальной программы развития | E61: если да = 1 | G61: 1 | H61: да + 2б | I61: =IF(G61=1,2,0) -> 2
A62: 39 | D62: наличие общественной экспертизы результатов реализации образовательной Программы | E62: если да = 1 | G62: 1 | H62: да + 1б | I62: =IF(G62=1,1,0) -> 1
A63: 40 | D63: публичное представление результатов инновационной деятельности на научно-практических конференциях
D64: - на школьном уровне | E64: если да = 1 | G64: 1 | H64: да + 0,3б | I64: =IF(G64=1,0.3,0) -> 0.3
D65: - на муниципальном уровне | E65: если да = 1 | G65: 1 | H65: да + 0,5б | I65: =IF(G65=1,0.5,0) -> 0.5
D66: - на региональном уровне | E66: если да = 1 | G66: 1 | H66: да + 1б | I66: =IF(G66=1,1,0) -> 1
D67: - на федеральном и международном уровнях | E67: если да = 1 | G67: 0 | H67: да + 2б | I67: =IF(G67=1,2,0) -> 0
A68: Общее рейтинговое значение | I68: =SUM(I13:I41,I43:I46,I48:I51,I53:I62,I64:I67) -> 47.42

Sheet Т № 37
A1: РЕЙТИНГ | D1: ОЦЕНОЧНЫЙ ЛИСТ РЕЙТИНГА РЕЗУЛЬТАТИВНОСТИ ОБРАЗОВАТЕЛЬНЫХ ПРОГРАММ ЦЕНТРОВ ГРАЖДАНСКОГО ОБРАЗОВАНИЯ 2012-2013
A2: первый | C2: =SUM(I13:I22) -> 16
A3: второй | C3: =SUM(I23:I38) -> 20
A4: третий | C4: =SUM(I39:I41,I43:I46,I48:I51,I53:I62,I64:I67) -> 31.7 | D4: Сокращенное наименование образовательного учреждения: МАОУ СОШ № 37
A5: общее | C5: =SUM(C2:C4) -> 67.7 | D5: Центр гражданского образования "Школа навигаторов"
A6: 1.04 | C6: =C5*A6 -> 70.408 | D6: Образовательная Программа "Школа навигаторов"
A7: Общее количество слушателей образовательной Программы | H7: 82 | I7: человек
A8: Количество педагогических работников | H8: 5 | I8: человек
A9: Количество консультантов из числа опытных старшеклассников, выпускников Центра | H9: 7 | I9: человек
A10: Количество привлеченных специалистов | H10: 2 | I10: человек
A11: Продолжительность образовательной Программы | H11: 52 | I11: часов
A12: № | B12: Направ-ление | C12: Критерии | E12: Значение критерия | F12: Единица измерения | G12: Значение в единицах измерения | H12: Система оценки | I12: Рейтинговое значение
A13: 1 | B13: Образовательная программа | C13: адаптированность | D13: продолжительность образовательной Программы | E13: количество часов | G13: =H11 -> 52 | H13: 18-24 + 1б, 25-48 + 2б, более 48 + 3б | I13: =IF($G$13>17,1,0)+IF($G$13>24,1,0)+IF($G$13>48,1,0) -> 3
A14: 2 | D14: наличие модулей в образовательной Программе для разновозрастных групп | E14: для обучающихся = 1, для обучающихся и взрослых = 2 | G14: 1 | H14: 1 + 1б, 2 + 2б | I14: =IF(G14=1,1,0)+IF(G14=2,2,0) -> 1
A15: 3 | D15: наличие в образовательной Программе активных и интерактивных форм обучения | E15: менее 50% занятий = 1, более 50% занятий = 2 | G15: 2 | H15: 1 + 1б, 2 + 2б | I15: =IF(G15=1,1,0)+IF(G15=2,2,0) -> 2
A16: 4 | D16: преемственность образовательных Программ из года в год | E16: если существует = 1 | G16: 1 | H16: да + 1б | I16: =IF(G16=1,1,0) -> 1
A17: 5 | C17: доступность | D17: наличие модулей, предложенных слушателям на выбор | E17: если 2 модуля = 1, 3 и более модулей = 2 | G17: 2 | H17: 1 + 1б, 2 + 2б | I17: =IF(G17=1,1,0)+IF(G17=2,2,0) -> 2
A18: 6 | D18: проведение мониторинга уровня сформированности ключевых компетентностей | E18: если да = 1 | G18: 1 | H18: да + 3б | I18: =IF(G18=1,3,0) -> 3
A19: 7 | D19: программа реализуется в сетевом взаимодействии с другими Центрами | E19: если да = 1 | G19: 1 | H19: да + 2б | I19: =IF(G19=1,2,0) -> 2
A20: 8 | D20: доля слушателей, привлеченных из других ОУ | E20: количество | G20: 0 | H20: 100% + 3б | I20: =ROUND((G20/H7*3),1) -> 0
A21: 9 | C21: полнота реализации | D21: Программа реализуется в полном объеме | E21: если да = 1 | G21: 1 | H21: да + 1,5б, нет + 1б | I21: =IF(G21=1,1.5,1) -> 1.5
A22: 10 | D22: Программа изменилась при лучших условиях | E22: если да = 1 | G22: 1 | H22: да + 0,5б | I22: =IF(G22=1,0.5,0) -> 0.5
A23: 11 | B23: Организация образовательного процесса | C23: кадровое обеспечение | D23: укомплектованность преподавательского состава в соответствии с Программой | E23: состав полностью укомплектован = 1 | G23: 1 | H23: да + 2б, нет + 1б | I23: =IF(G23=1,2,1) -> 2
A24: 12 | D24: подготовка преподавателей по теме Программы | E24: количество | G24: 12 | H24: 100% + 2б | I24: =ROUND((G24/(H8+H9+H10)*2),1) -> 1.7
A25: 13 | D25: привлечение специалистов из профессионального сообщества | E25: количество | G25: =H10 -> 2 | H25: 100% + 2б | I25: =ROUND((G25/(H9+H10+H8)*2),1) -> 0.3
A26: 14 | D26: привлечение консультантов из числа обучающихся, выпускников | E26: количество | G26: =H9 -> 7 | H26: 100% + 2б | I26: =ROUND((G26/(H10+H9+H8)*2),1) -> 1
A27: 15 | C27: материально-техническое обеспечение | D27: наличие достаточной материальной базы для проведения знаний | E27: если да = 1 | G27: 1 | H27: да + 2б, нет + 1б | I27: =IF(G27=1,2,1) -> 2
A28: 16 | D28: использование материальной базы иных организаций | E28: если да = 1 | G28: 1 | H28: да + 2б | I28: =IF(G28=1,2,0) -> 2
A29: 17 | D29: наличие оборудованных рабочих мест для слушателей и преподавателей | E29: если да = 1, только преподавателей = 2 | G29: 1 | H29: 1 + 1б, 2 + 0,5б | I29: =IF(G29=1,1,0)+IF(G29=2,0.5,0) -> 1
A30: 18 | C30: информационно-технологическое обеспечение | D30: наличие страницы Центра на сайте образовательного учреждения | E30: если да = 1 | G30: 1 | H30: да + 1б | I30: =IF(G30=1,1,0) -> 1
A31: 19 | D31: регулярность обновления страницы Центра на сайте | E31: более 1 раза в месяц = 1, реже = 2 | G31: 1 | H31: 1 + 1б, 2 + 0,5б | I31: =IF(G31=1,1,0)+IF(G31=2,0.5,0) -> 1
A32: 20 | D32: использование доступа в интернет преподавателями и слушателями | E32: если да = 1, только преподавателями = 2 | G32: 1 | H32: 1 + 1б, 2 + 0,5б | I32: =IF(G32=1,1,0)+IF(G32=2,0.5,0) -> 1
A33: 21 | D33: наличие методических материалов Центра на сайте ОУ | E33: если да = 1 | G33: 1 | H33: да + 1б | I33: =IF(G33=1,1,0) -> 1
A34: 22 | D34: наличие Совета Центра | E34: если да = 1 | G34: 1 | H34: да + 0,5б | I34: =IF(G34=1,0.5,0) -> 0.5
A35: 23 | D35: наличие утвержденного положения о деятельности Центра | E35: если да = 1 | G35: 1 | H35: да + 0,5б | I35: =IF(G35=1,0.5,0) -> 0.5
A36: 24 | D36: наличие оформленных договоров с социальными партнерами | E36: если да = 1 | G36: 1 | H36: да + 1б | I36: =IF(G36=1,1,0) -> 1
A37: 25 | C37: учебно-методическое обеспечение | D37: обеспеченность слушателей учебниками, справочной литературой | E37: полное обеспечение = 1, частичное = 2 | G37: 1 | H37: 1 + 2б, 2 + 1б | I37: =IF(G37=1,2,0)+IF(G37=2,1,0) -> 2
A38: 26 | D38: обеспеченность преподавателей методической литературой, программными средствами обучения | E38: полное обеспечение = 1, частичное = 2 | G38: 1 | H38: 1 + 2б, 2 + 1б | I38: =IF(G38=1,2,0)+IF(G38=2,1,0) -> 2
A39: 27 | B39: Результаты образовательной деятельности | C39: уровень и качество общеобразовательной подготовки слушателей | D39: слушатели, применившие полученную информацию на практике | E39: количество | G39: 82 | H39: 100% + 2б | I39: =ROUND(G39/H7*2,1) -> 2
A40: 28 | D40: слушатели, освоившие программу и получившие удостоверение | E40: количество | G40: 82 | H40: 100% + 4б | I40: =ROUND(G40/$H$7*4,1) -> 4
A41: 29 | D41: слушатели, получившие сертификат | E41: количество | G41: 0 | H41: 100% + 1б | I41: =ROUND(G41/H7*1,1) -> 0
A42: 30 | C42: сформированность ключевых компетентностей слушателей | D42: слушатели, имеющие документально подтвержденные достижения по теме Программы:
D43: - на школьном уровне | E43: количество | G43: 82 | H43: 100% + 2б | I43: =ROUND(G43/$H$7*2,1) -> 2
D44: - на муниципальном уровне | E44: количество | G44: 15 | H44: 100% + 3б | I44: =ROUND(G44/$H$7*3,1) -> 0.5
D45: - на региональном уровне | E45: количество | G45: 28 | H45: 100% + 4б | I45: =ROUND(G45/$H$7*4,1) -> 1.4
D46: - на федеральном и международном уровнях | E46: количество | G46: 55 | H46: 100% + 5б | I46: =ROUND(G46/$H$7*5,1) -> 3.4
A47: 31 | C47: уровень обобщения и представления опыта деятельности Центра по теме Программы | D47: публичное представление промежуточных результатов реализации образовательной Программы:
D48: - на школьном уровне | E48: количество | G48: 1 | H48: за 1 + 0,1б | I48: =G48*0.1 -> 0.1
D49: - на муниципальном уровне | E49: количество | G49: 3 | H49: за 1 + 0,2б | I49: =G49*0.2 -> 0.6
D50: - на региональном уровне | E50: количество | G50: 4 | H50: за 1 + 0,3б | I50: =G50*0.3 -> 1.2
D51: - на федеральном и международном уровнях | E51: количество | G51: 3 | H51: за 1 + 0,5б | I51: =G51*0.4 -> 1.2
A52: 32 | D52: организация мероприятий, семинаров различного уровня по теме образовательной Программы:
D53: - на муниципальном уровне | E53: количество | G53: 1 | H53: за 1 + 0,3б | I53: =G53*0.3 -> 0.3
D54: - на региональном уровне | E54: количество | G54: 4 | H54: за 1 + 0,5б | I54: =G54*0.5 -> 2
D55: - на федеральном и международном уровнях | E55: количество | G55: 3 | H55: за 1 + 0,7б | I55: =G55*0.7 -> 2.1
A56: 33 | D56: внешкольная экспертная деятельность преподавателей Центра по теме Программы | E56: количество часов | G56: 15 | H56: за 100ч + 2б | I56: =G56*0.02 -> 0.3
A57: 34 | D57: наличие публикаций в методических изданиях по теме Программы | E57: количество страниц А4, интервал 1,5, шрифт 14 | G57: 22 | H57: за 24 стр. + 2б | I57: =ROUND(G57*2/24,1) -> 1.8
A58: 35 | D58: количество публикаций в СМИ муниципального и регионального уровня по теме Программы | E58: количество статей | G58: 0 | H58: за 1 ст. + 0,1б | I58: =G58*0.1 -> 0
A59: 36 | C59: уровень организации и степень достижения целей и задач инновационной деятельности | D59: наличие рецензии на образовательную Программу | E59: если да = 1 | G59: 1 | H59: да + 2б | I59: =IF(G59=1,2,0) -> 2
A60: 37 | D60: Программа Центра является частью программы развития ОУ | E60: если да = 1 | G60: 1 | H60: да + 1б | I60: =IF(G60=1,1,0) -> 1
A61: 38 | D61: Программа Центра является частью муниципальной программы развития | E61: если да = 1 | G61: 1 | H61: да + 2б | I61: =IF(G61=1,2,0) -> 2
A62: 39 | D62: наличие общественной экспертизы результатов реализации образовательной Программы | E62: если да = 1 | G62: 1 | H62: да + 1б | I62: =IF(G62=1,1,0) -> 1
A63: 40 | D63: публичное представление результатов инновационной деятельности на научно-практических конференциях
D64: - на школьном уровне | E64: если да = 1 | G64: 1 | H64: да + 0,3б | I64: =IF(G64=1,0.3,0) -> 0.3
D65: - на муниципальном уровне | E65: если да = 1 | G65: 1 | H65: да + 0,5б | I65: =IF(G65=1,0.5,0) -> 0.5
D66: - на региональном уровне | E66: если да = 1 | G66: 0 | H66: да + 1б | I66: =IF(G66=1,1,0) -> 0
D67: - на федеральном и международном уровнях | E67: если да = 1 | G67: 1 | H67: да + 2б | I67: =IF(G67=1,2,0) -> 2
A68: Общее рейтинговое значение | I68: =SUM(I13:I41,I43:I46,I48:I51,I53:I62,I64:I67) -> 67.7

Sheet Т ПК
A1: РЕЙТИНГ | D1: ОЦЕНОЧНЫЙ ЛИСТ РЕЙТИНГА РЕЗУЛЬТАТИВНОСТИ ОБРАЗОВАТЕЛЬНЫХ ПРОГРАММ ЦЕНТРОВ ГРАЖДАНСКОГО ОБРАЗОВАНИЯ 2012-2013
A2: первый | C2: =SUM(I13:I22) -> 14.5
A3: второй | C3: =SUM(I23:I38) -> 19
A4: третий | C4: =SUM(I39:I41,I43:I46,I48:I51,I53:I62,I64:I67) -> 14.2 | D4: МАОУ ДОД ЦДОД "Планирование карьеры"
A5: общее | C5: =SUM(C2:C4) -> 47.7 | D5: Центр гражданского образования "Я - гражданин Томска"
A6: 1 | C6: =C5*A6 -> 47.7 | D6: Образовательная программа "Город, который строим мы"
A7: Общее количество слушателей образовательной Программы | H7: 40 | I7: человек
A8: Количество педагогических работников | H8: 4 | I8: человек
A9: Количество консультантов из числа опытных старшеклассников, выпускников Центра | I9: человек
A10: Количество привлеченных специалистов | H10: 1 | I10: человек
A11: Продолжительность образовательной Программы | H11: 40 | I11: часов
A12: № | B12: Направ-ление | C12: Критерии | E12: Значение критерия | F12: Единица измерения | G12: Значение в единицах измерения | H12: Система оценки | I12: Рейтинговое значение
A13: 1 | B13: Образовательная программа | C13: адаптированность | D13: продолжительность образовательной Программы | E13: количество часов | G13: =H11 -> 40 | H13: 18-24 + 1б, 25-48 + 2б, более 48 + 3б | I13: =IF($G$13>17,1,0)+IF($G$13>24,1,0)+IF($G$13>48,1,0) -> 2
A14: 2 | D14: наличие модулей в образовательной Программе для разновозрастных групп | E14: для обучающихся = 1, для обучающихся и взрослых = 2 | H14: 1 + 1б, 2 + 2б | I14: =IF(G14=1,1,0)+IF(G14=2,2,0) -> 0
A15: 3 | D15: наличие в образовательной Программе активных и интерактивных форм обучения | E15: менее 50% занятий = 1, более 50% занятий = 2 | G15: 2 | H15: 1 + 1б, 2 + 2б | I15: =IF(G15=1,1,0)+IF(G15=2,2,0) -> 2
A16: 4 | D16: преемственность образовательных Программ из года в год | E16: если существует = 1 | G16: 1 | H16: да + 1б | I16: =IF(G16=1,1,0) -> 1
A17: 5 | C17: доступность | D17: наличие модулей, предложенных слушателям на выбор | E17: если 2 модуля = 1, 3 и более модулей = 2 | H17: 1 + 1б, 2 + 2б | I17: =IF(G17=1,1,0)+IF(G17=2,2,0) -> 0
A18: 6 | D18: проведение мониторинга уровня сформированности ключевых компетентностей | E18: если да = 1 | G18: 1 | H18: да + 3б | I18: =IF(G18=1,3,0) -> 3
A19: 7 | D19: программа реализуется в сетевом взаимодействии с другими Центрами | E19: если да = 1 | G19: 1 | H19: да + 2б | I19: =IF(G19=1,2,0) -> 2
A20: 8 | D20: доля слушателей, привлеченных из других ОУ | E20: количество | G20: 40 | H20: 100% + 3б | I20: =ROUND((G20/H7*3),1) -> 3
A21: 9 | C21: полнота реализации | D21: Программа реализуется в полном объеме | E21: если да = 1 | G21: 1 | H21: да + 1,5б, нет + 1б | I21: =IF(G21=1,1.5,1) -> 1.5
A22: 10 | D22: Программа изменилась при лучших условиях | E22: если да = 1 | H22: да + 0,5б | I22: =IF(G22=1,0.5,0) -> 0
A23: 11 | B23: Организация образовательного процесса | C23: кадровое обеспечение | D23: укомплектованность преподавательского состава в соответствии с Программой | E23: состав полностью укомплектован = 1 | G23: 1 | H23: да + 2б, нет + 1б | I23: =IF(G23=1,2,1) -> 2
A24: 12 | D24: подготовка преподавателей по теме Программы | E24: количество | G24: 4 | H24: 100% + 2б | I24: =ROUND((G24/(H8+H9+H10)*2),1) -> 1.6
A25: 13 | D25: привлечение специалистов из профессионального сообщества | E25: количество | G25: =H10 -> 1 | H25: 100% + 2б | I25: =ROUND((G25/(H9+H10+H8)*2),1) -> 0.4
A26: 14 | D26: привлечение консультантов из числа обучающихся, выпускников | E26: количество | G26: =H9 -> 0 | H26: 100% + 2б | I26: =ROUND((G26/(H10+H9+H8)*2),1) -> 0
A27: 15 | C27: материально-техническое обеспечение | D27: наличие достаточной материальной базы для проведения знаний | E27: если да = 1 | G27: 1 | H27: да + 2б, нет + 1б | I27: =IF(G27=1,2,1) -> 2
A28: 16 | D28: использование материальной базы иных организаций | E28: если да = 1 | G28: 1 | H28: да + 2б | I28: =IF(G28=1,2,0) -> 2
A29: 17 | D29: наличие оборудованных рабочих мест для слушателей и преподавателей | E29: если да = 1, только преподавателей = 2 | G29: 1 | H29: 1 + 1б, 2 + 0,5б | I29: =IF(G29=1,1,0)+IF(G29=2,0.5,0) -> 1
A30: 18 | C30: информационно-технологическое обеспечение | D30: наличие страницы Центра на сайте образовательного учреждения | E30: если да = 1 | G30: 1 | H30: да + 1б | I30: =IF(G30=1,1,0) -> 1
A31: 19 | D31: регулярность обновления страницы Центра на сайте | E31: более 1 раза в месяц = 1, реже = 2 | G31: 1 | H31: 1 + 1б, 2 + 0,5б | I31: =IF(G31=1,1,0)+IF(G31=2,0.5,0) -> 1
A32: 20 | D32: использование доступа в интернет преподавателями и слушателями | E32: если да = 1, только преподавателями = 2 | G32: 1 | H32: 1 + 1б, 2 + 0,5б | I32: =IF(G32=1,1,0)+IF(G32=2,0.5,0) -> 1
A33: 21 | D33: наличие методических материалов Центра на сайте ОУ | E33: если да = 1 | G33: 1 | H33: да + 1б | I33: =IF(G33=1,1,0) -> 1
A34: 22 | D34: наличие Совета Центра | E34: если да = 1 | G34: 1 | H34: да + 0,5б | I34: =IF(G34=1,0.5,0) -> 0.5
A35: 23 | D35: наличие утвержденного положения о деятельности Центра | E35: если да = 1 | G35: 1 | H35: да + 0,5б | I35: =IF(G35=1,0.5,0) -> 0.5
A36: 24 | D36: наличие оформленных договоров с социальными партнерами | E36: если да = 1 | G36: 1 | H36: да + 1б | I36: =IF(G36=1,1,0) -> 1
A37: 25 | C37: учебно-методическое обеспечение | D37: обеспеченность слушателей учебниками, справочной литературой | E37: полное обеспечение = 1, частичное = 2 | G37: 1 | H37: 1 + 2б, 2 + 1б | I37: =IF(G37=1,2,0)+IF(G37=2,1,0) -> 2
A38: 26 | D38: обеспеченность преподавателей методической литературой, программными средствами обучения | E38: полное обеспечение = 1, частичное = 2 | G38: 1 | H38: 1 + 2б, 2 + 1б | I38: =IF(G38=1,2,0)+IF(G38=2,1,0) -> 2
A39: 27 | B39: Результаты образовательной деятельности | C39: уровень и качество общеобразовательной подготовки слушателей | D39: слушатели, применившие полученную информацию на практике | E39: количество | G39: 40 | H39: 100% + 2б | I39: =ROUND(G39/H7*2,1) -> 2
A40: 28 | D40: слушатели, освоившие программу и получившие удостоверение | E40: количество | H40: 100% + 4б | I40: =ROUND(G40/$H$7*4,1) -> 0
A41: 29 | D41: слушатели, получившие сертификат | E41: количество | G41: 40 | H41: 100% + 1б | I41: =ROUND(G41/H7*1,1) -> 1
A42: 30 | C42: сформированность ключевых компетентностей слушателей | D42: слушатели, имеющие документально подтвержденные достижения по теме Программы:
D43: - на школьном уровне | E43: количество | H43: 100% + 2б | I43: =ROUND(G43/$H$7*2,1) -> 0
D44: - на муниципальном уровне | E44: количество | G44: 14 | H44: 100% + 3б | I44: =ROUND(G44/$H$7*3,1) -> 1.1
D45: - на региональном уровне | E45: количество | G45: 8 | H45: 100% + 4б | I45: =ROUND(G45/$H$7*4,1) -> 0.8
D46: - на федеральном и международном уровнях | E46: количество | H46: 100% + 5б | I46: =ROUND(G46/$H$7*5,1) -> 0
A47: 31 | C47: уровень обобщения и представления опыта деятельности Центра по теме Программы | D47: публичное представление промежуточных результатов реализации образовательной Программы:
D48: - на школьном уровне | E48: количество | H48: за 1 + 0,1б | I48: =G48*0.1 -> 0
D49: - на муниципальном уровне | E49: количество | H49: за 1 + 0,2б | I49: =G49*0.2 -> 0
D50: - на региональном уровне | E50: количество | G50: 1 | H50: за 1 + 0,3б | I50: =G50*0.3 -> 0.3
D51: - на федеральном и международном уровнях | E51: количество | G51: 1 | H51: за 1 + 0,5б | I51: =G51*0.4 -> 0.4
A52: 32 | D52: организация мероприятий, семинаров различного уровня по теме образовательной Программы:
D53: - на муниципальном уровне | E53: количество | G53: 2 | H53: за 1 + 0,3б | I53: =G53*0.3 -> 0.6
D54: - на региональном уровне | E54: количество | G54: 1 | H54: за 1 + 0,5б | I54: =G54*0.5 -> 0.5
D55: - на федеральном и международном уровнях | E55: количество | H55: за 1 + 0,7б | I55: =G55*0.7 -> 0
A56: 33 | D56: внешкольная экспертная деятельность преподавателей Центра по теме Программы | E56: количество часов | H56: за 100ч + 2б | I56: =G56*0.02 -> 0
A57: 34 | D57: наличие публикаций в методических изданиях по теме Программы | E57: количество страниц А4, интервал 1,5, шрифт 14 | H57: за 24 стр. + 2б | I57: =ROUND(G57*2/24,1) -> 0
A58: 35 | D58: количество публикаций в СМИ муниципального и регионального уровня по теме Программы | E58: количество статей | H58: за 1 ст. + 0,1б | I58: =G58*0.1 -> 0
A59: 36 | C59: уровень организации и степень достижения целей и задач инновационной деятельности | D59: наличие рецензии на образовательную Программу | E59: если да = 1 | G59: 1 | H59: да + 2б | I59: =IF(G59=1,2,0) -> 2
A60: 37 | D60: Программа Центра является частью программы развития ОУ | E60: если да = 1 | G60: 1 | H60: да + 1б | I60: =IF(G60=1,1,0) -> 1
A61: 38 | D61: Программа Центра является частью муниципальной программы развития | E61: если да = 1 | G61: 1 | H61: да + 2б | I61: =IF(G61=1,2,0) -> 2
A62: 39 | D62: наличие общественной экспертизы результатов реализации образовательной Программы | E62: если да = 1 | H62: да + 1б | I62: =IF(G62=1,1,0) -> 0
A63: 40 | D63: публичное представление результатов инновационной деятельности на научно-практических конференциях
D64: - на школьном уровне | E64: если да = 1 | H64: да + 0,3б | I64: =IF(G64=1,0.3,0) -> 0
D65: - на муниципальном уровне | E65: если да = 1 | G65: 1 | H65: да + 0,5б | I65: =IF(G65=1,0.5,0) -> 0.5
D66: - на региональном уровне | E66: если да = 1 | H66: да + 1б | I66: =IF(G66=1,1,0) -> 0
D67: - на федеральном и международном уровнях | E67: если да = 1 | G67: 1 | H67: да + 2б | I67: =IF(G67=1,2,0) -> 2
A68: Общее рейтинговое значение | I68: =SUM(I13:I41,I43:I46,I48:I51,I53:I62,I64:I67) -> 47.7

Sheet Стр ЦДОД
A1: РЕЙТИНГ | D1: ОЦЕНОЧНЫЙ ЛИСТ РЕЙТИНГА РЕЗУЛЬТАТИВНОСТИ ОБРАЗОВАТЕЛЬНЫХ ПРОГРАММ ЦЕНТРОВ ГРАЖДАНСКОГО ОБРАЗОВАНИЯ 2012-2013
A2: первый | C2: =SUM(I13:I22) -> 19
A3: второй | C3: =SUM(I23:I38) -> 19
A4: третий | C4: =SUM(I39:I41,I43:I46,I48:I51,I53:I62,I64:I67) -> 66.48 | D4: МБОУ ДОД "ЦДОД" г.Стрежевой
A5: общее | C5: =SUM(C2:C4) -> 104.48 | D5: Центр гражданского образования "Новое поколение"
A6: 1 | C6: =C5*A6 -> 104.48 | D6: Образовательная программа "Новое поколение"
A7: Общее количество слушателей образовательной Программы | H7: 253 | I7: человек
A8: Количество педагогических работников | H8: 6 | I8: человек
A9: Количество консультантов из числа опытных старшеклассников, выпускников Центра | H9: 0 | I9: человек
A10: Количество привлеченных специалистов | H10: 11 | I10: человек
A11: Продолжительность образовательной Программы | H11: 860 | I11: часов
A12: № | B12: Направ-ление | C12: Критерии | E12: Значение критерия | F12: Единица измерения | G12: Значение в единицах измерения | H12: Система оценки | I12: Рейтинговое значение
A13: 1 | B13: Образовательная программа | C13: адаптированность | D13: продолжительность образовательной Программы | E13: количество часов | G13: =H11 -> 860 | H13: 18-24 + 1б, 25-48 + 2б, более 48 + 3б | I13: =IF($G$13>17,1,0)+IF($G$13>24,1,0)+IF($G$13>48,1,0) -> 3
A14: 2 | D14: наличие модулей в образовательной Программе для разновозрастных групп | E14: для обучающихся = 1, для обучающихся и взрослых = 2 | G14: 1 | H14: 1 + 1б, 2 + 2б | I14: =IF(G14=1,1,0)+IF(G14=2,2,0) -> 1
A15: 3 | D15: наличие в образовательной Программе активных и интерактивных форм обучения | E15: менее 50% занятий = 1, более 50% занятий = 2 | G15: 2 | H15: 1 + 1б, 2 + 2б | I15: =IF(G15=1,1,0)+IF(G15=2,2,0) -> 2
A16: 4 | D16: преемственность образовательных Программ из года в год | E16: если существует = 1 | G16: 1 | H16: да + 1б | I16: =IF(G16=1,1,0) -> 1
A17: 5 | C17: доступность | D17: наличие модулей, предложенных слушателям на выбор | E17: если 2 модуля = 1, 3 и более модулей = 2 | G17: 2 | H17: 1 + 1б, 2 + 2б | I17: =IF(G17=1,1,0)+IF(G17=2,2,0) -> 2
A18: 6 | D18: проведение мониторинга уровня сформированности ключевых компетентностей | E18: если да = 1 | G18: 1 | H18: да + 3б | I18: =IF(G18=1,3,0) -> 3
A19: 7 | D19: программа реализуется в сетевом взаимодействии с другими Центрами | E19: если да = 1 | G19: 1 | H19: да + 2б | I19: =IF(G19=1,2,0) -> 2
A20: 8 | D20: доля слушателей, привлеченных из других ОУ | E20: количество | G20: 253 | H20: 100% + 3б | I20: =ROUND((G20/H7*3),1) -> 3
A21: 9 | C21: полнота реализации | D21: Программа реализуется в полном объеме | E21: если да = 1 | G21: 1 | H21: да + 1,5б, нет + 1б | I21: =IF(G21=1,1.5,1) -> 1.5
A22: 10 | D22: Программа изменилась при лучших условиях | E22: если да = 1 | G22: 1 | H22: да + 0,5б | I22: =IF(G22=1,0.5,0) -> 0.5
A23: 11 | B23: Организация образовательного процесса | C23: кадровое обеспечение | D23: укомплектованность преподавательского состава в соответствии с Программой | E23: состав полностью укомплектован = 1 | G23: 1 | H23: да + 2б, нет + 1б | I23: =IF(G23=1,2,1) -> 2
A24: 12 | D24: подготовка преподавателей по теме Программы | E24: количество | G24: 6 | H24: 100% + 2б | I24: =ROUND((G24/(H8+H9+H10)*2),1) -> 0.7
A25: 13 | D25: привлечение специалистов из профессионального сообщества | E25: количество | G25: =H10 -> 11 | H25: 100% + 2б | I25: =ROUND((G25/(H9+H10+H8)*2),1) -> 1.3
A26: 14 | D26: привлечение консультантов из числа обучающихся, выпускников | E26: количество | G26: =H9 -> 0 | H26: 100% + 2б | I26: =ROUND((G26/(H10+H9+H8)*2),1) -> 0
A27: 15 | C27: материально-техническое обеспечение | D27: наличие достаточной материальной базы для проведения знаний | E27: если да = 1 | G27: 1 | H27: да + 2б, нет + 1б | I27: =IF(G27=1,2,1) -> 2
A28: 16 | D28: использование материальной базы иных организаций | E28: если да = 1 | G28: 1 | H28: да + 2б | I28: =IF(G28=1,2,0) -> 2
A29: 17 | D29: наличие оборудованных рабочих мест для слушателей и преподавателей | E29: если да = 1, только преподавателей = 2 | G29: 1 | H29: 1 + 1б, 2 + 0,5б | I29: =IF(G29=1,1,0)+IF(G29=2,0.5,0) -> 1
A30: 18 | C30: информационно-технологическое обеспечение | D30: наличие страницы Центра на сайте образовательного учреждения | E30: если да = 1 | G30: 1 | H30: да + 1б | I30: =IF(G30=1,1,0) -> 1
A31: 19 | D31: регулярность обновления страницы Центра на сайте | E31: более 1 раза в месяц = 1, реже = 2 | G31: 1 | H31: 1 + 1б, 2 + 0,5б | I31: =IF(G31=1,1,0)+IF(G31=2,0.5,0) -> 1
A32: 20 | D32: использование доступа в интернет преподавателями и слушателями | E32: если да = 1, только преподавателями = 2 | G32: 1 | H32: 1 + 1б, 2 + 0,5б | I32: =IF(G32=1,1,0)+IF(G32=2,0.5,0) -> 1
A33: 21 | D33: наличие методических материалов Центра на сайте ОУ | E33: если да = 1 | G33: 1 | H33: да + 1б | I33: =IF(G33=1,1,0) -> 1
A34: 22 | D34: наличие Совета Центра | E34: если да = 1 | G34: 1 | H34: да + 0,5б | I34: =IF(G34=1,0.5,0) -> 0.5
A35: 23 | D35: наличие утвержденного положения о деятельности Центра | E35: если да = 1 | G35: 1 | H35: да + 0,5б | I35: =IF(G35=1,0.5,0) -> 0.5
A36: 24 | D36: наличие оформленных договоров с социальными партнерами | E36: если да = 1 | G36: 1 | H36: да + 1б | I36: =IF(G36=1,1,0) -> 1
A37: 25 | C37: учебно-методическое обеспечение | D37: обеспеченность слушателей учебниками, справочной литературой | E37: полное обеспечение = 1, частичное = 2 | G37: 1 | H37: 1 + 2б, 2 + 1б | I37: =IF(G37=1,2,0)+IF(G37=2,1,0) -> 2
A38: 26 | D38: обеспеченность преподавателей методической литературой, программными средствами обучения | E38: полное обеспечение = 1, частичное = 2 | G38: 1 | H38: 1 + 2б, 2 + 1б | I38: =IF(G38=1,2,0)+IF(G38=2,1,0) -> 2
A39: 27 | B39: Результаты образовательной деятельности | C39: уровень и качество общеобразовательной подготовки слушателей | D39: слушатели, применившие полученную информацию на практике | E39: количество | G39: 253 | H39: 100% + 2б | I39: =ROUND(G39/H7*2,1) -> 2
A40: 28 | D40: слушатели, освоившие программу и получившие удостоверение | E40: количество | G40: 26 | H40: 100% + 4б | I40: =ROUND(G40/$H$7*4,1) -> 0.4
A41: 29 | D41: слушатели, получившие сертификат | E41: количество | G41: 227 | H41: 100% + 1б | I41: =ROUND(G41/H7*1,1) -> 0.9
A42: 30 | C42: сформированность ключевых компетентностей слушателей | D42: слушатели, имеющие документально подтвержденные достижения по теме Программы:
D43: - на школьном уровне | E43: количество | G43: 253 | H43: 100% + 2б | I43: =ROUND(G43/$H$7*2,1) -> 2
D44: - на муниципальном уровне | E44: количество | G44: 253 | H44: 100% + 3б | I44: =ROUND(G44/$H$7*3,1) -> 3
D45: - на региональном уровне | E45: количество | G45: 171 | H45: 100% + 4б | I45: =ROUND(G45/$H$7*4,1) -> 2.7
D46: - на федеральном и международном уровнях | E46: количество | G46: 146 | H46: 100% + 5б | I46: =ROUND(G46/$H$7*5,1) -> 2.9
A47: 31 | C47: уровень обобщения и представления опыта деятельности Центра по теме Программы | D47: публичное представление промежуточных результатов реализации образовательной Программы:
D48: - на школьном уровне | E48: количество | G48: 6 | H48: за 1 + 0,1б | I48: =G48*0.1 -> 0.6
D49: - на муниципальном уровне | E49: количество | G49: 20 | H49: за 1 + 0,2б | I49: =G49*0.2 -> 4
D50: - на региональном уровне | E50: количество | G50: 6 | H50: за 1 + 0,3б | I50: =G50*0.3 -> 1.8
D51: - на федеральном и международном уровнях | E51: количество | G51: 4 | H51: за 1 + 0,5б | I51: =G51*0.4 -> 1.6
A52: 32 | D52: организация мероприятий, семинаров различного уровня по теме образовательной Программы:
D53: - на муниципальном уровне | E53: количество | G53: 20 | H53: за 1 + 0,3б | I53: =G53*0.3 -> 6
D54: - на региональном уровне | E54: количество | G54: 6 | H54: за 1 + 0,5б | I54: =G54*0.5 -> 3
D55: - на федеральном и международном уровнях | E55: количество | G55: 1 | H55: за 1 + 0,7б | I55: =G55*0.7 -> 0.7
A56: 33 | D56: внешкольная экспертная деятельность преподавателей Центра по теме Программы | E56: количество часов | G56: 184 | H56: за 100ч + 2б | I56: =G56*0.02 -> 3.68
A57: 34 | D57: наличие публикаций в методических изданиях по теме Программы | E57: количество страниц А4, интервал 1,5, шрифт 14 | G57: 265 | H57: за 24 стр. + 2б | I57: =ROUND(G57*2/24,1) -> 22.1
A58: 35 | D58: количество публикаций в СМИ муниципального и регионального уровня по теме Программы | E58: количество статей | G58: 23 | H58: за 1 ст. + 0,1б | I58: =G58*0.1 -> 2.3
A59: 36 | C59: уровень организации и степень достижения целей и задач инновационной деятельности | D59: наличие рецензии на образовательную Программу | E59: если да = 1 | G59: 1 | H59: да + 2б | I59: =IF(G59=1,2,0) -> 2
A60: 37 | D60: Программа Центра является частью программы развития ОУ | E60: если да = 1 | G60: 1 | H60: да + 1б | I60: =IF(G60=1,1,0) -> 1
A61: 38 | D61: Программа Центра является частью муниципальной программы развития | E61: если да = 1 | G61: 1 | H61: да + 2б | I61: =IF(G61=1,2,0) -> 2
A62: 39 | D62: наличие общественной экспертизы результатов реализации образовательной Программы | E62: если да = 1 | G62: 1 | H62: да + 1б | I62: =IF(G62=1,1,0) -> 1
A63: 40 | D63: публичное представление результатов инновационной деятельности на научно-практических конференциях
D64: - на школьном уровне | E64: если да = 1 | G64: 1 | H64: да + 0,3б | I64: =IF(G64=1,0.3,0) -> 0.3
D65: - на муниципальном уровне | E65: если да = 1 | G65: 1 | H65: да + 0,5б | I65: =IF(G65=1,0.5,0) -> 0.5
D66: - на региональном уровне | E66: если да = 1 | G66: 0 | H66: да + 1б | I66: =IF(G66=1,1,0) -> 0
D67: - на федеральном и международном уровнях | E67: если да = 1 | G67: 0 | H67: да + 2б | I67: =IF(G67=1,2,0) -> 0
A68: Общее рейтинговое значение | I68: =SUM(I13:I41,I43:I46,I48:I51,I53:I62,I64:I67) -> 104.48

Sheet ЗС Сам
A1: РЕЙТИНГ | D1: ОЦЕНОЧНЫЙ ЛИСТ РЕЙТИНГА РЕЗУЛЬТАТИВНОСТИ ОБРАЗОВАТЕЛЬНЫХ ПРОГРАММ ЦЕНТРОВ ГРАЖДАНСКОГО ОБРАЗОВАНИЯ 2012-2013
A2: первый | C2: =SUM(I13:I22) -> 13
A3: второй | C3: =SUM(I23:I38) -> 18.4
A4: третий | C4: =SUM(I39:I41,I43:I46,I48:I51,I53:I62,I64:I67) -> 21.1 | D4: МБОУ "Самусьский лицей"
A5: общее | C5: =SUM(C2:C4) -> 52.5 | D5: Центр гражданского образования " Твой выбор - твой шанс"
A6: 1.17 | C6: =C5*A6 -> 61.425 | D6: Образовательная программа "Твой выбор - твой шанс"
A7: Общее количество слушателей образовательной Программы | H7: 12 | I7: человек
A8: Количество педагогических работников | H8: 3 | I8: человек
A9: Количество консультантов из числа опытных старшеклассников, выпускников Центра | H9: 8 | I9: человек
A10: Количество привлеченных специалистов | H10: 0 | I10: человек
A11: Продолжительность образовательной Программы | H11: 32 | I11: часов
A12: № | B12: Направ-ление | C12: Критерии | E12: Значение критерия | F12: Единица измерения | G12: Значение в единицах измерения | H12: Система оценки | I12: Рейтинговое значение
A13: 1 | B13: Образовательная программа | C13: адаптированность | D13: продолжительность образовательной Программы | E13: количество часов | G13: =H11 -> 32 | H13: 18-24 + 1б, 25-48 + 2б, более 48 + 3б | I13: =IF($G$13>17,1,0)+IF($G$13>24,1,0)+IF($G$13>48,1,0) -> 2
A14: 2 | D14: наличие модулей в образовательной Программе для разновозрастных групп | E14: для обучающихся = 1, для обучающихся и взрослых = 2 | G14: 1 | H14: 1 + 1б, 2 + 2б | I14: =IF(G14=1,1,0)+IF(G14=2,2,0) -> 1
A15: 3 | D15: наличие в образовательной Программе активных и интерактивных форм обучения | E15: менее 50% занятий = 1, более 50% занятий = 2 | G15: 2 | H15: 1 + 1б, 2 + 2б | I15: =IF(G15=1,1,0)+IF(G15=2,2,0) -> 2
A16: 4 | D16: преемственность образовательных Программ из года в год | E16: если существует = 1 | G16: 1 | H16: да + 1б | I16: =IF(G16=1,1,0) -> 1
A17: 5 | C17: доступность | D17: наличие модулей, предложенных слушателям на выбор | E17: если 2 модуля = 1, 3 и более модулей = 2 | G17: 0 | H17: 1 + 1б, 2 + 2б | I17: =IF(G17=1,1,0)+IF(G17=2,2,0) -> 0
A18: 6 | D18: проведение мониторинга уровня сформированности ключевых компетентностей | E18: если да = 1 | G18: 1 | H18: да + 3б | I18: =IF(G18=1,3,0) -> 3
A19: 7 | D19: программа реализуется в сетевом взаимодействии с другими Центрами | E19: если да = 1 | G19: 1 | H19: да + 2б | I19: =IF(G19=1,2,0) -> 2
A20: 8 | D20: доля слушателей, привлеченных из других ОУ | E20: количество | G20: 0 | H20: 100% + 3б | I20: =ROUND((G20/H7*3),1) -> 0
A21: 9 | C21: полнота реализации | D21: Программа реализуется в полном объеме | E21: если да = 1 | G21: 1 | H21: да + 1,5б, нет + 1б | I21: =IF(G21=1,1.5,1) -> 1.5
A22: 10 | D22: Программа изменилась при лучших условиях | E22: если да = 1 | G22: 1 | H22: да + 0,5б | I22: =IF(G22=1,0.5,0) -> 0.5
A23: 11 | B23: Организация образовательного процесса | C23: кадровое обеспечение | D23: укомплектованность преподавательского состава в соответствии с Программой | E23: состав полностью укомплектован = 1 | G23: 1 | H23: да + 2б, нет + 1б | I23: =IF(G23=1,2,1) -> 2
A24: 12 | D24: подготовка преподавателей по теме Программы | E24: количество | G24: 2 | H24: 100% + 2б | I24: =ROUND((G24/(H8+H9+H10)*2),1) -> 0.4
A25: 13 | D25: привлечение специалистов из профессионального сообщества | E25: количество | G25: =H10 -> 0 | H25: 100% + 2б | I25: =ROUND((G25/(H9+H10+H8)*2),1) -> 0
A26: 14 | D26: привлечение консультантов из числа обучающихся, выпускников | E26: количество | G26: =H9 -> 8 | H26: 100% + 2б | I26: =ROUND((G26/(H10+H9+H8)*2),1) -> 1.5
A27: 15 | C27: материально-техническое обеспечение | D27: наличие достаточной материальной базы для проведения знаний | E27: если да = 1 | G27: 1 | H27: да + 2б, нет + 1б | I27: =IF(G27=1,2,1) -> 2
A28: 16 | D28: использование материальной базы иных организаций | E28: если да = 1 | G28: 1 | H28: да + 2б | I28: =IF(G28=1,2,0) -> 2
A29: 17 | D29: наличие оборудованных рабочих мест для слушателей и преподавателей | E29: если да = 1, только преподавателей = 2 | G29: 1 | H29: 1 + 1б, 2 + 0,5б | I29: =IF(G29=1,1,0)+IF(G29=2,0.5,0) -> 1
A30: 18 | C30: информационно-технологическое обеспечение | D30: наличие страницы Центра на сайте образовательного учреждения | E30: если да = 1 | G30: 1 | H30: да + 1б | I30: =IF(G30=1,1,0) -> 1
A31: 19 | D31: регулярность обновления страницы Центра на сайте | E31: более 1 раза в месяц = 1, реже = 2 | G31: 2 | H31: 1 + 1б, 2 + 0,5б | I31: =IF(G31=1,1,0)+IF(G31=2,0.5,0) -> 0.5
A32: 20 | D32: использование доступа в интернет преподавателями и слушателями | E32: если да = 1, только преподавателями = 2 | G32: 1 | H32: 1 + 1б, 2 + 0,5б | I32: =IF(G32=1,1,0)+IF(G32=2,0.5,0) -> 1
A33: 21 | D33: наличие методических материалов Центра на сайте ОУ | E33: если да = 1 | G33: 1 | H33: да + 1б | I33: =IF(G33=1,1,0) -> 1
A34: 22 | D34: наличие Совета Центра | E34: если да = 1 | G34: 1 | H34: да + 0,5б | I34: =IF(G34=1,0.5,0) -> 0.5
A35: 23 | D35: наличие утвержденного положения о деятельности Центра | E35: если да = 1 | G35: 1 | H35: да + 0,5б | I35: =IF(G35=1,0.5,0) -> 0.5
A36: 24 | D36: наличие оформленных договоров с социальными партнерами | E36: если да = 1 | G36: 1 | H36: да + 1б | I36: =IF(G36=1,1,0) -> 1
A37: 25 | C37: учебно-методическое обеспечение | D37: обеспеченность слушателей учебниками, справочной литературой | E37: полное обеспечение = 1, частичное = 2 | G37: 1 | H37: 1 + 2б, 2 + 1б | I37: =IF(G37=1,2,0)+IF(G37=2,1,0) -> 2
A38: 26 | D38: обеспеченность преподавателей методической литературой, программными средствами обучения | E38: полное обеспечение = 1, частичное = 2 | G38: 1 | H38: 1 + 2б, 2 + 1б | I38: =IF(G38=1,2,0)+IF(G38=2,1,0) -> 2
A39: 27 | B39: Результаты образовательной деятельности | C39: уровень и качество общеобразовательной подготовки слушателей | D39: слушатели, применившие полученную информацию на практике | E39: количество | G39: 12 | H39: 100% + 2б | I39: =ROUND(G39/H7*2,1) -> 2
A40: 28 | D40: слушатели, освоившие программу и получившие удостоверение | E40: количество | G40: 10 | H40: 100% + 4б | I40: =ROUND(G40/$H$7*4,1) -> 3.3
A41: 29 | D41: слушатели, получившие сертификат | E41: количество | G41: 2 | H41: 100% + 1б | I41: =ROUND(G41/H7*1,1) -> 0.2
A42: 30 | C42: сформированность ключевых компетентностей слушателей | D42: слушатели, имеющие документально подтвержденные достижения по теме Программы:
D43: - на школьном уровне | E43: количество | G43: 6 | H43: 100% + 2б | I43: =ROUND(G43/$H$7*2,1) -> 1
D44: - на муниципальном уровне | E44: количество | G44: 3 | H44: 100% + 3б | I44: =ROUND(G44/$H$7*3,1) -> 0.8
D45: - на региональном уровне | E45: количество | G45: 12 | H45: 100% + 4б | I45: =ROUND(G45/$H$7*4,1) -> 4
D46: - на федеральном и международном уровнях | E46: количество | G46: 3 | H46: 100% + 5б | I46: =ROUND(G46/$H$7*5,1) -> 1.3
A47: 31 | C47: уровень обобщения и представления опыта деятельности Центра по теме Программы | D47: публичное представление промежуточных результатов реализации образовательной Программы:
D48: - на школьном уровне | E48: количество | G48: 2 | H48: за 1 + 0,1б | I48: =G48*0.1 -> 0.2
D49: - на муниципальном уровне | E49: количество | G49: 2 | H49: за 1 + 0,2б | I49: =G49*0.2 -> 0.4
D50: - на региональном уровне | E50: количество | G50: 0 | H50: за 1 + 0,3б | I50: =G50*0.3 -> 0
D51: - на федеральном и международном уровнях | E51: количество | H51: за 1 + 0,5б | I51: =G51*0.4 -> 0
A52: 32 | D52: организация мероприятий, семинаров различного уровня по теме образовательной Программы:
D53: - на муниципальном уровне | E53: количество | G53: 1 | H53: за 1 + 0,3б | I53: =G53*0.3 -> 0.3
D54: - на региональном уровне | E54: количество | G54: 2 | H54: за 1 + 0,5б | I54: =G54*0.5 -> 1
D55: - на федеральном и международном уровнях | E55: количество | H55: за 1 + 0,7б | I55: =G55*0.7 -> 0
A56: 33 | D56: внешкольная экспертная деятельность преподавателей Центра по теме Программы | E56: количество часов | G56: 0 | H56: за 100ч + 2б | I56: =G56*0.02 -> 0
A57: 34 | D57: наличие публикаций в методических изданиях по теме Программы | E57: количество страниц А4, интервал 1,5, шрифт 14 | G57: 1 | H57: за 24 стр. + 2б | I57: =ROUND(G57*2/24,1) -> 0.1
A58: 35 | D58: количество публикаций в СМИ муниципального и регионального уровня по теме Программы | E58: количество статей | G58: 0 | H58: за 1 ст. + 0,1б | I58: =G58*0.1 -> 0
A59: 36 | C59: уровень организации и степень достижения целей и задач инновационной деятельности | D59: наличие рецензии на образовательную Программу | E59: если да = 1 | G59: 1 | H59: да + 2б | I59: =IF(G59=1,2,0) -> 2
A60: 37 | D60: Программа Центра является частью программы развития ОУ | E60: если да = 1 | G60: 1 | H60: да + 1б | I60: =IF(G60=1,1,0) -> 1
A61: 38 | D61: Программа Центра является частью муниципальной программы развития | E61: если да = 1 | G61: 1 | H61: да + 2б | I61: =IF(G61=1,2,0) -> 2
A62: 39 | D62: наличие общественной экспертизы результатов реализации образовательной Программы | E62: если да = 1 | H62: да + 1б | I62: =IF(G62=1,1,0) -> 0
A63: 40 | D63: публичное представление результатов инновационной деятельности на научно-практических конференциях
D64: - на школьном уровне | E64: если да = 1 | G64: 0 | H64: да + 0,3б | I64: =IF(G64=1,0.3,0) -> 0
D65: - на муниципальном уровне | E65: если да = 1 | G65: 1 | H65: да + 0,5б | I65: =IF(G65=1,0.5,0) -> 0.5
D66: - на региональном уровне | E66: если да = 1 | G66: 1 | H66: да + 1б | I66: =IF(G66=1,1,0) -> 1
D67: - на федеральном и международном уровнях | E67: если да = 1 | H67: да + 2б | I67: =IF(G67=1,2,0) -> 0
A68: Общее рейтинговое значение | I68: =SUM(I13:I41,I43:I46,I48:I51,I53:I62,I64:I67) -> 52.5

Sheet ЗС №86-87
A1: РЕЙТИНГ | D1: ОЦЕНОЧНЫЙ ЛИСТ РЕЙТИНГА РЕЗУЛЬТАТИВНОСТИ ОБРАЗОВАТЕЛЬНЫХ ПРОГРАММ ЦЕНТРОВ ГРАЖДАНСКОГО ОБРАЗОВАНИЯ 2012-2013
A2: первый | C2: =SUM(I13:I22) -> 18.9
A3: второй | C3: =SUM(I23:I38) -> 22
A4: третий | C4: =SUM(I39:I41,I43:I46,I48:I51,I53:I62,I64:I67) -> 31 | D4: МБОУ "СОШ №86" МБОУ "СОШ №89"
A5: общее | C5: =SUM(C2:C4) -> 71.9 | D5: Центр гражданского образования "Школа социального успеха"
A6: 1.04 | C6: =C5*A6 -> 74.776 | D6: Образовательная программа "Ступени успеха"
A7: Общее количество слушателей образовательной Программы | H7: 73 | I7: человек
A8: Количество педагогических работников | H8: 4 | I8: человек
A9: Количество консультантов из числа опытных старшеклассников, выпускников Центра | H9: 10 | I9: человек
A10: Количество привлеченных специалистов | H10: 6 | I10: человек
A11: Продолжительность образовательной Программы | H11: 72 | I11: часов
A12: № | B12: Направ-ление | C12: Критерии | E12: Значение критерия | F12: Единица измерения | G12: Значение в единицах измерения | H12: Система оценки | I12: Рейтинговое значение
A13: 1 | B13: Образовательная программа | C13: адаптированность | D13: продолжительность образовательной Программы | E13: количество часов | G13: =H11 -> 72 | H13: 18-24 + 1б, 25-48 + 2б, более 48 + 3б | I13: =IF($G$13>17,1,0)+IF($G$13>24,1,0)+IF($G$13>48,1,0) -> 3
A14: 2 | D14: наличие модулей в образовательной Программе для разновозрастных групп | E14: для обучающихся = 1, для обучающихся и взрослых = 2 | G14: 2 | H14: 1 + 1б, 2 + 2б | I14: =IF(G14=1,1,0)+IF(G14=2,2,0) -> 2
A15: 3 | D15: наличие в образовательной Программе активных и интерактивных форм обучения | E15: менее 50% занятий = 1, более 50% занятий = 2 | G15: 2 | H15: 1 + 1б, 2 + 2б | I15: =IF(G15=1,1,0)+IF(G15=2,2,0) -> 2
A16: 4 | D16: преемственность образовательных Программ из года в год | E16: если существует = 1 | G16: 1 | H16: да + 1б | I16: =IF(G16=1,1,0) -> 1
A17: 5 | C17: доступность | D17: наличие модулей, предложенных слушателям на выбор | E17: если 2 модуля = 1, 3 и более модулей = 2 | G17: 2 | H17: 1 + 1б, 2 + 2б | I17: =IF(G17=1,1,0)+IF(G17=2,2,0) -> 2
A18: 6 | D18: проведение мониторинга уровня сформированности ключевых компетентностей | E18: если да = 1 | G18: 1 | H18: да + 3б | I18: =IF(G18=1,3,0) -> 3
A19: 7 | D19: программа реализуется в сетевом взаимодействии с другими Центрами | E19: если да = 1 | G19: 1 | H19: да + 2б | I19: =IF(G19=1,2,0) -> 2
A20: 8 | D20: доля слушателей, привлеченных из других ОУ | E20: количество | G20: 47 | H20: 100% + 3б | I20: =ROUND((G20/H7*3),1) -> 1.9
A21: 9 | C21: полнота реализации | D21: Программа реализуется в полном объеме | E21: если да = 1 | G21: 1 | H21: да + 1,5б, нет + 1б | I21: =IF(G21=1,1.5,1) -> 1.5
A22: 10 | D22: Программа изменилась при лучших условиях | E22: если да = 1 | G22: 1 | H22: да + 0,5б | I22: =IF(G22=1,0.5,0) -> 0.5
A23: 11 | B23: Организация образовательного процесса | C23: кадровое обеспечение | D23: укомплектованность преподавательского состава в соответствии с Программой | E23: состав полностью укомплектован = 1 | G23: 1 | H23: да + 2б, нет + 1б | I23: =IF(G23=1,2,1) -> 2
A24: 12 | D24: подготовка преподавателей по теме Программы | E24: количество | G24: 34 | H24: 100% + 2б | I24: =ROUND((G24/(H8+H9+H10)*2),1) -> 3.4
A25: 13 | D25: привлечение специалистов из профессионального сообщества | E25: количество | G25: =H10 -> 6 | H25: 100% + 2б | I25: =ROUND((G25/(H9+H10+H8)*2),1) -> 0.6
A26: 14 | D26: привлечение консультантов из числа обучающихся, выпускников | E26: количество | G26: =H9 -> 10 | H26: 100% + 2б | I26: =ROUND((G26/(H10+H9+H8)*2),1) -> 1
A27: 15 | C27: материально-техническое обеспечение | D27: наличие достаточной материальной базы для проведения знаний | E27: если да = 1 | G27: 1 | H27: да + 2б, нет + 1б | I27: =IF(G27=1,2,1) -> 2
A28: 16 | D28: использование материальной базы иных организаций | E28: если да = 1 | G28: 1 | H28: да + 2б | I28: =IF(G28=1,2,0) -> 2
A29: 17 | D29: наличие оборудованных рабочих мест для слушателей и преподавателей | E29: если да = 1, только преподавателей = 2 | G29: 1 | H29: 1 + 1б, 2 + 0,5б | I29: =IF(G29=1,1,0)+IF(G29=2,0.5,0) -> 1
A30: 18 | C30: информационно-технологическое обеспечение | D30: наличие страницы Центра на сайте образовательного учреждения | E30: если да = 1 | G30: 1 | H30: да + 1б | I30: =IF(G30=1,1,0) -> 1
A31: 19 | D31: регулярность обновления страницы Центра на сайте | E31: более 1 раза в месяц = 1, реже = 2 | G31: 1 | H31: 1 + 1б, 2 + 0,5б | I31: =IF(G31=1,1,0)+IF(G31=2,0.5,0) -> 1
A32: 20 | D32: использование доступа в интернет преподавателями и слушателями | E32: если да = 1, только преподавателями = 2 | G32: 1 | H32: 1 + 1б, 2 + 0,5б | I32: =IF(G32=1,1,0)+IF(G32=2,0.5,0) -> 1
A33: 21 | D33: наличие методических материалов Центра на сайте ОУ | E33: если да = 1 | G33: 1 | H33: да + 1б | I33: =IF(G33=1,1,0) -> 1
A34: 22 | D34: наличие Совета Центра | E34: если да = 1 | G34: 1 | H34: да + 0,5б | I34: =IF(G34=1,0.5,0) -> 0.5
A35: 23 | D35: наличие утвержденного положения о деятельности Центра | E35: если да = 1 | G35: 1 | H35: да + 0,5б | I35: =IF(G35=1,0.5,0) -> 0.5
A36: 24 | D36: наличие оформленных договоров с социальными партнерами | E36: если да = 1 | G36: 1 | H36: да + 1б | I36: =IF(G36=1,1,0) -> 1
A37: 25 | C37: учебно-методическое обеспечение | D37: обеспеченность слушателей учебниками, справочной литературой | E37: полное обеспечение = 1, частичное = 2 | G37: 1 | H37: 1 + 2б, 2 + 1б | I37: =IF(G37=1,2,0)+IF(G37=2,1,0) -> 2
A38: 26 | D38: обеспеченность преподавателей методической литературой, программными средствами обучения | E38: полное обеспечение = 1, частичное = 2 | G38: 1 | H38: 1 + 2б, 2 + 1б | I38: =IF(G38=1,2,0)+IF(G38=2,1,0) -> 2
A39: 27 | B39: Результаты образовательной деятельности | C39: уровень и качество общеобразовательной подготовки слушателей | D39: слушатели, применившие полученную информацию на практике | E39: количество | G39: 73 | H39: 100% + 2б | I39: =ROUND(G39/H7*2,1) -> 2
A40: 28 | D40: слушатели, освоившие программу и получившие удостоверение | E40: количество | G40: 34 | H40: 100% + 4б | I40: =ROUND(G40/$H$7*4,1) -> 1.9
A41: 29 | D41: слушатели, получившие сертификат | E41: количество | G41: 39 | H41: 100% + 1б | I41: =ROUND(G41/H7*1,1) -> 0.5
A42: 30 | C42: сформированность ключевых компетентностей слушателей | D42: слушатели, имеющие документально подтвержденные достижения по теме Программы:
D43: - на школьном уровне | E43: количество | G43: 47 | H43: 100% + 2б | I43: =ROUND(G43/$H$7*2,1) -> 1.3
D44: - на муниципальном уровне | E44: количество | G44: 51 | H44: 100% + 3б | I44: =ROUND(G44/$H$7*3,1) -> 2.1
D45: - на региональном уровне | E45: количество | G45: 19 | H45: 100% + 4б | I45: =ROUND(G45/$H$7*4,1) -> 1
D46: - на федеральном и международном уровнях | E46: количество | G46: 38 | H46: 100% + 5б | I46: =ROUND(G46/$H$7*5,1) -> 2.6
A47: 31 | C47: уровень обобщения и представления опыта деятельности Центра по теме Программы | D47: публичное представление промежуточных результатов реализации образовательной Программы:
D48: - на школьном уровне | E48: количество | G48: 3 | H48: за 1 + 0,1б | I48: =G48*0.1 -> 0.3
D49: - на муниципальном уровне | E49: количество | G49: 2 | H49: за 1 + 0,2б | I49: =G49*0.2 -> 0.4
D50: - на региональном уровне | E50: количество | G50: 2 | H50: за 1 + 0,3б | I50: =G50*0.3 -> 0.6
D51: - на федеральном и международном уровнях | E51: количество | G51: 3 | H51: за 1 + 0,5б | I51: =G51*0.4 -> 1.2
A52: 32 | D52: организация мероприятий, семинаров различного уровня по теме образовательной Программы:
D53: - на муниципальном уровне | E53: количество | G53: 2 | H53: за 1 + 0,3б | I53: =G53*0.3 -> 0.6
D54: - на региональном уровне | E54: количество | G54: 3 | H54: за 1 + 0,5б | I54: =G54*0.5 -> 1.5
D55: - на федеральном и международном уровнях | E55: количество | G55: 1 | H55: за 1 + 0,7б | I55: =G55*0.7 -> 0.7
A56: 33 | D56: внешкольная экспертная деятельность преподавателей Центра по теме Программы | E56: количество часов | G56: 60 | H56: за 100ч + 2б | I56: =G56*0.02 -> 1.2
A57: 34 | D57: наличие публикаций в методических изданиях по теме Программы | E57: количество страниц А4, интервал 1,5, шрифт 14 | G57: 34 | H57: за 24 стр. + 2б | I57: =ROUND(G57*2/24,1) -> 2.8
A58: 35 | D58: количество публикаций в СМИ муниципального и регионального уровня по теме Программы | E58: количество статей | G58: 5 | H58: за 1 ст. + 0,1б | I58: =G58*0.1 -> 0.5
A59: 36 | C59: уровень организации и степень достижения целей и задач инновационной деятельности | D59: наличие рецензии на образовательную Программу | E59: если да = 1 | G59: 1 | H59: да + 2б | I59: =IF(G59=1,2,0) -> 2
A60: 37 | D60: Программа Центра является частью программы развития ОУ | E60: если да = 1 | G60: 1 | H60: да + 1б | I60: =IF(G60=1,1,0) -> 1
A61: 38 | D61: Программа Центра является частью муниципальной программы развития | E61: если да = 1 | G61: 1 | H61: да + 2б | I61: =IF(G61=1,2,0) -> 2
A62: 39 | D62: наличие общественной экспертизы результатов реализации образовательной Программы | E62: если да = 1 | G62: 1 | H62: да + 1б | I62: =IF(G62=1,1,0) -> 1
A63: 40 | D63: публичное представление результатов инновационной деятельности на научно-практических конференциях
D64: - на школьном уровне | E64: если да = 1 | G64: 1 | H64: да + 0,3б | I64: =IF(G64=1,0.3,0) -> 0.3
D65: - на муниципальном уровне | E65: если да = 1 | G65: 1 | H65: да + 0,5б | I65: =IF(G65=1,0.5,0) -> 0.5
D66: - на региональном уровне | E66: если да = 1 | G66: 1 | H66: да + 1б | I66: =IF(G66=1,1,0) -> 1
D67: - на федеральном и международном уровнях | E67: если да = 1 | G67: 1 | H67: да + 2б | I67: =IF(G67=1,2,0) -> 2
A68: Общее рейтинговое значение | I68: =SUM(I13:I41,I43:I46,I48:I51,I53:I62,I64:I67) -> 71.9

Sheet ЗС №80
A1: РЕЙТИНГ | D1: ОЦЕНОЧНЫЙ ЛИСТ РЕЙТИНГА РЕЗУЛЬТАТИВНОСТИ ОБРАЗОВАТЕЛЬНЫХ ПРОГРАММ ЦЕНТРОВ ГРАЖДАНСКОГО ОБРАЗОВАНИЯ 2012-2013
A2: первый | C2: =SUM(I13:I22) -> 12
A3: второй | C3: =SUM(I23:I38) -> 18
A4: третий | C4: =SUM(I39:I41,I43:I46,I48:I51,I53:I62,I64:I67) -> 20.7 | D4: МАОУ "СОШ №80"
A5: общее | C5: =SUM(C2:C4) -> 50.7 | D5: Центр гражданского образования "Школа Роста"
A6: 1.04 | C6: =C5*A6 -> 52.728 | D6: Образовательная программа "Общее дело"
A7: Общее количество слушателей образовательной Программы | H7: 30 | I7: человек
A8: Количество педагогических работников | H8: 4 | I8: человек
A9: Количество консультантов из числа опытных старшеклассников, выпускников Центра | H9: 7 | I9: человек
A10: Количество привлеченных специалистов | H10: 0 | I10: человек
A11: Продолжительность образовательной Программы | H11: 18 | I11: часов
A12: № | B12: Направ-ление | C12: Критерии | E12: Значение критерия | F12: Единица измерения | G12: Значение в единицах измерения | H12: Система оценки | I12: Рейтинговое значение
A13: 1 | B13: Образовательная программа | C13: адаптированность | D13: продолжительность образовательной Программы | E13: количество часов | G13: =H11 -> 18 | H13: 18-24 + 1б, 25-48 + 2б, более 48 + 3б | I13: =IF($G$13>17,1,0)+IF($G$13>24,1,0)+IF($G$13>48,1,0) -> 1
A14: 2 | D14: наличие модулей в образовательной Программе для разновозрастных групп | E14: для обучающихся = 1, для обучающихся и взрослых = 2 | G14: 1 | H14: 1 + 1б, 2 + 2б | I14: =IF(G14=1,1,0)+IF(G14=2,2,0) -> 1
A15: 3 | D15: наличие в образовательной Программе активных и интерактивных форм обучения | E15: менее 50% занятий = 1, более 50% занятий = 2 | G15: 2 | H15: 1 + 1б, 2 + 2б | I15: =IF(G15=1,1,0)+IF(G15=2,2,0) -> 2
A16: 4 | D16: преемственность образовательных Программ из года в год | E16: если существует = 1 | G16: 1 | H16: да + 1б | I16: =IF(G16=1,1,0) -> 1
A17: 5 | C17: доступность | D17: наличие модулей, предложенных слушателям на выбор | E17: если 2 модуля = 1, 3 и более модулей = 2 | G17: 0 | H17: 1 + 1б, 2 + 2б | I17: =IF(G17=1,1,0)+IF(G17=2,2,0) -> 0
A18: 6 | D18: проведение мониторинга уровня сформированности ключевых компетентностей | E18: если да = 1 | G18: 1 | H18: да + 3б | I18: =IF(G18=1,3,0) -> 3
A19: 7 | D19: программа реализуется в сетевом взаимодействии с другими Центрами | E19: если да = 1 | G19: 1 | H19: да + 2б | I19: =IF(G19=1,2,0) -> 2
A20: 8 | D20: доля слушателей, привлеченных из других ОУ | E20: количество | G20: 0 | H20: 100% + 3б | I20: =ROUND((G20/H7*3),1) -> 0
A21: 9 | C21: полнота реализации | D21: Программа реализуется в полном объеме | E21: если да = 1 | G21: 1 | H21: да + 1,5б, нет + 1б | I21: =IF(G21=1,1.5,1) -> 1.5
A22: 10 | D22: Программа изменилась при лучших условиях | E22: если да = 1 | G22: 1 | H22: да + 0,5б | I22: =IF(G22=1,0.5,0) -> 0.5
A23: 11 | B23: Организация образовательного процесса | C23: кадровое обеспечение | D23: укомплектованность преподавательского состава в соответствии с Программой | E23: состав полностью укомплектован = 1 | G23: 1 | H23: да + 2б, нет + 1б | I23: =IF(G23=1,2,1) -> 2
A24: 12 | D24: подготовка преподавателей по теме Программы | E24: количество | G24: 1 | H24: 100% + 2б | I24: =ROUND((G24/(H8+H9+H10)*2),1) -> 0.2
A25: 13 | D25: привлечение специалистов из профессионального сообщества | E25: количество | G25: =H10 -> 0 | H25: 100% + 2б | I25: =ROUND((G25/(H9+H10+H8)*2),1) -> 0
A26: 14 | D26: привлечение консультантов из числа обучающихся, выпускников | E26: количество | G26: =H9 -> 7 | H26: 100% + 2б | I26: =ROUND((G26/(H10+H9+H8)*2),1) -> 1.3
A27: 15 | C27: материально-техническое обеспечение | D27: наличие достаточной материальной базы для проведения знаний | E27: если да = 1 | G27: 1 | H27: да + 2б, нет + 1б | I27: =IF(G27=1,2,1) -> 2
A28: 16 | D28: использование материальной базы иных организаций | E28: если да = 1 | G28: 1 | H28: да + 2б | I28: =IF(G28=1,2,0) -> 2
A29: 17 | D29: наличие оборудованных рабочих мест для слушателей и преподавателей | E29: если да = 1, только преподавателей = 2 | G29: 1 | H29: 1 + 1б, 2 + 0,5б | I29: =IF(G29=1,1,0)+IF(G29=2,0.5,0) -> 1
A30: 18 | C30: информационно-технологическое обеспечение | D30: наличие страницы Центра на сайте образовательного учреждения | E30: если да = 1 | G30: 1 | H30: да + 1б | I30: =IF(G30=1,1,0) -> 1
A31: 19 | D31: регулярность обновления страницы Центра на сайте | E31: более 1 раза в месяц = 1, реже = 2 | G31: 2 | H31: 1 + 1б, 2 + 0,5б | I31: =IF(G31=1,1,0)+IF(G31=2,0.5,0) -> 0.5
A32: 20 | D32: использование доступа в интернет преподавателями и слушателями | E32: если да = 1, только преподавателями = 2 | G32: 1 | H32: 1 + 1б, 2 + 0,5б | I32: =IF(G32=1,1,0)+IF(G32=2,0.5,0) -> 1
A33: 21 | D33: наличие методических материалов Центра на сайте ОУ | E33: если да = 1 | G33: 1 | H33: да + 1б | I33: =IF(G33=1,1,0) -> 1
A34: 22 | D34: наличие Совета Центра | E34: если да = 1 | G34: 1 | H34: да + 0,5б | I34: =IF(G34=1,0.5,0) -> 0.5
A35: 23 | D35: наличие утвержденного положения о деятельности Центра | E35: если да = 1 | G35: 1 | H35: да + 0,5б | I35: =IF(G35=1,0.5,0) -> 0.5
A36: 24 | D36: наличие оформленных договоров с социальными партнерами | E36: если да = 1 | G36: 1 | H36: да + 1б | I36: =IF(G36=1,1,0) -> 1
A37: 25 | C37: учебно-методическое обеспечение | D37: обеспеченность слушателей учебниками, справочной литературой | E37: полное обеспечение = 1, частичное = 2 | G37: 1 | H37: 1 + 2б, 2 + 1б | I37: =IF(G37=1,2,0)+IF(G37=2,1,0) -> 2
A38: 26 | D38: обеспеченность преподавателей методической литературой, программными средствами обучения | E38: полное обеспечение = 1, частичное = 2 | G38: 1 | H38: 1 + 2б, 2 + 1б | I38: =IF(G38=1,2,0)+IF(G38=2,1,0) -> 2
A39: 27 | B39: Результаты образовательной деятельности | C39: уровень и качество общеобразовательной подготовки слушателей | D39: слушатели, применившие полученную информацию на практике | E39: количество | G39: 30 | H39: 100% + 2б | I39: =ROUND(G39/H7*2,1) -> 2
A40: 28 | D40: слушатели, освоившие программу и получившие удостоверение | E40: количество | G40: 0 | H40: 100% + 4б | I40: =ROUND(G40/$H$7*4,1) -> 0
A41: 29 | D41: слушатели, получившие сертификат | E41: количество | G41: 30 | H41: 100% + 1б | I41: =ROUND(G41/H7*1,1) -> 1
A42: 30 | C42: сформированность ключевых компетентностей слушателей | D42: слушатели, имеющие документально подтвержденные достижения по теме Программы:
D43: - на школьном уровне | E43: количество | G43: 30 | H43: 100% + 2б | I43: =ROUND(G43/$H$7*2,1) -> 2
D44: - на муниципальном уровне | E44: количество | G44: 30 | H44: 100% + 3б | I44: =ROUND(G44/$H$7*3,1) -> 3
D45: - на региональном уровне | E45: количество | G45: 30 | H45: 100% + 4б | I45: =ROUND(G45/$H$7*4,1) -> 4
D46: - на федеральном и международном уровнях | E46: количество | G46: 0 | H46: 100% + 5б | I46: =ROUND(G46/$H$7*5,1) -> 0
A47: 31 | C47: уровень обобщения и представления опыта деятельности Центра по теме Программы | D47: публичное представление промежуточных результатов реализации образовательной Программы:
D48: - на школьном уровне | E48: количество | G48: 0 | H48: за 1 + 0,1б | I48: =G48*0.1 -> 0
D49: - на муниципальном уровне | E49: количество | G49: 2 | H49: за 1 + 0,2б | I49: =G49*0.2 -> 0.4
D50: - на региональном уровне | E50: количество | G50: 0 | H50: за 1 + 0,3б | I50: =G50*0.3 -> 0
D51: - на федеральном и международном уровнях | E51: количество | G51: 1 | H51: за 1 + 0,5б | I51: =G51*0.4 -> 0.4
A52: 32 | D52: организация мероприятий, семинаров различного уровня по теме образовательной Программы:
D53: - на муниципальном уровне | E53: количество | G53: 2 | H53: за 1 + 0,3б | I53: =G53*0.3 -> 0.6
D54: - на региональном уровне | E54: количество | G54: 1 | H54: за 1 + 0,5б | I54: =G54*0.5 -> 0.5
D55: - на федеральном и международном уровнях | E55: количество | G55: 0 | H55: за 1 + 0,7б | I55: =G55*0.7 -> 0
A56: 33 | D56: внешкольная экспертная деятельность преподавателей Центра по теме Программы | E56: количество часов | G56: 0 | H56: за 100ч + 2б | I56: =G56*0.02 -> 0
A57: 34 | D57: наличие публикаций в методических изданиях по теме Программы | E57: количество страниц А4, интервал 1,5, шрифт 14 | G57: 8 | H57: за 24 стр. + 2б | I57: =ROUND(G57*2/24,1) -> 0.7
A58: 35 | D58: количество публикаций в СМИ муниципального и регионального уровня по теме Программы | E58: количество статей | G58: 1 | H58: за 1 ст. + 0,1б | I58: =G58*0.1 -> 0.1
A59: 36 | C59: уровень организации и степень достижения целей и задач инновационной деятельности | D59: наличие рецензии на образовательную Программу | E59: если да = 1 | G59: 1 | H59: да + 2б | I59: =IF(G59=1,2,0) -> 2
A60: 37 | D60: Программа Центра является частью программы развития ОУ | E60: если да = 1 | G60: 1 | H60: да + 1б | I60: =IF(G60=1,1,0) -> 1
A61: 38 | D61: Программа Центра является частью муниципальной программы развития | E61: если да = 1 | G61: 1 | H61: да + 2б | I61: =IF(G61=1,2,0) -> 2
A62: 39 | D62: наличие общественной экспертизы результатов реализации образовательной Программы | E62: если да = 1 | G62: 1 | H62: да + 1б | I62: =IF(G62=1,1,0) -> 1
A63: 40 | D63: публичное представление результатов инновационной деятельности на научно-практических конференциях
D64: - на школьном уровне | E64: если да = 1 | H64: да + 0,3б | I64: =IF(G64=1,0.3,0) -> 0
D65: - на муниципальном уровне | E65: если да = 1 | G65: 0 | H65: да + 0,5б | I65: =IF(G65=1,0.5,0) -> 0
D66: - на региональном уровне | E66: если да = 1 | H66: да + 1б | I66: =IF(G66=1,1,0) -> 0
D67: - на федеральном и международном уровнях | E67: если да = 1 | G67: 0 | H67: да + 2б | I67: =IF(G67=1,2,0) -> 0
A68: Общее рейтинговое значение | I68: =SUM(I13:I41,I43:I46,I48:I51,I53:I62,I64:I67) -> 50.7

Sheet ЗС №87
A1: РЕЙТИНГ | D1: ОЦЕНОЧНЫЙ ЛИСТ РЕЙТИНГА РЕЗУЛЬТАТИВНОСТИ ОБРАЗОВАТЕЛЬНЫХ ПРОГРАММ ЦЕНТРОВ ГРАЖДАНСКОГО ОБРАЗОВАНИЯ 2012-2013
A2: первый | C2: =SUM(I13:I22) -> 11
A3: второй | C3: =SUM(I23:I38) -> 15.5
A4: третий | C4: =SUM(I39:I41,I43:I46,I48:I51,I53:I62,I64:I67) -> 18.5 | D4: МБОУ "СОШ № 87" ЗАТО Северск
A5: общее | C5: =SUM(C2:C4) -> 45 | D5: Центр гражданского образования "ВЕРТИКАЛЬ"
A6: 1.04 | C6: =C5*A6 -> 46.8 | D6: Образовательная программа "Мой выбор"
A7: Общее количество слушателей образовательной Программы | H7: 25 | I7: человек
A8: Количество педагогических работников | H8: 3 | I8: человек
A9: Количество консультантов из числа опытных старшеклассников, выпускников Центра | H9: 0 | I9: человек
A10: Количество привлеченных специалистов | H10: 2 | I10: человек
A11: Продолжительность образовательной Программы | H11: 38 | I11: часов
A12: № | B12: Направ-ление | C12: Критерии | E12: Значение критерия | F12: Единица измерения | G12: Значение в единицах измерения | H12: Система оценки | I12: Рейтинговое значение
A13: 1 | B13: Образовательная программа | C13: адаптированность | D13: продолжительность образовательной Программы | E13: количество часов | G13: =H11 -> 38 | H13: 18-24 + 1б, 25-48 + 2б, более 48 + 3б | I13: =IF($G$13>17,1,0)+IF($G$13>24,1,0)+IF($G$13>48,1,0) -> 2
A14: 2 | D14: наличие модулей в образовательной Программе для разновозрастных групп | E14: для обучающихся = 1, для обучающихся и взрослых = 2 | G14: 1 | H14: 1 + 1б, 2 + 2б | I14: =IF(G14=1,1,0)+IF(G14=2,2,0) -> 1
A15: 3 | D15: наличие в образовательной Программе активных и интерактивных форм обучения | E15: менее 50% занятий = 1, более 50% занятий = 2 | G15: 2 | H15: 1 + 1б, 2 + 2б | I15: =IF(G15=1,1,0)+IF(G15=2,2,0) -> 2
A16: 4 | D16: преемственность образовательных Программ из года в год | E16: если существует = 1 | G16: 1 | H16: да + 1б | I16: =IF(G16=1,1,0) -> 1
A17: 5 | C17: доступность | D17: наличие модулей, предложенных слушателям на выбор | E17: если 2 модуля = 1, 3 и более модулей = 2 | G17: 0 | H17: 1 + 1б, 2 + 2б | I17: =IF(G17=1,1,0)+IF(G17=2,2,0) -> 0
A18: 6 | D18: проведение мониторинга уровня сформированности ключевых компетентностей | E18: если да = 1 | G18: 1 | H18: да + 3б | I18: =IF(G18=1,3,0) -> 3
A19: 7 | D19: программа реализуется в сетевом взаимодействии с другими Центрами | E19: если да = 1 | H19: да + 2б | I19: =IF(G19=1,2,0) -> 0
A20: 8 | D20: доля слушателей, привлеченных из других ОУ | E20: количество | H20: 100% + 3б | I20: =ROUND((G20/H7*3),1) -> 0
A21: 9 | C21: полнота реализации | D21: Программа реализуется в полном объеме | E21: если да = 1 | G21: 1 | H21: да + 1,5б, нет + 1б | I21: =IF(G21=1,1.5,1) -> 1.5
A22: 10 | D22: Программа изменилась при лучших условиях | E22: если да = 1 | G22: 1 | H22: да + 0,5б | I22: =IF(G22=1,0.5,0) -> 0.5
A23: 11 | B23: Организация образовательного процесса | C23: кадровое обеспечение | D23: укомплектованность преподавательского состава в соответствии с Программой | E23: состав полностью укомплектован = 1 | G23: 1 | H23: да + 2б, нет + 1б | I23: =IF(G23=1,2,1) -> 2
A24: 12 | D24: подготовка преподавателей по теме Программы | E24: количество | G24: 3 | H24: 100% + 2б | I24: =ROUND((G24/(H8+H9+H10)*2),1) -> 1.2
A25: 13 | D25: привлечение специалистов из профессионального сообщества | E25: количество | G25: =H10 -> 2 | H25: 100% + 2б | I25: =ROUND((G25/(H9+H10+H8)*2),1) -> 0.8
A26: 14 | D26: привлечение консультантов из числа обучающихся, выпускников | E26: количество | G26: =H9 -> 0 | H26: 100% + 2б | I26: =ROUND((G26/(H10+H9+H8)*2),1) -> 0
A27: 15 | C27: материально-техническое обеспечение | D27: наличие достаточной материальной базы для проведения знаний | E27: если да = 1 | G27: 1 | H27: да + 2б, нет + 1б | I27: =IF(G27=1,2,1) -> 2
A28: 16 | D28: использование материальной базы иных организаций | E28: если да = 1 | H28: да + 2б | I28: =IF(G28=1,2,0) -> 0
A29: 17 | D29: наличие оборудованных рабочих мест для слушателей и преподавателей | E29: если да = 1, только преподавателей = 2 | G29: 1 | H29: 1 + 1б, 2 + 0,5б | I29: =IF(G29=1,1,0)+IF(G29=2,0.5,0) -> 1
A30: 18 | C30: информационно-технологическое обеспечение | D30: наличие страницы Центра на сайте образовательного учреждения | E30: если да = 1 | G30: 1 | H30: да + 1б | I30: =IF(G30=1,1,0) -> 1
A31: 19 | D31: регулярность обновления страницы Центра на сайте | E31: более 1 раза в месяц = 1, реже = 2 | G31: 2 | H31: 1 + 1б, 2 + 0,5б | I31: =IF(G31=1,1,0)+IF(G31=2,0.5,0) -> 0.5
A32: 20 | D32: использование доступа в интернет преподавателями и слушателями | E32: если да = 1, только преподавателями = 2 | G32: 1 | H32: 1 + 1б, 2 + 0,5б | I32: =IF(G32=1,1,0)+IF(G32=2,0.5,0) -> 1
A33: 21 | D33: наличие методических материалов Центра на сайте ОУ | E33: если да = 1 | H33: да + 1б | I33: =IF(G33=1,1,0) -> 0
A34: 22 | D34: наличие Совета Центра | E34: если да = 1 | G34: 1 | H34: да + 0,5б | I34: =IF(G34=1,0.5,0) -> 0.5
A35: 23 | D35: наличие утвержденного положения о деятельности Центра | E35: если да = 1 | G35: 1 | H35: да + 0,5б | I35: =IF(G35=1,0.5,0) -> 0.5
A36: 24 | D36: наличие оформленных договоров с социальными партнерами | E36: если да = 1 | G36: 1 | H36: да + 1б | I36: =IF(G36=1,1,0) -> 1
A37: 25 | C37: учебно-методическое обеспечение | D37: обеспеченность слушателей учебниками, справочной литературой | E37: полное обеспечение = 1, частичное = 2 | G37: 1 | H37: 1 + 2б, 2 + 1б | I37: =IF(G37=1,2,0)+IF(G37=2,1,0) -> 2
A38: 26 | D38: обеспеченность преподавателей методической литературой, программными средствами обучения | E38: полное обеспечение = 1, частичное = 2 | G38: 1 | H38: 1 + 2б, 2 + 1б | I38: =IF(G38=1,2,0)+IF(G38=2,1,0) -> 2
A39: 27 | B39: Результаты образовательной деятельности | C39: уровень и качество общеобразовательной подготовки слушателей | D39: слушатели, применившие полученную информацию на практике | E39: количество | G39: 25 | H39: 100% + 2б | I39: =ROUND(G39/H7*2,1) -> 2
A40: 28 | D40: слушатели, освоившие программу и получившие удостоверение | E40: количество | G40: 14 | H40: 100% + 4б | I40: =ROUND(G40/$H$7*4,1) -> 2.2
A41: 29 | D41: слушатели, получившие сертификат | E41: количество | G41: 11 | H41: 100% + 1б | I41: =ROUND(G41/H7*1,1) -> 0.4
A42: 30 | C42: сформированность ключевых компетентностей слушателей | D42: слушатели, имеющие документально подтвержденные достижения по теме Программы:
D43: - на школьном уровне | E43: количество | G43: 18 | H43: 100% + 2б | I43: =ROUND(G43/$H$7*2,1) -> 1.4
D44: - на муниципальном уровне | E44: количество | G44: 25 | H44: 100% + 3б | I44: =ROUND(G44/$H$7*3,1) -> 3
D45: - на региональном уровне | E45: количество | H45: 100% + 4б | I45: =ROUND(G45/$H$7*4,1) -> 0
D46: - на федеральном и международном уровнях | E46: количество | H46: 100% + 5б | I46: =ROUND(G46/$H$7*5,1) -> 0
A47: 31 | C47: уровень обобщения и представления опыта деятельности Центра по теме Программы | D47: публичное представление промежуточных результатов реализации образовательной Программы:
D48: - на школьном уровне | E48: количество | G48: 1 | H48: за 1 + 0,1б | I48: =G48*0.1 -> 0.1
D49: - на муниципальном уровне | E49: количество | G49: 2 | H49: за 1 + 0,2б | I49: =G49*0.2 -> 0.4
D50: - на региональном уровне | E50: количество | G50: 2 | H50: за 1 + 0,3б | I50: =G50*0.3 -> 0.6
D51: - на федеральном и международном уровнях | E51: количество | G51: 1 | H51: за 1 + 0,5б | I51: =G51*0.4 -> 0.4
A52: 32 | D52: организация мероприятий, семинаров различного уровня по теме образовательной Программы:
D53: - на муниципальном уровне | E53: количество | G53: 2 | H53: за 1 + 0,3б | I53: =G53*0.3 -> 0.6
D54: - на региональном уровне | E54: количество | H54: за 1 + 0,5б | I54: =G54*0.5 -> 0
D55: - на федеральном и международном уровнях | E55: количество | H55: за 1 + 0,7б | I55: =G55*0.7 -> 0
A56: 33 | D56: внешкольная экспертная деятельность преподавателей Центра по теме Программы | E56: количество часов | H56: за 100ч + 2б | I56: =G56*0.02 -> 0
A57: 34 | D57: наличие публикаций в методических изданиях по теме Программы | E57: количество страниц А4, интервал 1,5, шрифт 14 | G57: 5 | H57: за 24 стр. + 2б | I57: =ROUND(G57*2/24,1) -> 0.4
A58: 35 | D58: количество публикаций в СМИ муниципального и регионального уровня по теме Программы | E58: количество статей | G58: 0 | H58: за 1 ст. + 0,1б | I58: =G58*0.1 -> 0
A59: 36 | C59: уровень организации и степень достижения целей и задач инновационной деятельности | D59: наличие рецензии на образовательную Программу | E59: если да = 1 | G59: 1 | H59: да + 2б | I59: =IF(G59=1,2,0) -> 2
A60: 37 | D60: Программа Центра является частью программы развития ОУ | E60: если да = 1 | G60: 1 | H60: да + 1б | I60: =IF(G60=1,1,0) -> 1
A61: 38 | D61: Программа Центра является частью муниципальной программы развития | E61: если да = 1 | G61: 1 | H61: да + 2б | I61: =IF(G61=1,2,0) -> 2
A62: 39 | D62: наличие общественной экспертизы результатов реализации образовательной Программы | E62: если да = 1 | H62: да + 1б | I62: =IF(G62=1,1,0) -> 0
A63: 40 | D63: публичное представление результатов инновационной деятельности на научно-практических конференциях
D64: - на школьном уровне | E64: если да = 1 | H64: да + 0,3б | I64: =IF(G64=1,0.3,0) -> 0
D65: - на муниципальном уровне | E65: если да = 1 | G65: 0 | H65: да + 0,5б | I65: =IF(G65=1,0.5,0) -> 0
D66: - на региональном уровне | E66: если да = 1 | G66: 0 | H66: да + 1б | I66: =IF(G66=1,1,0) -> 0
D67: - на федеральном и международном уровнях | E67: если да = 1 | G67: 1 | H67: да + 2б | I67: =IF(G67=1,2,0) -> 2
A68: Общее рейтинговое значение | I68: =SUM(I13:I41,I43:I46,I48:I51,I53:I62,I64:I67) -> 45

Sheet ЗС №196
A1: РЕЙТИНГ | D1: ОЦЕНОЧНЫЙ ЛИСТ РЕЙТИНГА РЕЗУЛЬТАТИВНОСТИ ОБРАЗОВАТЕЛЬНЫХ ПРОГРАММ ЦЕНТРОВ ГРАЖДАНСКОГО ОБРАЗОВАНИЯ 2012-2013
A2: первый | C2: =SUM(I13:I22) -> 13
A3: второй | C3: =SUM(I23:I38) -> 19
A4: третий | C4: =SUM(I39:I41,I43:I46,I48:I51,I53:I62,I64:I67) -> 37.1 | D4: МБОУ "СОШ № 196"
A5: общее | C5: =SUM(C2:C4) -> 69.1 | D5: ЦГО "Перспектива"
A6: 1.04 | C6: =C5*A6 -> 71.864 | D6: "Мои шаги в будущее"
A7: Общее количество слушателей образовательной Программы | H7: 20 | I7: человек
A8: Количество педагогических работников | H8: 3 | I8: человек
A9: Количество консультантов из числа опытных старшеклассников, выпускников Центра | H9: 0 | I9: человек
A10: Количество привлеченных специалистов | H10: 4 | I10: человек
A11: Продолжительность образовательной Программы | H11: 71 | I11: часов
A12: № | B12: Направ-ление | C12: Критерии | E12: Значение критерия | F12: Единица измерения | G12: Значение в единицах измерения | H12: Система оценки | I12: Рейтинговое значение
A13: 1 | B13: Образовательная программа | C13: адаптированность | D13: продолжительность образовательной Программы | E13: количество часов | G13: =H11 -> 71 | H13: 18-24 + 1б, 25-48 + 2б, более 48 + 3б | I13: =IF($G$13>17,1,0)+IF($G$13>24,1,0)+IF($G$13>48,1,0) -> 3
A14: 2 | D14: наличие модулей в образовательной Программе для разновозрастных групп | E14: для обучающихся = 1, для обучающихся и взрослых = 2 | G14: 0 | H14: 1 + 1б, 2 + 2б | I14: =IF(G14=1,1,0)+IF(G14=2,2,0) -> 0
A15: 3 | D15: наличие в образовательной Программе активных и интерактивных форм обучения | E15: менее 50% занятий = 1, более 50% занятий = 2 | G15: 2 | H15: 1 + 1б, 2 + 2б | I15: =IF(G15=1,1,0)+IF(G15=2,2,0) -> 2
A16: 4 | D16: преемственность образовательных Программ из года в год | E16: если существует = 1 | G16: 1 | H16: да + 1б | I16: =IF(G16=1,1,0) -> 1
A17: 5 | C17: доступность | D17: наличие модулей, предложенных слушателям на выбор | E17: если 2 модуля = 1, 3 и более модулей = 2 | G17: 0 | H17: 1 + 1б, 2 + 2б | I17: =IF(G17=1,1,0)+IF(G17=2,2,0) -> 0
A18: 6 | D18: проведение мониторинга уровня сформированности ключевых компетентностей | E18: если да = 1 | G18: 1 | H18: да + 3б | I18: =IF(G18=1,3,0) -> 3
A19: 7 | D19: программа реализуется в сетевом взаимодействии с другими Центрами | E19: если да = 1 | G19: 1 | H19: да + 2б | I19: =IF(G19=1,2,0) -> 2
A20: 8 | D20: доля слушателей, привлеченных из других ОУ | E20: количество | H20: 100% + 3б | I20: =ROUND((G20/H7*3),1) -> 0
A21: 9 | C21: полнота реализации | D21: Программа реализуется в полном объеме | E21: если да = 1 | G21: 1 | H21: да + 1,5б, нет + 1б | I21: =IF(G21=1,1.5,1) -> 1.5
A22: 10 | D22: Программа изменилась при лучших условиях | E22: если да = 1 | G22: 1 | H22: да + 0,5б | I22: =IF(G22=1,0.5,0) -> 0.5
A23: 11 | B23: Организация образовательного процесса | C23: кадровое обеспечение | D23: укомплектованность преподавательского состава в соответствии с Программой | E23: состав полностью укомплектован = 1 | G23: 1 | H23: да + 2б, нет + 1б | I23: =IF(G23=1,2,1) -> 2
A24: 12 | D24: подготовка преподавателей по теме Программы | E24: количество | G24: 3 | H24: 100% + 2б | I24: =ROUND((G24/(H8+H9+H10)*2),1) -> 0.9
A25: 13 | D25: привлечение специалистов из профессионального сообщества | E25: количество | G25: =H10 -> 4 | H25: 100% + 2б | I25: =ROUND((G25/(H9+H10+H8)*2),1) -> 1.1
A26: 14 | D26: привлечение консультантов из числа обучающихся, выпускников | E26: количество | G26: =H9 -> 0 | H26: 100% + 2б | I26: =ROUND((G26/(H10+H9+H8)*2),1) -> 0
A27: 15 | C27: материально-техническое обеспечение | D27: наличие достаточной материальной базы для проведения знаний | E27: если да = 1 | G27: 1 | H27: да + 2б, нет + 1б | I27: =IF(G27=1,2,1) -> 2
A28: 16 | D28: использование материальной базы иных организаций | E28: если да = 1 | G28: 1 | H28: да + 2б | I28: =IF(G28=1,2,0) -> 2
A29: 17 | D29: наличие оборудованных рабочих мест для слушателей и преподавателей | E29: если да = 1, только преподавателей = 2 | G29: 1 | H29: 1 + 1б, 2 + 0,5б | I29: =IF(G29=1,1,0)+IF(G29=2,0.5,0) -> 1
A30: 18 | C30: информационно-технологическое обеспечение | D30: наличие страницы Центра на сайте образовательного учреждения | E30: если да = 1 | G30: 1 | H30: да + 1б | I30: =IF(G30=1,1,0) -> 1
A31: 19 | D31: регулярность обновления страницы Центра на сайте | E31: более 1 раза в месяц = 1, реже = 2 | G31: 1 | H31: 1 + 1б, 2 + 0,5б | I31: =IF(G31=1,1,0)+IF(G31=2,0.5,0) -> 1
A32: 20 | D32: использование доступа в интернет преподавателями и слушателями | E32: если да = 1, только преподавателями = 2 | G32: 1 | H32: 1 + 1б, 2 + 0,5б | I32: =IF(G32=1,1,0)+IF(G32=2,0.5,0) -> 1
A33: 21 | D33: наличие методических материалов Центра на сайте ОУ | E33: если да = 1 | G33: 1 | H33: да + 1б | I33: =IF(G33=1,1,0) -> 1
A34: 22 | D34: наличие Совета Центра | E34: если да = 1 | G34: 1 | H34: да + 0,5б | I34: =IF(G34=1,0.5,0) -> 0.5
A35: 23 | D35: наличие утвержденного положения о деятельности Центра | E35: если да = 1 | G35: 1 | H35: да + 0,5б | I35: =IF(G35=1,0.5,0) -> 0.5
A36: 24 | D36: наличие оформленных договоров с социальными партнерами | E36: если да = 1 | G36: 1 | H36: да + 1б | I36: =IF(G36=1,1,0) -> 1
A37: 25 | C37: учебно-методическое обеспечение | D37: обеспеченность слушателей учебниками, справочной литературой | E37: полное обеспечение = 1, частичное = 2 | G37: 1 | H37: 1 + 2б, 2 + 1б | I37: =IF(G37=1,2,0)+IF(G37=2,1,0) -> 2
A38: 26 | D38: обеспеченность преподавателей методической литературой, программными средствами обучения | E38: полное обеспечение = 1, частичное = 2 | G38: 1 | H38: 1 + 2б, 2 + 1б | I38: =IF(G38=1,2,0)+IF(G38=2,1,0) -> 2
A39: 27 | B39: Результаты образовательной деятельности | C39: уровень и качество общеобразовательной подготовки слушателей | D39: слушатели, применившие полученную информацию на практике | E39: количество | G39: 20 | H39: 100% + 2б | I39: =ROUND(G39/H7*2,1) -> 2
A40: 28 | D40: слушатели, освоившие программу и получившие удостоверение | E40: количество | G40: 20 | H40: 100% + 4б | I40: =ROUND(G40/$H$7*4,1) -> 4
A41: 29 | D41: слушатели, получившие сертификат | E41: количество | H41: 100% + 1б | I41: =ROUND(G41/H7*1,1) -> 0
A42: 30 | C42: сформированность ключевых компетентностей слушателей | D42: слушатели, имеющие документально подтвержденные достижения по теме Программы:
D43: - на школьном уровне | E43: количество | G43: 20 | H43: 100% + 2б | I43: =ROUND(G43/$H$7*2,1) -> 2
D44: - на муниципальном уровне | E44: количество | G44: 20 | H44: 100% + 3б | I44: =ROUND(G44/$H$7*3,1) -> 3
D45: - на региональном уровне | E45: количество | G45: 20 | H45: 100% + 4б | I45: =ROUND(G45/$H$7*4,1) -> 4
D46: - на федеральном и международном уровнях | E46: количество | G46: 14 | H46: 100% + 5б | I46: =ROUND(G46/$H$7*5,1) -> 3.5
A47: 31 | C47: уровень обобщения и представления опыта деятельности Центра по теме Программы | D47: публичное представление промежуточных результатов реализации образовательной Программы:
D48: - на школьном уровне | E48: количество | G48: 4 | H48: за 1 + 0,1б | I48: =G48*0.1 -> 0.4
D49: - на муниципальном уровне | E49: количество | G49: 4 | H49: за 1 + 0,2б | I49: =G49*0.2 -> 0.8
D50: - на региональном уровне | E50: количество | G50: 4 | H50: за 1 + 0,3б | I50: =G50*0.3 -> 1.2
D51: - на федеральном и международном уровнях | E51: количество | G51: 4 | H51: за 1 + 0,5б | I51: =G51*0.4 -> 1.6
A52: 32 | D52: организация мероприятий, семинаров различного уровня по теме образовательной Программы:
D53: - на муниципальном уровне | E53: количество | G53: 13 | H53: за 1 + 0,3б | I53: =G53*0.3 -> 3.9
D54: - на региональном уровне | E54: количество | G54: 3 | H54: за 1 + 0,5б | I54: =G54*0.5 -> 1.5
D55: - на федеральном и международном уровнях | E55: количество | H55: за 1 + 0,7б | I55: =G55*0.7 -> 0
A56: 33 | D56: внешкольная экспертная деятельность преподавателей Центра по теме Программы | E56: количество часов | G56: 30 | H56: за 100ч + 2б | I56: =G56*0.02 -> 0.6
A57: 34 | D57: наличие публикаций в методических изданиях по теме Программы | E57: количество страниц А4, интервал 1,5, шрифт 14 | G57: 8 | H57: за 24 стр. + 2б | I57: =ROUND(G57*2/24,1) -> 0.7
A58: 35 | D58: количество публикаций в СМИ муниципального и регионального уровня по теме Программы | E58: количество статей | G58: 1 | H58: за 1 ст. + 0,1б | I58: =G58*0.1 -> 0.1
A59: 36 | C59: уровень организации и степень достижения целей и задач инновационной деятельности | D59: наличие рецензии на образовательную Программу | E59: если да = 1 | G59: 1 | H59: да + 2б | I59: =IF(G59=1,2,0) -> 2
A60: 37 | D60: Программа Центра является частью программы развития ОУ | E60: если да = 1 | G60: 1 | H60: да + 1б | I60: =IF(G60=1,1,0) -> 1
A61: 38 | D61: Программа Центра является частью муниципальной программы развития | E61: если да = 1 | H61: да + 2б | I61: =IF(G61=1,2,0) -> 0
A62: 39 | D62: наличие общественной экспертизы результатов реализации образовательной Программы | E62: если да = 1 | G62: 1 | H62: да + 1б | I62: =IF(G62=1,1,0) -> 1
A63: 40 | D63: публичное представление результатов инновационной деятельности на научно-практических конференциях
D64: - на школьном уровне | E64: если да = 1 | G64: 1 | H64: да + 0,3б | I64: =IF(G64=1,0.3,0) -> 0.3
D65: - на муниципальном уровне | E65: если да = 1 | G65: 1 | H65: да + 0,5б | I65: =IF(G65=1,0.5,0) -> 0.5
D66: - на региональном уровне | E66: если да = 1 | G66: 1 | H66: да + 1б | I66: =IF(G66=1,1,0) -> 1
D67: - на федеральном и международном уровнях | E67: если да = 1 | G67: 1 | H67: да + 2б | I67: =IF(G67=1,2,0) -> 2
A68: Общее рейтинговое значение | I68: =SUM(I13:I41,I43:I46,I48:I51,I53:I62,I64:I67) -> 69.1

Sheet ЗС №197
A1: РЕЙТИНГ | D1: ОЦЕНОЧНЫЙ ЛИСТ РЕЙТИНГА РЕЗУЛЬТАТИВНОСТИ ОБРАЗОВАТЕЛЬНЫХ ПРОГРАММ ЦЕНТРОВ ГРАЖДАНСКОГО ОБРАЗОВАНИЯ 2012-2013
A2: первый | C2: =SUM(I13:I22) -> 13.8
A3: второй | C3: =SUM(I23:I38) -> 16.8
A4: третий | C4: =SUM(I39:I41,I43:I46,I48:I51,I53:I62,I64:I67) -> 14.4 | D4: МБОУ "СОШ № 197"
A5: общее | C5: =SUM(C2:C4) -> 45 | D5: Центр Гражданского образования "Рост"
A6: 1.04 | C6: =C5*A6 -> 46.8 | D6: Образовательная программа "Развитие"
A7: Общее количество слушателей образовательной Программы | H7: 25 | I7: человек
A8: Количество педагогических работников | H8: 5 | I8: человек
A9: Количество консультантов из числа опытных старшеклассников, выпускников Центра | H9: 3 | I9: человек
A10: Количество привлеченных специалистов | H10: 1 | I10: человек
A11: Продолжительность образовательной Программы | H11: 28 | I11: часов
A12: № | B12: Направ-ление | C12: Критерии | E12: Значение критерия | F12: Единица измерения | G12: Значение в единицах измерения | H12: Система оценки | I12: Рейтинговое значение
A13: 1 | B13: Образовательная программа | C13: адаптированность | D13: продолжительность образовательной Программы | E13: количество часов | G13: =H11 -> 28 | H13: 18-24 + 1б, 25-48 + 2б, более 48 + 3б | I13: =IF($G$13>17,1,0)+IF($G$13>24,1,0)+IF($G$13>48,1,0) -> 2
A14: 2 | D14: наличие модулей в образовательной Программе для разновозрастных групп | E14: для обучающихся = 1, для обучающихся и взрослых = 2 | G14: 0 | H14: 1 + 1б, 2 + 2б | I14: =IF(G14=1,1,0)+IF(G14=2,2,0) -> 0
A15: 3 | D15: наличие в образовательной Программе активных и интерактивных форм обучения | E15: менее 50% занятий = 1, более 50% занятий = 2 | G15: 2 | H15: 1 + 1б, 2 + 2б | I15: =IF(G15=1,1,0)+IF(G15=2,2,0) -> 2
A16: 4 | D16: преемственность образовательных Программ из года в год | E16: если существует = 1 | G16: 1 | H16: да + 1б | I16: =IF(G16=1,1,0) -> 1
A17: 5 | C17: доступность | D17: наличие модулей, предложенных слушателям на выбор | E17: если 2 модуля = 1, 3 и более модулей = 2 | G17: 0 | H17: 1 + 1б, 2 + 2б | I17: =IF(G17=1,1,0)+IF(G17=2,2,0) -> 0
A18: 6 | D18: проведение мониторинга уровня сформированности ключевых компетентностей | E18: если да = 1 | G18: 1 | H18: да + 3б | I18: =IF(G18=1,3,0) -> 3
A19: 7 | D19: программа реализуется в сетевом взаимодействии с другими Центрами | E19: если да = 1 | G19: 1 | H19: да + 2б | I19: =IF(G19=1,2,0) -> 2
A20: 8 | D20: доля слушателей, привлеченных из других ОУ | E20: количество | G20: 15 | H20: 100% + 3б | I20: =ROUND((G20/H7*3),1) -> 1.8
A21: 9 | C21: полнота реализации | D21: Программа реализуется в полном объеме | E21: если да = 1 | G21: 1 | H21: да + 1,5б, нет + 1б | I21: =IF(G21=1,1.5,1) -> 1.5
A22: 10 | D22: Программа изменилась при лучших условиях | E22: если да = 1 | G22: 1 | H22: да + 0,5б | I22: =IF(G22=1,0.5,0) -> 0.5
A23: 11 | B23: Организация образовательного процесса | C23: кадровое обеспечение | D23: укомплектованность преподавательского состава в соответствии с Программой | E23: состав полностью укомплектован = 1 | G23: 1 | H23: да + 2б, нет + 1б | I23: =IF(G23=1,2,1) -> 2
A24: 12 | D24: подготовка преподавателей по теме Программы | E24: количество | G24: 4 | H24: 100% + 2б | I24: =ROUND((G24/(H8+H9+H10)*2),1) -> 0.9
A25: 13 | D25: привлечение специалистов из профессионального сообщества | E25: количество | G25: =H10 -> 1 | H25: 100% + 2б | I25: =ROUND((G25/(H9+H10+H8)*2),1) -> 0.2
A26: 14 | D26: привлечение консультантов из числа обучающихся, выпускников | E26: количество | G26: =H9 -> 3 | H26: 100% + 2б | I26: =ROUND((G26/(H10+H9+H8)*2),1) -> 0.7
A27: 15 | C27: материально-техническое обеспечение | D27: наличие достаточной материальной базы для проведения знаний | E27: если да = 1 | G27: 1 | H27: да + 2б, нет + 1б | I27: =IF(G27=1,2,1) -> 2
A28: 16 | D28: использование материальной базы иных организаций | E28: если да = 1 | G28: 0 | H28: да + 2б | I28: =IF(G28=1,2,0) -> 0
A29: 17 | D29: наличие оборудованных рабочих мест для слушателей и преподавателей | E29: если да = 1, только преподавателей = 2 | G29: 1 | H29: 1 + 1б, 2 + 0,5б | I29: =IF(G29=1,1,0)+IF(G29=2,0.5,0) -> 1
A30: 18 | C30: информационно-технологическое обеспечение | D30: наличие страницы Центра на сайте образовательного учреждения | E30: если да = 1 | G30: 1 | H30: да + 1б | I30: =IF(G30=1,1,0) -> 1
A31: 19 | D31: регулярность обновления страницы Центра на сайте | E31: более 1 раза в месяц = 1, реже = 2 | G31: 1 | H31: 1 + 1б, 2 + 0,5б | I31: =IF(G31=1,1,0)+IF(G31=2,0.5,0) -> 1
A32: 20 | D32: использование доступа в интернет преподавателями и слушателями | E32: если да = 1, только преподавателями = 2 | G32: 1 | H32: 1 + 1б, 2 + 0,5б | I32: =IF(G32=1,1,0)+IF(G32=2,0.5,0) -> 1
A33: 21 | D33: наличие методических материалов Центра на сайте ОУ | E33: если да = 1 | G33: 1 | H33: да + 1б | I33: =IF(G33=1,1,0) -> 1
A34: 22 | D34: наличие Совета Центра | E34: если да = 1 | G34: 1 | H34: да + 0,5б | I34: =IF(G34=1,0.5,0) -> 0.5
A35: 23 | D35: наличие утвержденного положения о деятельности Центра | E35: если да = 1 | G35: 1 | H35: да + 0,5б | I35: =IF(G35=1,0.5,0) -> 0.5
A36: 24 | D36: наличие оформленных договоров с социальными партнерами | E36: если да = 1 | G36: 1 | H36: да + 1б | I36: =IF(G36=1,1,0) -> 1
A37: 25 | C37: учебно-методическое обеспечение | D37: обеспеченность слушателей учебниками, справочной литературой | E37: полное обеспечение = 1, частичное = 2 | G37: 1 | H37: 1 + 2б, 2 + 1б | I37: =IF(G37=1,2,0)+IF(G37=2,1,0) -> 2
A38: 26 | D38: обеспеченность преподавателей методической литературой, программными средствами обучения | E38: полное обеспечение = 1, частичное = 2 | G38: 1 | H38: 1 + 2б, 2 + 1б | I38: =IF(G38=1,2,0)+IF(G38=2,1,0) -> 2
A39: 27 | B39: Результаты образовательной деятельности | C39: уровень и качество общеобразовательной подготовки слушателей | D39: слушатели, применившие полученную информацию на практике | E39: количество | G39: 25 | H39: 100% + 2б | I39: =ROUND(G39/H7*2,1) -> 2
A40: 28 | D40: слушатели, освоившие программу и получившие удостоверение | E40: количество | G40: 10 | H40: 100% + 4б | I40: =ROUND(G40/$H$7*4,1) -> 1.6
A41: 29 | D41: слушатели, получившие сертификат | E41: количество | G41: 15 | H41: 100% + 1б | I41: =ROUND(G41/H7*1,1) -> 0.6
A42: 30 | C42: сформированность ключевых компетентностей слушателей | D42: слушатели, имеющие документально подтвержденные достижения по теме Программы:
D43: - на школьном уровне | E43: количество | G43: 25 | H43: 100% + 2б | I43: =ROUND(G43/$H$7*2,1) -> 2
D44: - на муниципальном уровне | E44: количество | G44: 9 | H44: 100% + 3б | I44: =ROUND(G44/$H$7*3,1) -> 1.1
D45: - на региональном уровне | E45: количество | G45: 10 | H45: 100% + 4б | I45: =ROUND(G45/$H$7*4,1) -> 1.6
D46: - на федеральном и международном уровнях | E46: количество | H46: 100% + 5б | I46: =ROUND(G46/$H$7*5,1) -> 0
A47: 31 | C47: уровень обобщения и представления опыта деятельности Центра по теме Программы | D47: публичное представление промежуточных результатов реализации образовательной Программы:
D48: - на школьном уровне | E48: количество | G48: 3 | H48: за 1 + 0,1б | I48: =G48*0.1 -> 0.3
D49: - на муниципальном уровне | E49: количество | H49: за 1 + 0,2б | I49: =G49*0.2 -> 0
D50: - на региональном уровне | E50: количество | H50: за 1 + 0,3б | I50: =G50*0.3 -> 0
D51: - на федеральном и международном уровнях | E51: количество | H51: за 1 + 0,5б | I51: =G51*0.4 -> 0
A52: 32 | D52: организация мероприятий, семинаров различного уровня по теме образовательной Программы:
D53: - на муниципальном уровне | E53: количество | H53: за 1 + 0,3б | I53: =G53*0.3 -> 0
D54: - на региональном уровне | E54: количество | G54: 1 | H54: за 1 + 0,5б | I54: =G54*0.5 -> 0.5
D55: - на федеральном и международном уровнях | E55: количество | H55: за 1 + 0,7б | I55: =G55*0.7 -> 0
A56: 33 | D56: внешкольная экспертная деятельность преподавателей Центра по теме Программы | E56: количество часов | G56: 20 | H56: за 100ч + 2б | I56: =G56*0.02 -> 0.4
A57: 34 | D57: наличие публикаций в методических изданиях по теме Программы | E57: количество страниц А4, интервал 1,5, шрифт 14 | G57: 0 | H57: за 24 стр. + 2б | I57: =ROUND(G57*2/24,1) -> 0
A58: 35 | D58: количество публикаций в СМИ муниципального и регионального уровня по теме Программы | E58: количество статей | H58: за 1 ст. + 0,1б | I58: =G58*0.1 -> 0
A59: 36 | C59: уровень организации и степень достижения целей и задач инновационной деятельности | D59: наличие рецензии на образовательную Программу | E59: если да = 1 | H59: да + 2б | I59: =IF(G59=1,2,0) -> 0
A60: 37 | D60: Программа Центра является частью программы развития ОУ | E60: если да = 1 | G60: 1 | H60: да + 1б | I60: =IF(G60=1,1,0) -> 1
A61: 38 | D61: Программа Центра является частью муниципальной программы развития | E61: если да = 1 | G61: 1 | H61: да + 2б | I61: =IF(G61=1,2,0) -> 2
A62: 39 | D62: наличие общественной экспертизы результатов реализации образовательной Программы | E62: если да = 1 | H62: да + 1б | I62: =IF(G62=1,1,0) -> 0
A63: 40 | D63: публичное представление результатов инновационной деятельности на научно-практических конференциях
D64: - на школьном уровне | E64: если да = 1 | G64: 1 | H64: да + 0,3б | I64: =IF(G64=1,0.3,0) -> 0.3
D65: - на муниципальном уровне | E65: если да = 1 | H65: да + 0,5б | I65: =IF(G65=1,0.5,0) -> 0
D66: - на региональном уровне | E66: если да = 1 | G66: 1 | H66: да + 1б | I66: =IF(G66=1,1,0) -> 1
D67: - на федеральном и международном уровнях | E67: если да = 1 | H67: да + 2б | I67: =IF(G67=1,2,0) -> 0
A68: Общее рейтинговое значение | I68: =SUM(I13:I41,I43:I46,I48:I51,I53:I62,I64:I67) -> 45

Sheet АР №2
A1: РЕЙТИНГ | D1: ОЦЕНОЧНЫЙ ЛИСТ РЕЙТИНГА РЕЗУЛЬТАТИВНОСТИ ОБРАЗОВАТЕЛЬНЫХ ПРОГРАММ ЦЕНТРОВ ГРАЖДАНСКОГО ОБРАЗОВАНИЯ 2012-2013
A2: первый | C2: =SUM(I13:I22) -> 13
A3: второй | C3: =SUM(I23:I38) -> 17
A4: третий | C4: =SUM(I39:I41,I43:I46,I48:I51,I53:I62,I64:I67) -> 24.9 | D4: МБОУ гимназия №2 города Асино
A5: общее | C5: =SUM(C2:C4) -> 54.9 | D5: Центр гражданского образования "Лидер XXIвека"
A6: 1.04 | C6: =C5*A6 -> 57.096 | D6: Образовательная программа "Школа молодого гражданина"
A7: Общее количество слушателей образовательной Программы | H7: 25 | I7: человек
A8: Количество педагогических работников | H8: 3 | I8: человек
A9: Количество консультантов из числа опытных старшеклассников, выпускников Центра | H9: 0 | I9: человек
A10: Количество привлеченных специалистов | H10: 12 | I10: человек
A11: Продолжительность образовательной Программы | H11: 96 | I11: часов
A12: № | B12: Направ-ление | C12: Критерии | E12: Значение критерия | F12: Единица измерения | G12: Значение в единицах измерения | H12: Система оценки | I12: Рейтинговое значение
A13: 1 | B13: Образовательная программа | C13: адаптированность | D13: продолжительность образовательной Программы | E13: количество часов | G13: =H11 -> 96 | H13: 18-24 + 1б, 25-48 + 2б, более 48 + 3б | I13: =IF($G$13>17,1,0)+IF($G$13>24,1,0)+IF($G$13>48,1,0) -> 3
A14: 2 | D14: наличие модулей в образовательной Программе для разновозрастных групп | E14: для обучающихся = 1, для обучающихся и взрослых = 2 | G14: 0 | H14: 1 + 1б, 2 + 2б | I14: =IF(G14=1,1,0)+IF(G14=2,2,0) -> 0
A15: 3 | D15: наличие в образовательной Программе активных и интерактивных форм обучения | E15: менее 50% занятий = 1, более 50% занятий = 2 | G15: 2 | H15: 1 + 1б, 2 + 2б | I15: =IF(G15=1,1,0)+IF(G15=2,2,0) -> 2
A16: 4 | D16: преемственность образовательных Программ из года в год | E16: если существует = 1 | G16: 1 | H16: да + 1б | I16: =IF(G16=1,1,0) -> 1
A17: 5 | C17: доступность | D17: наличие модулей, предложенных слушателям на выбор | E17: если 2 модуля = 1, 3 и более модулей = 2 | G17: 0 | H17: 1 + 1б, 2 + 2б | I17: =IF(G17=1,1,0)+IF(G17=2,2,0) -> 0
A18: 6 | D18: проведение мониторинга уровня сформированности ключевых компетентностей | E18: если да = 1 | G18: 1 | H18: да + 3б | I18: =IF(G18=1,3,0) -> 3
A19: 7 | D19: программа реализуется в сетевом взаимодействии с другими Центрами | E19: если да = 1 | G19: 1 | H19: да + 2б | I19: =IF(G19=1,2,0) -> 2
A20: 8 | D20: доля слушателей, привлеченных из других ОУ | E20: количество | G20: 0 | H20: 100% + 3б | I20: =ROUND((G20/H7*3),1) -> 0
A21: 9 | C21: полнота реализации | D21: Программа реализуется в полном объеме | E21: если да = 1 | G21: 1 | H21: да + 1,5б, нет + 1б | I21: =IF(G21=1,1.5,1) -> 1.5
A22: 10 | D22: Программа изменилась при лучших условиях | E22: если да = 1 | G22: 1 | H22: да + 0,5б | I22: =IF(G22=1,0.5,0) -> 0.5
A23: 11 | B23: Организация образовательного процесса | C23: кадровое обеспечение | D23: укомплектованность преподавательского состава в соответствии с Программой | E23: состав полностью укомплектован = 1 | G23: 1 | H23: да + 2б, нет + 1б | I23: =IF(G23=1,2,1) -> 2
A24: 12 | D24: подготовка преподавателей по теме Программы | E24: количество | G24: 3 | H24: 100% + 2б | I24: =ROUND((G24/(H8+H9+H10)*2),1) -> 0.4
A25: 13 | D25: привлечение специалистов из профессионального сообщества | E25: количество | G25: =H10 -> 12 | H25: 100% + 2б | I25: =ROUND((G25/(H9+H10+H8)*2),1) -> 1.6
A26: 14 | D26: привлечение консультантов из числа обучающихся, выпускников | E26: количество | G26: =H9 -> 0 | H26: 100% + 2б | I26: =ROUND((G26/(H10+H9+H8)*2),1) -> 0
A27: 15 | C27: материально-техническое обеспечение | D27: наличие достаточной материальной базы для проведения знаний | E27: если да = 1 | G27: 1 | H27: да + 2б, нет + 1б | I27: =IF(G27=1,2,1) -> 2
A28: 16 | D28: использование материальной базы иных организаций | E28: если да = 1 | G28: 1 | H28: да + 2б | I28: =IF(G28=1,2,0) -> 2
A29: 17 | D29: наличие оборудованных рабочих мест для слушателей и преподавателей | E29: если да = 1, только преподавателей = 2 | G29: 1 | H29: 1 + 1б, 2 + 0,5б | I29: =IF(G29=1,1,0)+IF(G29=2,0.5,0) -> 1
A30: 18 | C30: информационно-технологическое обеспечение | D30: наличие страницы Центра на сайте образовательного учреждения | E30: если да = 1 | G30: 1 | H30: да + 1б | I30: =IF(G30=1,1,0) -> 1
A31: 19 | D31: регулярность обновления страницы Центра на сайте | E31: более 1 раза в месяц = 1, реже = 2 | G31: 1 | H31: 1 + 1б, 2 + 0,5б | I31: =IF(G31=1,1,0)+IF(G31=2,0.5,0) -> 1
A32: 20 | D32: использование доступа в интернет преподавателями и слушателями | E32: если да = 1, только преподавателями = 2 | G32: 1 | H32: 1 + 1б, 2 + 0,5б | I32: =IF(G32=1,1,0)+IF(G32=2,0.5,0) -> 1
A33: 21 | D33: наличие методических материалов Центра на сайте ОУ | E33: если да = 1 | G33: 1 | H33: да + 1б | I33: =IF(G33=1,1,0) -> 1
A34: 22 | D34: наличие Совета Центра | E34: если да = 1 | G34: 1 | H34: да + 0,5б | I34: =IF(G34=1,0.5,0) -> 0.5
A35: 23 | D35: наличие утвержденного положения о деятельности Центра | E35: если да = 1 | G35: 1 | H35: да + 0,5б | I35: =IF(G35=1,0.5,0) -> 0.5
A36: 24 | D36: наличие оформленных договоров с социальными партнерами | E36: если да = 1 | G36: 1 | H36: да + 1б | I36: =IF(G36=1,1,0) -> 1
A37: 25 | C37: учебно-методическое обеспечение | D37: обеспеченность слушателей учебниками, справочной литературой | E37: полное обеспечение = 1, частичное = 2 | G37: 2 | H37: 1 + 2б, 2 + 1б | I37: =IF(G37=1,2,0)+IF(G37=2,1,0) -> 1
A38: 26 | D38: обеспеченность преподавателей методической литературой, программными средствами обучения | E38: полное обеспечение = 1, частичное = 2 | G38: 2 | H38: 1 + 2б, 2 + 1б | I38: =IF(G38=1,2,0)+IF(G38=2,1,0) -> 1
A39: 27 | B39: Результаты образовательной деятельности | C39: уровень и качество общеобразовательной подготовки слушателей | D39: слушатели, применившие полученную информацию на практике | E39: количество | G39: 25 | H39: 100% + 2б | I39: =ROUND(G39/H7*2,1) -> 2
A40: 28 | D40: слушатели, освоившие программу и получившие удостоверение | E40: количество | G40: 25 | H40: 100% + 4б | I40: =ROUND(G40/$H$7*4,1) -> 4
A41: 29 | D41: слушатели, получившие сертификат | E41: количество | G41: 0 | H41: 100% + 1б | I41: =ROUND(G41/H7*1,1) -> 0
A42: 30 | C42: сформированность ключевых компетентностей слушателей | D42: слушатели, имеющие документально подтвержденные достижения по теме Программы:
D43: - на школьном уровне | E43: количество | G43: 25 | H43: 100% + 2б | I43: =ROUND(G43/$H$7*2,1) -> 2
D44: - на муниципальном уровне | E44: количество | G44: 25 | H44: 100% + 3б | I44: =ROUND(G44/$H$7*3,1) -> 3
D45: - на региональном уровне | E45: количество | G45: 25 | H45: 100% + 4б | I45: =ROUND(G45/$H$7*4,1) -> 4
D46: - на федеральном и международном уровнях | E46: количество | G46: 7 | H46: 100% + 5б | I46: =ROUND(G46/$H$7*5,1) -> 1.4
A47: 31 | C47: уровень обобщения и представления опыта деятельности Центра по теме Программы | D47: публичное представление промежуточных результатов реализации образовательной Программы:
D48: - на школьном уровне | E48: количество | G48: 1 | H48: за 1 + 0,1б | I48: =G48*0.1 -> 0.1
D49: - на муниципальном уровне | E49: количество | G49: 0 | H49: за 1 + 0,2б | I49: =G49*0.2 -> 0
D50: - на региональном уровне | E50: количество | G50: 0 | H50: за 1 + 0,3б | I50: =G50*0.3 -> 0
D51: - на федеральном и международном уровнях | E51: количество | G51: 0 | H51: за 1 + 0,5б | I51: =G51*0.4 -> 0
A52: 32 | D52: организация мероприятий, семинаров различного уровня по теме образовательной Программы:
D53: - на муниципальном уровне | E53: количество | G53: 0 | H53: за 1 + 0,3б | I53: =G53*0.3 -> 0
D54: - на региональном уровне | E54: количество | G54: 2 | H54: за 1 + 0,5б | I54: =G54*0.5 -> 1
D55: - на федеральном и международном уровнях | E55: количество | G55: 0 | H55: за 1 + 0,7б | I55: =G55*0.7 -> 0
A56: 33 | D56: внешкольная экспертная деятельность преподавателей Центра по теме Программы | E56: количество часов | G56: 0 | H56: за 100ч + 2б | I56: =G56*0.02 -> 0
A57: 34 | D57: наличие публикаций в методических изданиях по теме Программы | E57: количество страниц А4, интервал 1,5, шрифт 14 | G57: 0 | H57: за 24 стр. + 2б | I57: =ROUND(G57*2/24,1) -> 0
A58: 35 | D58: количество публикаций в СМИ муниципального и регионального уровня по теме Программы | E58: количество статей | G58: 9 | H58: за 1 ст. + 0,1б | I58: =G58*0.1 -> 0.9
A59: 36 | C59: уровень организации и степень достижения целей и задач инновационной деятельности | D59: наличие рецензии на образовательную Программу | E59: если да = 1 | G59: 1 | H59: да + 2б | I59: =IF(G59=1,2,0) -> 2
A60: 37 | D60: Программа Центра является частью программы развития ОУ | E60: если да = 1 | G60: 1 | H60: да + 1б | I60: =IF(G60=1,1,0) -> 1
A61: 38 | D61: Программа Центра является частью муниципальной программы развития | E61: если да = 1 | G61: 1 | H61: да + 2б | I61: =IF(G61=1,2,0) -> 2
A62: 39 | D62: наличие общественной экспертизы результатов реализации образовательной Программы | E62: если да = 1 | G62: 1 | H62: да + 1б | I62: =IF(G62=1,1,0) -> 1
A63: 40 | D63: публичное представление результатов инновационной деятельности на научно-практических конференциях
D64: - на школьном уровне | E64: если да = 1 | G64: 0 | H64: да + 0,3б | I64: =IF(G64=1,0.3,0) -> 0
D65: - на муниципальном уровне | E65: если да = 1 | G65: 1 | H65: да + 0,5б | I65: =IF(G65=1,0.5,0) -> 0.5
D66: - на региональном уровне | E66: если да = 1 | G66: 0 | H66: да + 1б | I66: =IF(G66=1,1,0) -> 0
D67: - на федеральном и международном уровнях | E67: если да = 1 | G67: 0 | H67: да + 2б | I67: =IF(G67=1,2,0) -> 0
A68: Общее рейтинговое значение | I68: =SUM(I13:I41,I43:I46,I48:I51,I53:I62,I64:I67) -> 54.9

Sheet АР №4
A1: РЕЙТИНГ | D1: ОЦЕНОЧНЫЙ ЛИСТ РЕЙТИНГА РЕЗУЛЬТАТИВНОСТИ ОБРАЗОВАТЕЛЬНЫХ ПРОГРАММ ЦЕНТРОВ ГРАЖДАНСКОГО ОБРАЗОВАНИЯ 2012-2013
A2: первый | C2: =SUM(I13:I22) -> 14.6
A3: второй | C3: =SUM(I23:I38) -> 19
A4: третий | C4: =SUM(I39:I41,I43:I46,I48:I51,I53:I62,I64:I67) -> 35.14 | D4: МБОУ СОШ №4 г.Асино
A5: общее | C5: =SUM(C2:C4) -> 68.74 | D5: Центр гражданского образования "Следопыт"
A6: 1.04 | C6: =C5*A6 -> 71.4896 | D6: Образовательная Программа "Быть гражданином"
A7: Общее количество слушателей образовательной Программы | H7: 25 | I7: человек
A8: Количество педагогических работников | H8: 3 | I8: человек
A9: Количество консультантов из числа опытных старшеклассников, выпускников Центра | H9: 2 | I9: человек
A10: Количество привлеченных специалистов | H10: 5 | I10: человек
A11: Продолжительность образовательной Программы | H11: 68 | I11: часов
A12: № | B12: Направ-ление | C12: Критерии | E12: Значение критерия | F12: Единица измерения | G12: Значение в единицах измерения | H12: Система оценки | I12: Рейтинговое значение
A13: 1 | B13: Образовательная программа | C13: адаптированность | D13: продолжительность образовательной Программы | E13: количество часов | G13: =H11 -> 68 | H13: 18-24 + 1б, 25-48 + 2б, более 48 + 3б | I13: =IF($G$13>17,1,0)+IF($G$13>24,1,0)+IF($G$13>48,1,0) -> 3
A14: 2 | D14: наличие модулей в образовательной Программе для разновозрастных групп | E14: для обучающихся = 1, для обучающихся и взрослых = 2 | G14: 1 | H14: 1 + 1б, 2 + 2б | I14: =IF(G14=1,1,0)+IF(G14=2,2,0) -> 1
A15: 3 | D15: наличие в образовательной Программе активных и интерактивных форм обучения | E15: менее 50% занятий = 1, более 50% занятий = 2 | G15: 2 | H15: 1 + 1б, 2 + 2б | I15: =IF(G15=1,1,0)+IF(G15=2,2,0) -> 2
A16: 4 | D16: преемственность образовательных Программ из года в год | E16: если существует = 1 | G16: 1 | H16: да + 1б | I16: =IF(G16=1,1,0) -> 1
A17: 5 | C17: доступность | D17: наличие модулей, предложенных слушателям на выбор | E17: если 2 модуля = 1, 3 и более модулей = 2 | G17: 0 | H17: 1 + 1б, 2 + 2б | I17: =IF(G17=1,1,0)+IF(G17=2,2,0) -> 0
A18: 6 | D18: проведение мониторинга уровня сформированности ключевых компетентностей | E18: если да = 1 | G18: 1 | H18: да + 3б | I18: =IF(G18=1,3,0) -> 3
A19: 7 | D19: программа реализуется в сетевом взаимодействии с другими Центрами | E19: если да = 1 | G19: 1 | H19: да + 2б | I19: =IF(G19=1,2,0) -> 2
A20: 8 | D20: доля слушателей, привлеченных из других ОУ | E20: количество | G20: 5 | H20: 100% + 3б | I20: =ROUND((G20/H7*3),1) -> 0.6
A21: 9 | C21: полнота реализации | D21: Программа реализуется в полном объеме | E21: если да = 1 | G21: 1 | H21: да + 1,5б, нет + 1б | I21: =IF(G21=1,1.5,1) -> 1.5
A22: 10 | D22: Программа изменилась при лучших условиях | E22: если да = 1 | G22: 1 | H22: да + 0,5б | I22: =IF(G22=1,0.5,0) -> 0.5
A23: 11 | B23: Организация образовательного процесса | C23: кадровое обеспечение | D23: укомплектованность преподавательского состава в соответствии с Программой | E23: состав полностью укомплектован = 1 | G23: 1 | H23: да + 2б, нет + 1б | I23: =IF(G23=1,2,1) -> 2
A24: 12 | D24: подготовка преподавателей по теме Программы | E24: количество | G24: 3 | H24: 100% + 2б | I24: =ROUND((G24/(H8+H9+H10)*2),1) -> 0.6
A25: 13 | D25: привлечение специалистов из профессионального сообщества | E25: количество | G25: =H10 -> 5 | H25: 100% + 2б | I25: =ROUND((G25/(H9+H10+H8)*2),1) -> 1
A26: 14 | D26: привлечение консультантов из числа обучающихся, выпускников | E26: количество | G26: =H9 -> 2 | H26: 100% + 2б | I26: =ROUND((G26/(H10+H9+H8)*2),1) -> 0.4
A27: 15 | C27: материально-техническое обеспечение | D27: наличие достаточной материальной базы для проведения знаний | E27: если да = 1 | G27: 1 | H27: да + 2б, нет + 1б | I27: =IF(G27=1,2,1) -> 2
A28: 16 | D28: использование материальной базы иных организаций | E28: если да = 1 | G28: 1 | H28: да + 2б | I28: =IF(G28=1,2,0) -> 2
A29: 17 | D29: наличие оборудованных рабочих мест для слушателей и преподавателей | E29: если да = 1, только преподавателей = 2 | G29: 1 | H29: 1 + 1б, 2 + 0,5б | I29: =IF(G29=1,1,0)+IF(G29=2,0.5,0) -> 1
A30: 18 | C30: информационно-технологическое обеспечение | D30: наличие страницы Центра на сайте образовательного учреждения | E30: если да = 1 | G30: 1 | H30: да + 1б | I30: =IF(G30=1,1,0) -> 1
A31: 19 | D31: регулярность обновления страницы Центра на сайте | E31: более 1 раза в месяц = 1, реже = 2 | G31: 1 | H31: 1 + 1б, 2 + 0,5б | I31: =IF(G31=1,1,0)+IF(G31=2,0.5,0) -> 1
A32: 20 | D32: использование доступа в интернет преподавателями и слушателями | E32: если да = 1, только преподавателями = 2 | G32: 1 | H32: 1 + 1б, 2 + 0,5б | I32: =IF(G32=1,1,0)+IF(G32=2,0.5,0) -> 1
A33: 21 | D33: наличие методических материалов Центра на сайте ОУ | E33: если да = 1 | G33: 1 | H33: да + 1б | I33: =IF(G33=1,1,0) -> 1
A34: 22 | D34: наличие Совета Центра | E34: если да = 1 | G34: 1 | H34: да + 0,5б | I34: =IF(G34=1,0.5,0) -> 0.5
A35: 23 | D35: наличие утвержденного положения о деятельности Центра | E35: если да = 1 | G35: 1 | H35: да + 0,5б | I35: =IF(G35=1,0.5,0) -> 0.5
A36: 24 | D36: наличие оформленных договоров с социальными партнерами | E36: если да = 1 | G36: 1 | H36: да + 1б | I36: =IF(G36=1,1,0) -> 1
A37: 25 | C37: учебно-методическое обеспечение | D37: обеспеченность слушателей учебниками, справочной литературой | E37: полное обеспечение = 1, частичное = 2 | G37: 1 | H37: 1 + 2б, 2 + 1б | I37: =IF(G37=1,2,0)+IF(G37=2,1,0) -> 2
A38: 26 | D38: обеспеченность преподавателей методической литературой, программными средствами обучения | E38: полное обеспечение = 1, частичное = 2 | G38: 1 | H38: 1 + 2б, 2 + 1б | I38: =IF(G38=1,2,0)+IF(G38=2,1,0) -> 2
A39: 27 | B39: Результаты образовательной деятельности | C39: уровень и качество общеобразовательной подготовки слушателей | D39: слушатели, применившие полученную информацию на практике | E39: количество | G39: 25 | H39: 100% + 2б | I39: =ROUND(G39/H7*2,1) -> 2
A40: 28 | D40: слушатели, освоившие программу и получившие удостоверение | E40: количество | G40: 25 | H40: 100% + 4б | I40: =ROUND(G40/$H$7*4,1) -> 4
A41: 29 | D41: слушатели, получившие сертификат | E41: количество | H41: 100% + 1б | I41: =ROUND(G41/H7*1,1) -> 0
A42: 30 | C42: сформированность ключевых компетентностей слушателей | D42: слушатели, имеющие документально подтвержденные достижения по теме Программы:
D43: - на школьном уровне | E43: количество | G43: 25 | H43: 100% + 2б | I43: =ROUND(G43/$H$7*2,1) -> 2
D44: - на муниципальном уровне | E44: количество | G44: 13 | H44: 100% + 3б | I44: =ROUND(G44/$H$7*3,1) -> 1.6
D45: - на региональном уровне | E45: количество | G45: 25 | H45: 100% + 4б | I45: =ROUND(G45/$H$7*4,1) -> 4
D46: - на федеральном и международном уровнях | E46: количество | G46: 22 | H46: 100% + 5б | I46: =ROUND(G46/$H$7*5,1) -> 4.4
A47: 31 | C47: уровень обобщения и представления опыта деятельности Центра по теме Программы | D47: публичное представление промежуточных результатов реализации образовательной Программы:
D48: - на школьном уровне | E48: количество | G48: 2 | H48: за 1 + 0,1б | I48: =G48*0.1 -> 0.2
D49: - на муниципальном уровне | E49: количество | G49: 2 | H49: за 1 + 0,2б | I49: =G49*0.2 -> 0.4
D50: - на региональном уровне | E50: количество | G50: 8 | H50: за 1 + 0,3б | I50: =G50*0.3 -> 2.4
D51: - на федеральном и международном уровнях | E51: количество | G51: 2 | H51: за 1 + 0,5б | I51: =G51*0.4 -> 0.8
A52: 32 | D52: организация мероприятий, семинаров различного уровня по теме образовательной Программы:
D53: - на муниципальном уровне | E53: количество | G53: 5 | H53: за 1 + 0,3б | I53: =G53*0.3 -> 1.5
D54: - на региональном уровне | E54: количество | G54: 2 | H54: за 1 + 0,5б | I54: =G54*0.5 -> 1
D55: - на федеральном и международном уровнях | E55: количество | H55: за 1 + 0,7б | I55: =G55*0.7 -> 0
A56: 33 | D56: внешкольная экспертная деятельность преподавателей Центра по теме Программы | E56: количество часов | G56: 32 | H56: за 100ч + 2б | I56: =G56*0.02 -> 0.64
A57: 34 | D57: наличие публикаций в методических изданиях по теме Программы | E57: количество страниц А4, интервал 1,5, шрифт 14 | G57: 12 | H57: за 24 стр. + 2б | I57: =ROUND(G57*2/24,1) -> 1
A58: 35 | D58: количество публикаций в СМИ муниципального и регионального уровня по теме Программы | E58: количество статей | G58: 4 | H58: за 1 ст. + 0,1б | I58: =G58*0.1 -> 0.4
A59: 36 | C59: уровень организации и степень достижения целей и задач инновационной деятельности | D59: наличие рецензии на образовательную Программу | E59: если да = 1 | G59: 1 | H59: да + 2б | I59: =IF(G59=1,2,0) -> 2
A60: 37 | D60: Программа Центра является частью программы развития ОУ | E60: если да = 1 | G60: 1 | H60: да + 1б | I60: =IF(G60=1,1,0) -> 1
A61: 38 | D61: Программа Центра является частью муниципальной программы развития | E61: если да = 1 | G61: 1 | H61: да + 2б | I61: =IF(G61=1,2,0) -> 2
A62: 39 | D62: наличие общественной экспертизы результатов реализации образовательной Программы | E62: если да = 1 | G62: 1 | H62: да + 1б | I62: =IF(G62=1,1,0) -> 1
A63: 40 | D63: публичное представление результатов инновационной деятельности на научно-практических конференциях
D64: - на школьном уровне | E64: если да = 1 | G64: 1 | H64: да + 0,3б | I64: =IF(G64=1,0.3,0) -> 0.3
D65: - на муниципальном уровне | E65: если да = 1 | G65: 1 | H65: да + 0,5б | I65: =IF(G65=1,0.5,0) -> 0.5
D66: - на региональном уровне | E66: если да = 1 | G66: 0 | H66: да + 1б | I66: =IF(G66=1,1,0) -> 0
D67: - на федеральном и международном уровнях | E67: если да = 1 | G67: 1 | H67: да + 2б | I67: =IF(G67=1,2,0) -> 2
A68: Общее рейтинговое значение | I68: =SUM(I13:I41,I43:I46,I48:I51,I53:I62,I64:I67) -> 68.74

Sheet АР Нов
A1: РЕЙТИНГ | D1: ОЦЕНОЧНЫЙ ЛИСТ РЕЙТИНГА РЕЗУЛЬТАТИВНОСТИ ОБРАЗОВАТЕЛЬНЫХ ПРОГРАММ ЦЕНТРОВ ГРАЖДАНСКОГО ОБРАЗОВАНИЯ 2012-2013
A2: первый | C2: =SUM(I13:I22) -> 12.5
A3: второй | C3: =SUM(I23:I38) -> 18.5
A4: третий | C4: =SUM(I39:I41,I43:I46,I48:I51,I53:I62,I64:I67) -> 13.9 | D4: МБОУ-СОШ с.Ново-Кусково Асиновского района Томской области
A5: общее | C5: =SUM(C2:C4) -> 44.9 | D5: Цнтр гражданского образования "Школа социального успеха"
A6: 1.17 | C6: =C5*A6 -> 52.533 | D6: Образовательная программа "Лестница успеха"
A7: Общее количество слушателей образовательной Программы | H7: 10 | I7: человек
A8: Количество педагогических работников | H8: 3 | I8: человек
A9: Количество консультантов из числа опытных старшеклассников, выпускников Центра | H9: 6 | I9: человек
A10: Количество привлеченных специалистов | H10: 1 | I10: человек
A11: Продолжительность образовательной Программы | H11: 60 | I11: часов
A12: № | B12: Направ-ление | C12: Критерии | E12: Значение критерия | F12: Единица измерения | G12: Значение в единицах измерения | H12: Система оценки | I12: Рейтинговое значение
A13: 1 | B13: Образовательная программа | C13: адаптированность | D13: продолжительность образовательной Программы | E13: количество часов | G13: =H11 -> 60 | H13: 18-24 + 1б, 25-48 + 2б, более 48 + 3б | I13: =IF($G$13>17,1,0)+IF($G$13>24,1,0)+IF($G$13>48,1,0) -> 3
A14: 2 | D14: наличие модулей в образовательной Программе для разновозрастных групп | E14: для обучающихся = 1, для обучающихся и взрослых = 2 | G14: 1 | H14: 1 + 1б, 2 + 2б | I14: =IF(G14=1,1,0)+IF(G14=2,2,0) -> 1
A15: 3 | D15: наличие в образовательной Программе активных и интерактивных форм обучения | E15: менее 50% занятий = 1, более 50% занятий = 2 | G15: 2 | H15: 1 + 1б, 2 + 2б | I15: =IF(G15=1,1,0)+IF(G15=2,2,0) -> 2
A16: 4 | D16: преемственность образовательных Программ из года в год | E16: если существует = 1 | G16: 0 | H16: да + 1б | I16: =IF(G16=1,1,0) -> 0
A17: 5 | C17: доступность | D17: наличие модулей, предложенных слушателям на выбор | E17: если 2 модуля = 1, 3 и более модулей = 2 | G17: 0 | H17: 1 + 1б, 2 + 2б | I17: =IF(G17=1,1,0)+IF(G17=2,2,0) -> 0
A18: 6 | D18: проведение мониторинга уровня сформированности ключевых компетентностей | E18: если да = 1 | G18: 1 | H18: да + 3б | I18: =IF(G18=1,3,0) -> 3
A19: 7 | D19: программа реализуется в сетевом взаимодействии с другими Центрами | E19: если да = 1 | G19: 1 | H19: да + 2б | I19: =IF(G19=1,2,0) -> 2
A20: 8 | D20: доля слушателей, привлеченных из других ОУ | E20: количество | G20: 0 | H20: 100% + 3б | I20: =ROUND((G20/H7*3),1) -> 0
A21: 9 | C21: полнота реализации | D21: Программа реализуется в полном объеме | E21: если да = 1 | G21: 1 | H21: да + 1,5б, нет + 1б | I21: =IF(G21=1,1.5,1) -> 1.5
A22: 10 | D22: Программа изменилась при лучших условиях | E22: если да = 1 | G22: 0 | H22: да + 0,5б | I22: =IF(G22=1,0.5,0) -> 0
A23: 11 | B23: Организация образовательного процесса | C23: кадровое обеспечение | D23: укомплектованность преподавательского состава в соответствии с Программой | E23: состав полностью укомплектован = 1 | G23: 1 | H23: да + 2б, нет + 1б | I23: =IF(G23=1,2,1) -> 2
A24: 12 | D24: подготовка преподавателей по теме Программы | E24: количество | G24: 3 | H24: 100% + 2б | I24: =ROUND((G24/(H8+H9+H10)*2),1) -> 0.6
A25: 13 | D25: привлечение специалистов из профессионального сообщества | E25: количество | G25: =H10 -> 1 | H25: 100% + 2б | I25: =ROUND((G25/(H9+H10+H8)*2),1) -> 0.2
A26: 14 | D26: привлечение консультантов из числа обучающихся, выпускников | E26: количество | G26: =H9 -> 6 | H26: 100% + 2б | I26: =ROUND((G26/(H10+H9+H8)*2),1) -> 1.2
A27: 15 | C27: материально-техническое обеспечение | D27: наличие достаточной материальной базы для проведения знаний | E27: если да = 1 | G27: 1 | H27: да + 2б, нет + 1б | I27: =IF(G27=1,2,1) -> 2
A28: 16 | D28: использование материальной базы иных организаций | E28: если да = 1 | G28: 1 | H28: да + 2б | I28: =IF(G28=1,2,0) -> 2
A29: 17 | D29: наличие оборудованных рабочих мест для слушателей и преподавателей | E29: если да = 1, только преподавателей = 2 | G29: 1 | H29: 1 + 1б, 2 + 0,5б | I29: =IF(G29=1,1,0)+IF(G29=2,0.5,0) -> 1
A30: 18 | C30: информационно-технологическое обеспечение | D30: наличие страницы Центра на сайте образовательного учреждения | E30: если да = 1 | G30: 1 | H30: да + 1б | I30: =IF(G30=1,1,0) -> 1
A31: 19 | D31: регулярность обновления страницы Центра на сайте | E31: более 1 раза в месяц = 1, реже = 2 | G31: 2 | H31: 1 + 1б, 2 + 0,5б | I31: =IF(G31=1,1,0)+IF(G31=2,0.5,0) -> 0.5
A32: 20 | D32: использование доступа в интернет преподавателями и слушателями | E32: если да = 1, только преподавателями = 2 | G32: 1 | H32: 1 + 1б, 2 + 0,5б | I32: =IF(G32=1,1,0)+IF(G32=2,0.5,0) -> 1
A33: 21 | D33: наличие методических материалов Центра на сайте ОУ | E33: если да = 1 | G33: 1 | H33: да + 1б | I33: =IF(G33=1,1,0) -> 1
A34: 22 | D34: наличие Совета Центра | E34: если да = 1 | G34: 1 | H34: да + 0,5б | I34: =IF(G34=1,0.5,0) -> 0.5
A35: 23 | D35: наличие утвержденного положения о деятельности Центра | E35: если да = 1 | G35: 1 | H35: да + 0,5б | I35: =IF(G35=1,0.5,0) -> 0.5
A36: 24 | D36: наличие оформленных договоров с социальными партнерами | E36: если да = 1 | G36: 1 | H36: да + 1б | I36: =IF(G36=1,1,0) -> 1
A37: 25 | C37: учебно-методическое обеспечение | D37: обеспеченность слушателей учебниками, справочной литературой | E37: полное обеспечение = 1, частичное = 2 | G37: 1 | H37: 1 + 2б, 2 + 1б | I37: =IF(G37=1,2,0)+IF(G37=2,1,0) -> 2
A38: 26 | D38: обеспеченность преподавателей методической литературой, программными средствами обучения | E38: полное обеспечение = 1, частичное = 2 | G38: 1 | H38: 1 + 2б, 2 + 1б | I38: =IF(G38=1,2,0)+IF(G38=2,1,0) -> 2
A39: 27 | B39: Результаты образовательной деятельности | C39: уровень и качество общеобразовательной подготовки слушателей | D39: слушатели, применившие полученную информацию на практике | E39: количество | G39: 10 | H39: 100% + 2б | I39: =ROUND(G39/H7*2,1) -> 2
A40: 28 | D40: слушатели, освоившие программу и получившие удостоверение | E40: количество | G40: 6 | H40: 100% + 4б | I40: =ROUND(G40/$H$7*4,1) -> 2.4
A41: 29 | D41: слушатели, получившие сертификат | E41: количество | G41: 4 | H41: 100% + 1б | I41: =ROUND(G41/H7*1,1) -> 0.4
A42: 30 | C42: сформированность ключевых компетентностей слушателей | D42: слушатели, имеющие документально подтвержденные достижения по теме Программы:
D43: - на школьном уровне | E43: количество | G43: 0 | H43: 100% + 2б | I43: =ROUND(G43/$H$7*2,1) -> 0
D44: - на муниципальном уровне | E44: количество | G44: 1 | H44: 100% + 3б | I44: =ROUND(G44/$H$7*3,1) -> 0.3
D45: - на региональном уровне | E45: количество | G45: 10 | H45: 100% + 4б | I45: =ROUND(G45/$H$7*4,1) -> 4
D46: - на федеральном и международном уровнях | E46: количество | G46: 0 | H46: 100% + 5б | I46: =ROUND(G46/$H$7*5,1) -> 0
A47: 31 | C47: уровень обобщения и представления опыта деятельности Центра по теме Программы | D47: публичное представление промежуточных результатов реализации образовательной Программы:
D48: - на школьном уровне | E48: количество | G48: 0 | H48: за 1 + 0,1б | I48: =G48*0.1 -> 0
D49: - на муниципальном уровне | E49: количество | G49: 0 | H49: за 1 + 0,2б | I49: =G49*0.2 -> 0
D50: - на региональном уровне | E50: количество | G50: 1 | H50: за 1 + 0,3б | I50: =G50*0.3 -> 0.3
D51: - на федеральном и международном уровнях | E51: количество | G51: 0 | H51: за 1 + 0,5б | I51: =G51*0.4 -> 0
A52: 32 | D52: организация мероприятий, семинаров различного уровня по теме образовательной Программы:
D53: - на муниципальном уровне | E53: количество | G53: 0 | H53: за 1 + 0,3б | I53: =G53*0.3 -> 0
D54: - на региональном уровне | E54: количество | G54: 1 | H54: за 1 + 0,5б | I54: =G54*0.5 -> 0.5
D55: - на федеральном и международном уровнях | E55: количество | G55: 0 | H55: за 1 + 0,7б | I55: =G55*0.7 -> 0
A56: 33 | D56: внешкольная экспертная деятельность преподавателей Центра по теме Программы | E56: количество часов | G56: 0 | H56: за 100ч + 2б | I56: =G56*0.02 -> 0
A57: 34 | D57: наличие публикаций в методических изданиях по теме Программы | E57: количество страниц А4, интервал 1,5, шрифт 14 | G57: 0 | H57: за 24 стр. + 2б | I57: =ROUND(G57*2/24,1) -> 0
A58: 35 | D58: количество публикаций в СМИ муниципального и регионального уровня по теме Программы | E58: количество статей | G58: 0 | H58: за 1 ст. + 0,1б | I58: =G58*0.1 -> 0
A59: 36 | C59: уровень организации и степень достижения целей и задач инновационной деятельности | D59: наличие рецензии на образовательную Программу | E59: если да = 1 | G59: 0 | H59: да + 2б | I59: =IF(G59=1,2,0) -> 0
A60: 37 | D60: Программа Центра является частью программы развития ОУ | E60: если да = 1 | G60: 1 | H60: да + 1б | I60: =IF(G60=1,1,0) -> 1
A61: 38 | D61: Программа Центра является частью муниципальной программы развития | E61: если да = 1 | G61: 1 | H61: да + 2б | I61: =IF(G61=1,2,0) -> 2
A62: 39 | D62: наличие общественной экспертизы результатов реализации образовательной Программы | E62: если да = 1 | G62: 1 | H62: да + 1б | I62: =IF(G62=1,1,0) -> 1
A63: 40 | D63: публичное представление результатов инновационной деятельности на научно-практических конференциях
D64: - на школьном уровне | E64: если да = 1 | G64: 0 | H64: да + 0,3б | I64: =IF(G64=1,0.3,0) -> 0
D65: - на муниципальном уровне | E65: если да = 1 | G65: 0 | H65: да + 0,5б | I65: =IF(G65=1,0.5,0) -> 0
D66: - на региональном уровне | E66: если да = 1 | G66: 0 | H66: да + 1б | I66: =IF(G66=1,1,0) -> 0
D67: - на федеральном и международном уровнях | E67: если да = 1 | G67: 0 | H67: да + 2б | I67: =IF(G67=1,2,0) -> 0
A68: Общее рейтинговое значение | I68: =SUM(I13:I41,I43:I46,I48:I51,I53:I62,I64:I67) -> 44.9

Sheet АР ДДТ
A1: РЕЙТИНГ | D1: ОЦЕНОЧНЫЙ ЛИСТ РЕЙТИНГА РЕЗУЛЬТАТИВНОСТИ ОБРАЗОВАТЕЛЬНЫХ ПРОГРАММ ЦЕНТРОВ ГРАЖДАНСКОГО ОБРАЗОВАНИЯ 2012-2013
A2: первый | C2: =SUM(I13:I22) -> 15
A3: второй | C3: =SUM(I23:I38) -> 17.6
A4: третий | C4: =SUM(I39:I41,I43:I46,I48:I51,I53:I62,I64:I67) -> 12.67 | D4: МБОУ ДОД ДДТ г.Асино
A5: общее | C5: =SUM(C2:C4) -> 45.27 | D5: Центр гражданского образования "Маршрут успеха"
A6: 1 | C6: =C5*A6 -> 45.27 | D6: Образовательная программа "Экологический транзит"
A7: Общее количество слушателей образовательной Программы | H7: 10 | I7: человек
A8: Количество педагогических работников | H8: 2 | I8: человек
A9: Количество консультантов из числа опытных старшеклассников, выпускников Центра | H9: 2 | I9: человек
A10: Количество привлеченных специалистов | H10: 2 | I10: человек
A11: Продолжительность образовательной Программы | H11: 180 | I11: часов
A12: № | B12: Направ-ление | C12: Критерии | E12: Значение критерия | F12: Единица измерения | G12: Значение в единицах измерения | H12: Система оценки | I12: Рейтинговое значение
A13: 1 | B13: Образовательная программа | C13: адаптированность | D13: продолжительность образовательной Программы | E13: количество часов | G13: =H11 -> 180 | H13: 18-24 + 1б, 25-48 + 2б, более 48 + 3б | I13: =IF($G$13>17,1,0)+IF($G$13>24,1,0)+IF($G$13>48,1,0) -> 3
A14: 2 | D14: наличие модулей в образовательной Программе для разновозрастных групп | E14: для обучающихся = 1, для обучающихся и взрослых = 2 | G14: 1 | H14: 1 + 1б, 2 + 2б | I14: =IF(G14=1,1,0)+IF(G14=2,2,0) -> 1
A15: 3 | D15: наличие в образовательной Программе активных и интерактивных форм обучения | E15: менее 50% занятий = 1, более 50% занятий = 2 | G15: 2 | H15: 1 + 1б, 2 + 2б | I15: =IF(G15=1,1,0)+IF(G15=2,2,0) -> 2
A16: 4 | D16: преемственность образовательных Программ из года в год | E16: если существует = 1 | G16: 1 | H16: да + 1б | I16: =IF(G16=1,1,0) -> 1
A17: 5 | C17: доступность | D17: наличие модулей, предложенных слушателям на выбор | E17: если 2 модуля = 1, 3 и более модулей = 2 | G17: 0 | H17: 1 + 1б, 2 + 2б | I17: =IF(G17=1,1,0)+IF(G17=2,2,0) -> 0
A18: 6 | D18: проведение мониторинга уровня сформированности ключевых компетентностей | E18: если да = 1 | G18: 1 | H18: да + 3б | I18: =IF(G18=1,3,0) -> 3
A19: 7 | D19: программа реализуется в сетевом взаимодействии с другими Центрами | E19: если да = 1 | G19: 0 | H19: да + 2б | I19: =IF(G19=1,2,0) -> 0
A20: 8 | D20: доля слушателей, привлеченных из других ОУ | E20: количество | G20: 10 | H20: 100% + 3б | I20: =ROUND((G20/H7*3),1) -> 3
A21: 9 | C21: полнота реализации | D21: Программа реализуется в полном объеме | E21: если да = 1 | G21: 1 | H21: да + 1,5б, нет + 1б | I21: =IF(G21=1,1.5,1) -> 1.5
A22: 10 | D22: Программа изменилась при лучших условиях | E22: если да = 1 | G22: 1 | H22: да + 0,5б | I22: =IF(G22=1,0.5,0) -> 0.5
A23: 11 | B23: Организация образовательного процесса | C23: кадровое обеспечение | D23: укомплектованность преподавательского состава в соответствии с Программой | E23: состав полностью укомплектован = 1 | G23: 1 | H23: да + 2б, нет + 1б | I23: =IF(G23=1,2,1) -> 2
A24: 12 | D24: подготовка преподавателей по теме Программы | E24: количество | G24: 2 | H24: 100% + 2б | I24: =ROUND((G24/(H8+H9+H10)*2),1) -> 0.7
A25: 13 | D25: привлечение специалистов из профессионального сообщества | E25: количество | G25: =H10 -> 2 | H25: 100% + 2б | I25: =ROUND((G25/(H9+H10+H8)*2),1) -> 0.7
A26: 14 | D26: привлечение консультантов из числа обучающихся, выпускников | E26: количество | G26: =H9 -> 2 | H26: 100% + 2б | I26: =ROUND((G26/(H10+H9+H8)*2),1) -> 0.7
A27: 15 | C27: материально-техническое обеспечение | D27: наличие достаточной материальной базы для проведения знаний | E27: если да = 1 | G27: 1 | H27: да + 2б, нет + 1б | I27: =IF(G27=1,2,1) -> 2
A28: 16 | D28: использование материальной базы иных организаций | E28: если да = 1 | G28: 1 | H28: да + 2б | I28: =IF(G28=1,2,0) -> 2
A29: 17 | D29: наличие оборудованных рабочих мест для слушателей и преподавателей | E29: если да = 1, только преподавателей = 2 | G29: 1 | H29: 1 + 1б, 2 + 0,5б | I29: =IF(G29=1,1,0)+IF(G29=2,0.5,0) -> 1
A30: 18 | C30: информационно-технологическое обеспечение | D30: наличие страницы Центра на сайте образовательного учреждения | E30: если да = 1 | G30: 1 | H30: да + 1б | I30: =IF(G30=1,1,0) -> 1
A31: 19 | D31: регулярность обновления страницы Центра на сайте | E31: более 1 раза в месяц = 1, реже = 2 | G31: 1 | H31: 1 + 1б, 2 + 0,5б | I31: =IF(G31=1,1,0)+IF(G31=2,0.5,0) -> 1
A32: 20 | D32: использование доступа в интернет преподавателями и слушателями | E32: если да = 1, только преподавателями = 2 | G32: 1 | H32: 1 + 1б, 2 + 0,5б | I32: =IF(G32=1,1,0)+IF(G32=2,0.5,0) -> 1
A33: 21 | D33: наличие методических материалов Центра на сайте ОУ | E33: если да = 1 | G33: 0 | H33: да + 1б | I33: =IF(G33=1,1,0) -> 0
A34: 22 | D34: наличие Совета Центра | E34: если да = 1 | G34: 0 | H34: да + 0,5б | I34: =IF(G34=1,0.5,0) -> 0
A35: 23 | D35: наличие утвержденного положения о деятельности Центра | E35: если да = 1 | G35: 1 | H35: да + 0,5б | I35: =IF(G35=1,0.5,0) -> 0.5
A36: 24 | D36: наличие оформленных договоров с социальными партнерами | E36: если да = 1 | G36: 1 | H36: да + 1б | I36: =IF(G36=1,1,0) -> 1
A37: 25 | C37: учебно-методическое обеспечение | D37: обеспеченность слушателей учебниками, справочной литературой | E37: полное обеспечение = 1, частичное = 2 | G37: 1 | H37: 1 + 2б, 2 + 1б | I37: =IF(G37=1,2,0)+IF(G37=2,1,0) -> 2
A38: 26 | D38: обеспеченность преподавателей методической литературой, программными средствами обучения | E38: полное обеспечение = 1, частичное = 2 | G38: 1 | H38: 1 + 2б, 2 + 1б | I38: =IF(G38=1,2,0)+IF(G38=2,1,0) -> 2
A39: 27 | B39: Результаты образовательной деятельности | C39: уровень и качество общеобразовательной подготовки слушателей | D39: слушатели, применившие полученную информацию на практике | E39: количество | G39: 10 | H39: 100% + 2б | I39: =ROUND(G39/H7*2,1) -> 2
A40: 28 | D40: слушатели, освоившие программу и получившие удостоверение | E40: количество | G40: 0 | H40: 100% + 4б | I40: =ROUND(G40/$H$7*4,1) -> 0
A41: 29 | D41: слушатели, получившие сертификат | E41: количество | G41: 8 | H41: 100% + 1б | I41: =ROUND(G41/H7*1,1) -> 0.8
A42: 30 | C42: сформированность ключевых компетентностей слушателей | D42: слушатели, имеющие документально подтвержденные достижения по теме Программы:
D43: - на школьном уровне | E43: количество | G43: 8 | H43: 100% + 2б | I43: =ROUND(G43/$H$7*2,1) -> 1.6
D44: - на муниципальном уровне | E44: количество | G44: 8 | H44: 100% + 3б | I44: =ROUND(G44/$H$7*3,1) -> 2.4
D45: - на региональном уровне | E45: количество | G45: 4 | H45: 100% + 4б | I45: =ROUND(G45/$H$7*4,1) -> 1.6
D46: - на федеральном и международном уровнях | E46: количество | H46: 100% + 5б | I46: =ROUND(G46/$H$7*5,1) -> 0
A47: 31 | C47: уровень обобщения и представления опыта деятельности Центра по теме Программы | D47: публичное представление промежуточных результатов реализации образовательной Программы:
D48: - на школьном уровне | E48: количество | G48: 0 | H48: за 1 + 0,1б | I48: =G48*0.1 -> 0
D49: - на муниципальном уровне | E49: количество | G49: 0 | H49: за 1 + 0,2б | I49: =G49*0.2 -> 0
D50: - на региональном уровне | E50: количество | G50: 3 | H50: за 1 + 0,3б | I50: =G50*0.3 -> 0.9
D51: - на федеральном и международном уровнях | E51: количество | G51: 0 | H51: за 1 + 0,5б | I51: =G51*0.4 -> 0
A52: 32 | D52: организация мероприятий, семинаров различного уровня по теме образовательной Программы:
D53: - на муниципальном уровне | E53: количество | G53: 2 | H53: за 1 + 0,3б | I53: =G53*0.3 -> 0.6
D54: - на региональном уровне | E54: количество | G54: 0 | H54: за 1 + 0,5б | I54: =G54*0.5 -> 0
D55: - на федеральном и международном уровнях | E55: количество | G55: 0 | H55: за 1 + 0,7б | I55: =G55*0.7 -> 0
A56: 33 | D56: внешкольная экспертная деятельность преподавателей Центра по теме Программы | E56: количество часов | G56: 3.5 | H56: за 100ч + 2б | I56: =G56*0.02 -> 0.07
A57: 34 | D57: наличие публикаций в методических изданиях по теме Программы | E57: количество страниц А4, интервал 1,5, шрифт 14 | G57: 0 | H57: за 24 стр. + 2б | I57: =ROUND(G57*2/24,1) -> 0
A58: 35 | D58: количество публикаций в СМИ муниципального и регионального уровня по теме Программы | E58: количество статей | G58: 2 | H58: за 1 ст. + 0,1б | I58: =G58*0.1 -> 0.2
A59: 36 | C59: уровень организации и степень достижения целей и задач инновационной деятельности | D59: наличие рецензии на образовательную Программу | E59: если да = 1 | G59: 0 | H59: да + 2б | I59: =IF(G59=1,2,0) -> 0
A60: 37 | D60: Программа Центра является частью программы развития ОУ | E60: если да = 1 | G60: 1 | H60: да + 1б | I60: =IF(G60=1,1,0) -> 1
A61: 38 | D61: Программа Центра является частью муниципальной программы развития | E61: если да = 1 | G61: 0 | H61: да + 2б | I61: =IF(G61=1,2,0) -> 0
A62: 39 | D62: наличие общественной экспертизы результатов реализации образовательной Программы | E62: если да = 1 | G62: 0 | H62: да + 1б | I62: =IF(G62=1,1,0) -> 0
A63: 40 | D63: публичное представление результатов инновационной деятельности на научно-практических конференциях
D64: - на школьном уровне | E64: если да = 1 | G64: 0 | H64: да + 0,3б | I64: =IF(G64=1,0.3,0) -> 0
D65: - на муниципальном уровне | E65: если да = 1 | G65: 1 | H65: да + 0,5б | I65: =IF(G65=1,0.5,0) -> 0.5
D66: - на региональном уровне | E66: если да = 1 | G66: 1 | H66: да + 1б | I66: =IF(G66=1,1,0) -> 1
D67: - на федеральном и международном уровнях | E67: если да = 1 | H67: да + 2б | I67: =IF(G67=1,2,0) -> 0
A68: Общее рейтинговое значение | I68: =SUM(I13:I41,I43:I46,I48:I51,I53:I62,I64:I67) -> 45.27

Sheet БР Выс
A1: РЕЙТИНГ | D1: ОЦЕНОЧНЫЙ ЛИСТ РЕЙТИНГА РЕЗУЛЬТАТИВНОСТИ ОБРАЗОВАТЕЛЬНЫХ ПРОГРАММ ЦЕНТРОВ ГРАЖДАНСКОГО ОБРАЗОВАНИЯ 2012-2013
A2: первый | C2: =SUM(I13:I22) -> 16
A3: второй | C3: =SUM(I23:I38) -> 19
A4: третий | C4: =SUM(I39:I41,I43:I46,I48:I51,I53:I62,I64:I67) -> 18.1 | D4: МКОУ "Высокоярская СОШ" Бакчарского района Томской области
A5: общее | C5: =SUM(C2:C4) -> 53.1 | D5: ЦГО "Действие"
A6: 1.09 | C6: =C5*A6 -> 57.879 | D6: ОП "Гражданство"
A7: Общее количество слушателей образовательной Программы | H7: 65 | I7: человек
A8: Количество педагогических работников | H8: 3 | I8: человек
A9: Количество консультантов из числа опытных старшеклассников, выпускников Центра | H9: 2 | I9: человек
A10: Количество привлеченных специалистов | H10: 0 | I10: человек
A11: Продолжительность образовательной Программы | H11: 271 | I11: часов
A12: № | B12: Направ-ление | C12: Критерии | E12: Значение критерия | F12: Единица измерения | G12: Значение в единицах измерения | H12: Система оценки | I12: Рейтинговое значение
A13: 1 | B13: Образовательная программа | C13: адаптированность | D13: продолжительность образовательной Программы | E13: количество часов | G13: =H11 -> 271 | H13: 18-24 + 1б, 25-48 + 2б, более 48 + 3б | I13: =IF($G$13>17,1,0)+IF($G$13>24,1,0)+IF($G$13>48,1,0) -> 3
A14: 2 | D14: наличие модулей в образовательной Программе для разновозрастных групп | E14: для обучающихся = 1, для обучающихся и взрослых = 2 | G14: 1 | H14: 1 + 1б, 2 + 2б | I14: =IF(G14=1,1,0)+IF(G14=2,2,0) -> 1
A15: 3 | D15: наличие в образовательной Программе активных и интерактивных форм обучения | E15: менее 50% занятий = 1, более 50% занятий = 2 | G15: 2 | H15: 1 + 1б, 2 + 2б | I15: =IF(G15=1,1,0)+IF(G15=2,2,0) -> 2
A16: 4 | D16: преемственность образовательных Программ из года в год | E16: если существует = 1 | G16: 1 | H16: да + 1б | I16: =IF(G16=1,1,0) -> 1
A17: 5 | C17: доступность | D17: наличие модулей, предложенных слушателям на выбор | E17: если 2 модуля = 1, 3 и более модулей = 2 | G17: 2 | H17: 1 + 1б, 2 + 2б | I17: =IF(G17=1,1,0)+IF(G17=2,2,0) -> 2
A18: 6 | D18: проведение мониторинга уровня сформированности ключевых компетентностей | E18: если да = 1 | G18: 1 | H18: да + 3б | I18: =IF(G18=1,3,0) -> 3
A19: 7 | D19: программа реализуется в сетевом взаимодействии с другими Центрами | E19: если да = 1 | G19: 1 | H19: да + 2б | I19: =IF(G19=1,2,0) -> 2
A20: 8 | D20: доля слушателей, привлеченных из других ОУ | E20: количество | G20: 0 | H20: 100% + 3б | I20: =ROUND((G20/H7*3),1) -> 0
A21: 9 | C21: полнота реализации | D21: Программа реализуется в полном объеме | E21: если да = 1 | G21: 1 | H21: да + 1,5б, нет + 1б | I21: =IF(G21=1,1.5,1) -> 1.5
A22: 10 | D22: Программа изменилась при лучших условиях | E22: если да = 1 | G22: 1 | H22: да + 0,5б | I22: =IF(G22=1,0.5,0) -> 0.5
A23: 11 | B23: Организация образовательного процесса | C23: кадровое обеспечение | D23: укомплектованность преподавательского состава в соответствии с Программой | E23: состав полностью укомплектован = 1 | G23: 1 | H23: да + 2б, нет + 1б | I23: =IF(G23=1,2,1) -> 2
A24: 12 | D24: подготовка преподавателей по теме Программы | E24: количество | G24: 3 | H24: 100% + 2б | I24: =ROUND((G24/(H8+H9+H10)*2),1) -> 1.2
A25: 13 | D25: привлечение специалистов из профессионального сообщества | E25: количество | G25: =H10 -> 0 | H25: 100% + 2б | I25: =ROUND((G25/(H9+H10+H8)*2),1) -> 0
A26: 14 | D26: привлечение консультантов из числа обучающихся, выпускников | E26: количество | G26: =H9 -> 2 | H26: 100% + 2б | I26: =ROUND((G26/(H10+H9+H8)*2),1) -> 0.8
A27: 15 | C27: материально-техническое обеспечение | D27: наличие достаточной материальной базы для проведения знаний | E27: если да = 1 | G27: 1 | H27: да + 2б, нет + 1б | I27: =IF(G27=1,2,1) -> 2
A28: 16 | D28: использование материальной базы иных организаций | E28: если да = 1 | G28: 1 | H28: да + 2б | I28: =IF(G28=1,2,0) -> 2
A29: 17 | D29: наличие оборудованных рабочих мест для слушателей и преподавателей | E29: если да = 1, только преподавателей = 2 | G29: 1 | H29: 1 + 1б, 2 + 0,5б | I29: =IF(G29=1,1,0)+IF(G29=2,0.5,0) -> 1
A30: 18 | C30: информационно-технологическое обеспечение | D30: наличие страницы Центра на сайте образовательного учреждения | E30: если да = 1 | G30: 1 | H30: да + 1б | I30: =IF(G30=1,1,0) -> 1
A31: 19 | D31: регулярность обновления страницы Центра на сайте | E31: более 1 раза в месяц = 1, реже = 2 | G31: 1 | H31: 1 + 1б, 2 + 0,5б | I31: =IF(G31=1,1,0)+IF(G31=2,0.5,0) -> 1
A32: 20 | D32: использование доступа в интернет преподавателями и слушателями | E32: если да = 1, только преподавателями = 2 | G32: 1 | H32: 1 + 1б, 2 + 0,5б | I32: =IF(G32=1,1,0)+IF(G32=2,0.5,0) -> 1
A33: 21 | D33: наличие методических материалов Центра на сайте ОУ | E33: если да = 1 | G33: 1 | H33: да + 1б | I33: =IF(G33=1,1,0) -> 1
A34: 22 | D34: наличие Совета Центра | E34: если да = 1 | G34: 1 | H34: да + 0,5б | I34: =IF(G34=1,0.5,0) -> 0.5
A35: 23 | D35: наличие утвержденного положения о деятельности Центра | E35: если да = 1 | G35: 1 | H35: да + 0,5б | I35: =IF(G35=1,0.5,0) -> 0.5
A36: 24 | D36: наличие оформленных договоров с социальными партнерами | E36: если да = 1 | G36: 1 | H36: да + 1б | I36: =IF(G36=1,1,0) -> 1
A37: 25 | C37: учебно-методическое обеспечение | D37: обеспеченность слушателей учебниками, справочной литературой | E37: полное обеспечение = 1, частичное = 2 | G37: 1 | H37: 1 + 2б, 2 + 1б | I37: =IF(G37=1,2,0)+IF(G37=2,1,0) -> 2
A38: 26 | D38: обеспеченность преподавателей методической литературой, программными средствами обучения | E38: полное обеспечение = 1, частичное = 2 | G38: 1 | H38: 1 + 2б, 2 + 1б | I38: =IF(G38=1,2,0)+IF(G38=2,1,0) -> 2
A39: 27 | B39: Результаты образовательной деятельности | C39: уровень и качество общеобразовательной подготовки слушателей | D39: слушатели, применившие полученную информацию на практике | E39: количество | G39: 65 | H39: 100% + 2б | I39: =ROUND(G39/H7*2,1) -> 2
A40: 28 | D40: слушатели, освоившие программу и получившие удостоверение | E40: количество | G40: 16 | H40: 100% + 4б | I40: =ROUND(G40/$H$7*4,1) -> 1
A41: 29 | D41: слушатели, получившие сертификат | E41: количество | G41: 49 | H41: 100% + 1б | I41: =ROUND(G41/H7*1,1) -> 0.8
A42: 30 | C42: сформированность ключевых компетентностей слушателей | D42: слушатели, имеющие документально подтвержденные достижения по теме Программы:
D43: - на школьном уровне | E43: количество | G43: 65 | H43: 100% + 2б | I43: =ROUND(G43/$H$7*2,1) -> 2
D44: - на муниципальном уровне | E44: количество | G44: 57 | H44: 100% + 3б | I44: =ROUND(G44/$H$7*3,1) -> 2.6
D45: - на региональном уровне | E45: количество | G45: 19 | H45: 100% + 4б | I45: =ROUND(G45/$H$7*4,1) -> 1.2
D46: - на федеральном и международном уровнях | E46: количество | G46: 4 | H46: 100% + 5б | I46: =ROUND(G46/$H$7*5,1) -> 0.3
A47: 31 | C47: уровень обобщения и представления опыта деятельности Центра по теме Программы | D47: публичное представление промежуточных результатов реализации образовательной Программы:
D48: - на школьном уровне | E48: количество | G48: 1 | H48: за 1 + 0,1б | I48: =G48*0.1 -> 0.1
D49: - на муниципальном уровне | E49: количество | G49: 1 | H49: за 1 + 0,2б | I49: =G49*0.2 -> 0.2
D50: - на региональном уровне | E50: количество | G50: 0 | H50: за 1 + 0,3б | I50: =G50*0.3 -> 0
D51: - на федеральном и международном уровнях | E51: количество | G51: 0 | H51: за 1 + 0,5б | I51: =G51*0.4 -> 0
A52: 32 | D52: организация мероприятий, семинаров различного уровня по теме образовательной Программы:
D53: - на муниципальном уровне | E53: количество | H53: за 1 + 0,3б | I53: =G53*0.3 -> 0
D54: - на региональном уровне | E54: количество | G54: 2 | H54: за 1 + 0,5б | I54: =G54*0.5 -> 1
D55: - на федеральном и международном уровнях | E55: количество | G55: 0 | H55: за 1 + 0,7б | I55: =G55*0.7 -> 0
A56: 33 | D56: внешкольная экспертная деятельность преподавателей Центра по теме Программы | E56: количество часов | G56: 5 | H56: за 100ч + 2б | I56: =G56*0.02 -> 0.1
A57: 34 | D57: наличие публикаций в методических изданиях по теме Программы | E57: количество страниц А4, интервал 1,5, шрифт 14 | G57: 0 | H57: за 24 стр. + 2б | I57: =ROUND(G57*2/24,1) -> 0
A58: 35 | D58: количество публикаций в СМИ муниципального и регионального уровня по теме Программы | E58: количество статей | G58: 3 | H58: за 1 ст. + 0,1б | I58: =G58*0.1 -> 0.3
A59: 36 | C59: уровень организации и степень достижения целей и задач инновационной деятельности | D59: наличие рецензии на образовательную Программу | E59: если да = 1 | G59: 1 | H59: да + 2б | I59: =IF(G59=1,2,0) -> 2
A60: 37 | D60: Программа Центра является частью программы развития ОУ | E60: если да = 1 | G60: 1 | H60: да + 1б | I60: =IF(G60=1,1,0) -> 1
A61: 38 | D61: Программа Центра является частью муниципальной программы развития | E61: если да = 1 | G61: 1 | H61: да + 2б | I61: =IF(G61=1,2,0) -> 2
A62: 39 | D62: наличие общественной экспертизы результатов реализации образовательной Программы | E62: если да = 1 | G62: 1 | H62: да + 1б | I62: =IF(G62=1,1,0) -> 1
A63: 40 | D63: публичное представление результатов инновационной деятельности на научно-практических конференциях
D64: - на школьном уровне | E64: если да = 1 | G64: 0 | H64: да + 0,3б | I64: =IF(G64=1,0.3,0) -> 0
D65: - на муниципальном уровне | E65: если да = 1 | G65: 1 | H65: да + 0,5б | I65: =IF(G65=1,0.5,0) -> 0.5
D66: - на региональном уровне | E66: если да = 1 | G66: 0 | H66: да + 1б | I66: =IF(G66=1,1,0) -> 0
D67: - на федеральном и международном уровнях | E67: если да = 1 | G67: 0 | H67: да + 2б | I67: =IF(G67=1,2,0) -> 0
A68: Общее рейтинговое значение | I68: =SUM(I13:I41,I43:I46,I48:I51,I53:I62,I64:I67) -> 53.1

Sheet БР Бак
A1: РЕЙТИНГ | D1: ОЦЕНОЧНЫЙ ЛИСТ РЕЙТИНГА РЕЗУЛЬТАТИВНОСТИ ОБРАЗОВАТЕЛЬНЫХ ПРОГРАММ ЦЕНТРОВ ГРАЖДАНСКОГО ОБРАЗОВАНИЯ 2012-2013
A2: первый | C2: =SUM(I13:I22) -> 4.5
A3: второй | C3: =SUM(I23:I38) -> 15.8
A4: третий | C4: =SUM(I39:I41,I43:I46,I48:I51,I53:I62,I64:I67) -> 14.22 | D4: МБОУ "Бакчарская СОШ"
A5: общее | C5: =SUM(C2:C4) -> 34.52 | D5: Центр гражданского образования "Искра"
A6: 1.04 | C6: =C5*A6 -> 35.9008 | D6: Образовательная программа "Лидер XXI века"
A7: Общее количество слушателей образовательной Программы | H7: 15 | I7: человек
A8: Количество педагогических работников | H8: 5 | I8: человек
A9: Количество консультантов из числа опытных старшеклассников, выпускников Центра | H9: 3 | I9: человек
A10: Количество привлеченных специалистов | H10: 0 | I10: человек
A11: Продолжительность образовательной Программы | H11: 46 | I11: часов
A12: № | B12: Направ-ление | C12: Критерии | E12: Значение критерия | F12: Единица измерения | G12: Значение в единицах измерения | H12: Система оценки | I12: Рейтинговое значение
A13: 1 | B13: Образовательная программа | C13: адаптированность | D13: продолжительность образовательной Программы | E13: количество часов | G13: =H11 -> 46 | H13: 18-24 + 1б, 25-48 + 2б, более 48 + 3б | I13: =IF($G$13>17,1,0)+IF($G$13>24,1,0)+IF($G$13>48,1,0) -> 2
A14: 2 | D14: наличие модулей в образовательной Программе для разновозрастных групп | E14: для обучающихся = 1, для обучающихся и взрослых = 2 | G14: 0 | H14: 1 + 1б, 2 + 2б | I14: =IF(G14=1,1,0)+IF(G14=2,2,0) -> 0
A15: 3 | D15: наличие в образовательной Программе активных и интерактивных форм обучения | E15: менее 50% занятий = 1, более 50% занятий = 2 | G15: 1 | H15: 1 + 1б, 2 + 2б | I15: =IF(G15=1,1,0)+IF(G15=2,2,0) -> 1
A16: 4 | D16: преемственность образовательных Программ из года в год | E16: если существует = 1 | H16: да + 1б | I16: =IF(G16=1,1,0) -> 0
A17: 5 | C17: доступность | D17: наличие модулей, предложенных слушателям на выбор | E17: если 2 модуля = 1, 3 и более модулей = 2 | G17: 0 | H17: 1 + 1б, 2 + 2б | I17: =IF(G17=1,1,0)+IF(G17=2,2,0) -> 0
A18: 6 | D18: проведение мониторинга уровня сформированности ключевых компетентностей | E18: если да = 1 | H18: да + 3б | I18: =IF(G18=1,3,0) -> 0
A19: 7 | D19: программа реализуется в сетевом взаимодействии с другими Центрами | E19: если да = 1 | H19: да + 2б | I19: =IF(G19=1,2,0) -> 0
A20: 8 | D20: доля слушателей, привлеченных из других ОУ | E20: количество | H20: 100% + 3б | I20: =ROUND((G20/H7*3),1) -> 0
A21: 9 | C21: полнота реализации | D21: Программа реализуется в полном объеме | E21: если да = 1 | G21: 1 | H21: да + 1,5б, нет + 1б | I21: =IF(G21=1,1.5,1) -> 1.5
A22: 10 | D22: Программа изменилась при лучших условиях | E22: если да = 1 | H22: да + 0,5б | I22: =IF(G22=1,0.5,0) -> 0
A23: 11 | B23: Организация образовательного процесса | C23: кадровое обеспечение | D23: укомплектованность преподавательского состава в соответствии с Программой | E23: состав полностью укомплектован = 1 | G23: 1 | H23: да + 2б, нет + 1б | I23: =IF(G23=1,2,1) -> 2
A24: 12 | D24: подготовка преподавателей по теме Программы | E24: количество | H24: 100% + 2б | I24: =ROUND((G24/(H8+H9+H10)*2),1) -> 0
A25: 13 | D25: привлечение специалистов из профессионального сообщества | E25: количество | G25: =H10 -> 0 | H25: 100% + 2б | I25: =ROUND((G25/(H9+H10+H8)*2),1) -> 0
A26: 14 | D26: привлечение консультантов из числа обучающихся, выпускников | E26: количество | G26: =H9 -> 3 | H26: 100% + 2б | I26: =ROUND((G26/(H10+H9+H8)*2),1) -> 0.8
A27: 15 | C27: материально-техническое обеспечение | D27: наличие достаточной материальной базы для проведения знаний | E27: если да = 1 | G27: 1 | H27: да + 2б, нет + 1б | I27: =IF(G27=1,2,1) -> 2
A28: 16 | D28: использование материальной базы иных организаций | E28: если да = 1 | G28: 1 | H28: да + 2б | I28: =IF(G28=1,2,0) -> 2
A29: 17 | D29: наличие оборудованных рабочих мест для слушателей и преподавателей | E29: если да = 1, только преподавателей = 2 | G29: 1 | H29: 1 + 1б, 2 + 0,5б | I29: =IF(G29=1,1,0)+IF(G29=2,0.5,0) -> 1
A30: 18 | C30: информационно-технологическое обеспечение | D30: наличие страницы Центра на сайте образовательного учреждения | E30: если да = 1 | G30: 1 | H30: да + 1б | I30: =IF(G30=1,1,0) -> 1
A31: 19 | D31: регулярность обновления страницы Центра на сайте | E31: более 1 раза в месяц = 1, реже = 2 | G31: 1 | H31: 1 + 1б, 2 + 0,5б | I31: =IF(G31=1,1,0)+IF(G31=2,0.5,0) -> 1
A32: 20 | D32: использование доступа в интернет преподавателями и слушателями | E32: если да = 1, только преподавателями = 2 | G32: 2 | H32: 1 + 1б, 2 + 0,5б | I32: =IF(G32=1,1,0)+IF(G32=2,0.5,0) -> 0.5
A33: 21 | D33: наличие методических материалов Центра на сайте ОУ | E33: если да = 1 | H33: да + 1б | I33: =IF(G33=1,1,0) -> 0
A34: 22 | D34: наличие Совета Центра | E34: если да = 1 | H34: да + 0,5б | I34: =IF(G34=1,0.5,0) -> 0
A35: 23 | D35: наличие утвержденного положения о деятельности Центра | E35: если да = 1 | G35: 1 | H35: да + 0,5б | I35: =IF(G35=1,0.5,0) -> 0.5
A36: 24 | D36: наличие оформленных договоров с социальными партнерами | E36: если да = 1 | G36: 1 | H36: да + 1б | I36: =IF(G36=1,1,0) -> 1
A37: 25 | C37: учебно-методическое обеспечение | D37: обеспеченность слушателей учебниками, справочной литературой | E37: полное обеспечение = 1, частичное = 2 | G37: 1 | H37: 1 + 2б, 2 + 1б | I37: =IF(G37=1,2,0)+IF(G37=2,1,0) -> 2
A38: 26 | D38: обеспеченность преподавателей методической литературой, программными средствами обучения | E38: полное обеспечение = 1, частичное = 2 | G38: 1 | H38: 1 + 2б, 2 + 1б | I38: =IF(G38=1,2,0)+IF(G38=2,1,0) -> 2
A39: 27 | B39: Результаты образовательной деятельности | C39: уровень и качество общеобразовательной подготовки слушателей | D39: слушатели, применившие полученную информацию на практике | E39: количество | G39: 15 | H39: 100% + 2б | I39: =ROUND(G39/H7*2,1) -> 2
A40: 28 | D40: слушатели, освоившие программу и получившие удостоверение | E40: количество | G40: 11 | H40: 100% + 4б | I40: =ROUND(G40/$H$7*4,1) -> 2.9
A41: 29 | D41: слушатели, получившие сертификат | E41: количество | G41: 4 | H41: 100% + 1б | I41: =ROUND(G41/H7*1,1) -> 0.3
A42: 30 | C42: сформированность ключевых компетентностей слушателей | D42: слушатели, имеющие документально подтвержденные достижения по теме Программы:
D43: - на школьном уровне | E43: количество | G43: 15 | H43: 100% + 2б | I43: =ROUND(G43/$H$7*2,1) -> 2
D44: - на муниципальном уровне | E44: количество | G44: 11 | H44: 100% + 3б | I44: =ROUND(G44/$H$7*3,1) -> 2.2
D45: - на региональном уровне | E45: количество | H45: 100% + 4б | I45: =ROUND(G45/$H$7*4,1) -> 0
D46: - на федеральном и международном уровнях | E46: количество | H46: 100% + 5б | I46: =ROUND(G46/$H$7*5,1) -> 0
A47: 31 | C47: уровень обобщения и представления опыта деятельности Центра по теме Программы | D47: публичное представление промежуточных результатов реализации образовательной Программы:
D48: - на школьном уровне | E48: количество | H48: за 1 + 0,1б | I48: =G48*0.1 -> 0
D49: - на муниципальном уровне | E49: количество | G49: 5 | H49: за 1 + 0,2б | I49: =G49*0.2 -> 1
D50: - на региональном уровне | E50: количество | G50: 2 | H50: за 1 + 0,3б | I50: =G50*0.3 -> 0.6
D51: - на федеральном и международном уровнях | E51: количество | H51: за 1 + 0,5б | I51: =G51*0.4 -> 0
A52: 32 | D52: организация мероприятий, семинаров различного уровня по теме образовательной Программы:
D53: - на муниципальном уровне | E53: количество | H53: за 1 + 0,3б | I53: =G53*0.3 -> 0
D54: - на региональном уровне | E54: количество | H54: за 1 + 0,5б | I54: =G54*0.5 -> 0
D55: - на федеральном и международном уровнях | E55: количество | H55: за 1 + 0,7б | I55: =G55*0.7 -> 0
A56: 33 | D56: внешкольная экспертная деятельность преподавателей Центра по теме Программы | E56: количество часов | G56: 6 | H56: за 100ч + 2б | I56: =G56*0.02 -> 0.12
A57: 34 | D57: наличие публикаций в методических изданиях по теме Программы | E57: количество страниц А4, интервал 1,5, шрифт 14 | H57: за 24 стр. + 2б | I57: =ROUND(G57*2/24,1) -> 0
A58: 35 | D58: количество публикаций в СМИ муниципального и регионального уровня по теме Программы | E58: количество статей | G58: 1 | H58: за 1 ст. + 0,1б | I58: =G58*0.1 -> 0.1
A59: 36 | C59: уровень организации и степень достижения целей и задач инновационной деятельности | D59: наличие рецензии на образовательную Программу | E59: если да = 1 | G59: 1 | H59: да + 2б | I59: =IF(G59=1,2,0) -> 2
A60: 37 | D60: Программа Центра является частью программы развития ОУ | E60: если да = 1 | G60: 1 | H60: да + 1б | I60: =IF(G60=1,1,0) -> 1
A61: 38 | D61: Программа Центра является частью муниципальной программы развития | E61: если да = 1 | H61: да + 2б | I61: =IF(G61=1,2,0) -> 0
A62: 39 | D62: наличие общественной экспертизы результатов реализации образовательной Программы | E62: если да = 1 | H62: да + 1б | I62: =IF(G62=1,1,0) -> 0
A63: 40 | D63: публичное представление результатов инновационной деятельности на научно-практических конференциях
D64: - на школьном уровне | E64: если да = 1 | H64: да + 0,3б | I64: =IF(G64=1,0.3,0) -> 0
D65: - на муниципальном уровне | E65: если да = 1 | H65: да + 0,5б | I65: =IF(G65=1,0.5,0) -> 0
D66: - на региональном уровне | E66: если да = 1 | H66: да + 1б | I66: =IF(G66=1,1,0) -> 0
D67: - на федеральном и международном уровнях | E67: если да = 1 | H67: да + 2б | I67: =IF(G67=1,2,0) -> 0
A68: Общее рейтинговое значение | I68: =SUM(I13:I41,I43:I46,I48:I51,I53:I62,I64:I67) -> 34.52

Sheet ЗР Зыр
A1: РЕЙТИНГ | D1: ОЦЕНОЧНЫЙ ЛИСТ РЕЙТИНГА РЕЗУЛЬТАТИВНОСТИ ОБРАЗОВАТЕЛЬНЫХ ПРОГРАММ ЦЕНТРОВ ГРАЖДАНСКОГО ОБРАЗОВАНИЯ 2012-2013
A2: первый | C2: =SUM(I13:I22) -> 14
A3: второй | C3: =SUM(I23:I38) -> 18.6
A4: третий | C4: =SUM(I39:I41,I43:I46,I48:I51,I53:I62,I64:I67) -> 19.6 | D4: Сокращенное наименование образовательного учреждения МБОУ "Зырянская СОШ"
A5: общее | C5: =SUM(C2:C4) -> 52.2 | D5: Центр гражданского образования "Социальное проектирование"
A6: 1.04 | C6: =C5*A6 -> 54.288 | D6: Образовательная Программа "Социальное проектирование"
A7: Общее количество слушателей образовательной Программы | H7: 26 | I7: человек
A8: Количество педагогических работников | H8: 3 | I8: человек
A9: Количество консультантов из числа опытных старшеклассников, выпускников Центра | H9: 5 | I9: человек
A10: Количество привлеченных специалистов | H10: 0 | I10: человек
A11: Продолжительность образовательной Программы | H11: 68 | I11: часов
A12: № | B12: Направ-ление | C12: Критерии | E12: Значение критерия | F12: Единица измерения | G12: Значение в единицах измерения | H12: Система оценки | I12: Рейтинговое значение
A13: 1 | B13: Образовательная программа | C13: адаптированность | D13: продолжительность образовательной Программы | E13: количество часов | G13: =H11 -> 68 | H13: 18-24 + 1б, 25-48 + 2б, более 48 + 3б | I13: =IF($G$13>17,1,0)+IF($G$13>24,1,0)+IF($G$13>48,1,0) -> 3
A14: 2 | D14: наличие модулей в образовательной Программе для разновозрастных групп | E14: для обучающихся = 1, для обучающихся и взрослых = 2 | G14: 1 | H14: 1 + 1б, 2 + 2б | I14: =IF(G14=1,1,0)+IF(G14=2,2,0) -> 1
A15: 3 | D15: наличие в образовательной Программе активных и интерактивных форм обучения | E15: менее 50% занятий = 1, более 50% занятий = 2 | G15: 2 | H15: 1 + 1б, 2 + 2б | I15: =IF(G15=1,1,0)+IF(G15=2,2,0) -> 2
A16: 4 | D16: преемственность образовательных Программ из года в год | E16: если существует = 1 | G16: 1 | H16: да + 1б | I16: =IF(G16=1,1,0) -> 1
A17: 5 | C17: доступность | D17: наличие модулей, предложенных слушателям на выбор | E17: если 2 модуля = 1, 3 и более модулей = 2 | G17: 0 | H17: 1 + 1б, 2 + 2б | I17: =IF(G17=1,1,0)+IF(G17=2,2,0) -> 0
A18: 6 | D18: проведение мониторинга уровня сформированности ключевых компетентностей | E18: если да = 1 | G18: 1 | H18: да + 3б | I18: =IF(G18=1,3,0) -> 3
A19: 7 | D19: программа реализуется в сетевом взаимодействии с другими Центрами | E19: если да = 1 | G19: 1 | H19: да + 2б | I19: =IF(G19=1,2,0) -> 2
A20: 8 | D20: доля слушателей, привлеченных из других ОУ | E20: количество | G20: =-G211 -> 0 | H20: 100% + 3б | I20: =ROUND((G20/H7*3),1) -> 0
A21: 9 | C21: полнота реализации | D21: Программа реализуется в полном объеме | E21: если да = 1 | G21: 1 | H21: да + 1,5б, нет + 1б | I21: =IF(G21=1,1.5,1) -> 1.5
A22: 10 | D22: Программа изменилась при лучших условиях | E22: если да = 1 | G22: 1 | H22: да + 0,5б | I22: =IF(G22=1,0.5,0) -> 0.5
A23: 11 | B23: Организация образовательного процесса | C23: кадровое обеспечение | D23: укомплектованность преподавательского состава в соответствии с Программой | E23: состав полностью укомплектован = 1 | G23: 1 | H23: да + 2б, нет + 1б | I23: =IF(G23=1,2,1) -> 2
A24: 12 | D24: подготовка преподавателей по теме Программы | E24: количество | G24: 1 | H24: 100% + 2б | I24: =ROUND((G24/(H8+H9+H10)*2),1) -> 0.3
A25: 13 | D25: привлечение специалистов из профессионального сообщества | E25: количество | G25: =H10 -> 0 | H25: 100% + 2б | I25: =ROUND((G25/(H9+H10+H8)*2),1) -> 0
A26: 14 | D26: привлечение консультантов из числа обучающихся, выпускников | E26: количество | G26: =H9 -> 5 | H26: 100% + 2б | I26: =ROUND((G26/(H10+H9+H8)*2),1) -> 1.3
A27: 15 | C27: материально-техническое обеспечение | D27: наличие достаточной материальной базы для проведения знаний | E27: если да = 1 | G27: 1 | H27: да + 2б, нет + 1б | I27: =IF(G27=1,2,1) -> 2
A28: 16 | D28: использование материальной базы иных организаций | E28: если да = 1 | G28: 1 | H28: да + 2б | I28: =IF(G28=1,2,0) -> 2
A29: 17 | D29: наличие оборудованных рабочих мест для слушателей и преподавателей | E29: если да = 1, только преподавателей = 2 | G29: 1 | H29: 1 + 1б, 2 + 0,5б | I29: =IF(G29=1,1,0)+IF(G29=2,0.5,0) -> 1
A30: 18 | C30: информационно-технологическое обеспечение | D30: наличие страницы Центра на сайте образовательного учреждения | E30: если да = 1 | G30: 1 | H30: да + 1б | I30: =IF(G30=1,1,0) -> 1
A31: 19 | D31: регулярность обновления страницы Центра на сайте | E31: более 1 раза в месяц = 1, реже = 2 | G31: 1 | H31: 1 + 1б, 2 + 0,5б | I31: =IF(G31=1,1,0)+IF(G31=2,0.5,0) -> 1
A32: 20 | D32: использование доступа в интернет преподавателями и слушателями | E32: если да = 1, только преподавателями = 2 | G32: 1 | H32: 1 + 1б, 2 + 0,5б | I32: =IF(G32=1,1,0)+IF(G32=2,0.5,0) -> 1
A33: 21 | D33: наличие методических материалов Центра на сайте ОУ | E33: если да = 1 | G33: 1 | H33: да + 1б | I33: =IF(G33=1,1,0) -> 1
A34: 22 | D34: наличие Совета Центра | E34: если да = 1 | G34: 1 | H34: да + 0,5б | I34: =IF(G34=1,0.5,0) -> 0.5
A35: 23 | D35: наличие утвержденного положения о деятельности Центра | E35: если да = 1 | G35: 1 | H35: да + 0,5б | I35: =IF(G35=1,0.5,0) -> 0.5
A36: 24 | D36: наличие оформленных договоров с социальными партнерами | E36: если да = 1 | G36: 1 | H36: да + 1б | I36: =IF(G36=1,1,0) -> 1
A37: 25 | C37: учебно-методическое обеспечение | D37: обеспеченность слушателей учебниками, справочной литературой | E37: полное обеспечение = 1, частичное = 2 | G37: 1 | H37: 1 + 2б, 2 + 1б | I37: =IF(G37=1,2,0)+IF(G37=2,1,0) -> 2
A38: 26 | D38: обеспеченность преподавателей методической литературой, программными средствами обучения | E38: полное обеспечение = 1, частичное = 2 | G38: 1 | H38: 1 + 2б, 2 + 1б | I38: =IF(G38=1,2,0)+IF(G38=2,1,0) -> 2
A39: 27 | B39: Результаты образовательной деятельности | C39: уровень и качество общеобразовательной подготовки слушателей | D39: слушатели, применившие полученную информацию на практике | E39: количество | G39: 26 | H39: 100% + 2б | I39: =ROUND(G39/H7*2,1) -> 2
A40: 28 | D40: слушатели, освоившие программу и получившие удостоверение | E40: количество | G40: 26 | H40: 100% + 4б | I40: =ROUND(G40/$H$7*4,1) -> 4
A41: 29 | D41: слушатели, получившие сертификат | E41: количество | G41: =-G4326 -> 0 | H41: 100% + 1б | I41: =ROUND(G41/H7*1,1) -> 0
A42: 30 | C42: сформированность ключевых компетентностей слушателей | D42: слушатели, имеющие документально подтвержденные достижения по теме Программы:
D43: - на школьном уровне | E43: количество | G43: 25 | H43: 100% + 2б | I43: =ROUND(G43/$H$7*2,1) -> 1.9
D44: - на муниципальном уровне | E44: количество | G44: 26 | H44: 100% + 3б | I44: =ROUND(G44/$H$7*3,1) -> 3
D45: - на региональном уровне | E45: количество | G45: 14 | H45: 100% + 4б | I45: =ROUND(G45/$H$7*4,1) -> 2.2
D46: - на федеральном и международном уровнях | E46: количество | G46: =-G485 -> 0 | H46: 100% + 5б | I46: =ROUND(G46/$H$7*5,1) -> 0
A47: 31 | C47: уровень обобщения и представления опыта деятельности Центра по теме Программы | D47: публичное представление промежуточных результатов реализации образовательной Программы:
D48: - на школьном уровне | E48: количество | G48: 0 | H48: за 1 + 0,1б | I48: =G48*0.1 -> 0
D49: - на муниципальном уровне | E49: количество | G49: 1 | H49: за 1 + 0,2б | I49: =G49*0.2 -> 0.2
D50: - на региональном уровне | E50: количество | G50: 0 | H50: за 1 + 0,3б | I50: =G50*0.3 -> 0
D51: - на федеральном и международном уровнях | E51: количество | G51: =-G531 -> 0 | H51: за 1 + 0,5б | I51: =G51*0.4 -> 0
A52: 32 | D52: организация мероприятий, семинаров различного уровня по теме образовательной Программы:
D53: - на муниципальном уровне | E53: количество | G53: 2 | H53: за 1 + 0,3б | I53: =G53*0.3 -> 0.6
D54: - на региональном уровне | E54: количество | G54: 0 | H54: за 1 + 0,5б | I54: =G54*0.5 -> 0
D55: - на федеральном и международном уровнях | E55: количество | G55: 0 | H55: за 1 + 0,7б | I55: =G55*0.7 -> 0
A56: 33 | D56: внешкольная экспертная деятельность преподавателей Центра по теме Программы | E56: количество часов | G56: 5 | H56: за 100ч + 2б | I56: =G56*0.02 -> 0.1
A57: 34 | D57: наличие публикаций в методических изданиях по теме Программы | E57: количество страниц А4, интервал 1,5, шрифт 14 | G57: =-G5811 -> 0 | H57: за 24 стр. + 2б | I57: =ROUND(G57*2/24,1) -> 0
A58: 35 | D58: количество публикаций в СМИ муниципального и регионального уровня по теме Программы | E58: количество статей | G58: 1 | H58: за 1 ст. + 0,1б | I58: =G58*0.1 -> 0.1
A59: 36 | C59: уровень организации и степень достижения целей и задач инновационной деятельности | D59: наличие рецензии на образовательную Программу | E59: если да = 1 | H59: да + 2б | I59: =IF(G59=1,2,0) -> 0
A60: 37 | D60: Программа Центра является частью программы развития ОУ | E60: если да = 1 | G60: 1 | H60: да + 1б | I60: =IF(G60=1,1,0) -> 1
A61: 38 | D61: Программа Центра является частью муниципальной программы развития | E61: если да = 1 | G61: 1 | H61: да + 2б | I61: =IF(G61=1,2,0) -> 2
A62: 39 | D62: наличие общественной экспертизы результатов реализации образовательной Программы | E62: если да = 1 | G62: 1 | H62: да + 1б | I62: =IF(G62=1,1,0) -> 1
A63: 40 | D63: публичное представление результатов инновационной деятельности на научно-практических конференциях
D64: - на школьном уровне | E64: если да = 1 | G64: 0 | H64: да + 0,3б | I64: =IF(G64=1,0.3,0) -> 0
D65: - на муниципальном уровне | E65: если да = 1 | G65: 1 | H65: да + 0,5б | I65: =IF(G65=1,0.5,0) -> 0.5
D66: - на региональном уровне | E66: если да = 1 | G66: 1 | H66: да + 1б | I66: =IF(G66=1,1,0) -> 1
D67: - на федеральном и международном уровнях | E67: если да = 1 | G67: 0 | H67: да + 2б | I67: =IF(G67=1,2,0) -> 0
A68: Общее рейтинговое значение | I68: =SUM(I13:I41,I43:I46,I48:I51,I53:I62,I64:I67) -> 52.2

Sheet ЗР Зыр Выс
A1: РЕЙТИНГ | D1: ОЦЕНОЧНЫЙ ЛИСТ РЕЙТИНГА РЕЗУЛЬТАТИВНОСТИ ОБРАЗОВАТЕЛЬНЫХ ПРОГРАММ ЦЕНТРОВ ГРАЖДАНСКОГО ОБРАЗОВАНИЯ 2012-2013
A2: первый | C2: =SUM(I13:I22) -> 12.5
A3: второй | C3: =SUM(I23:I38) -> 8.8
A4: третий | C4: =SUM(I39:I41,I43:I46,I48:I51,I53:I62,I64:I67) -> 10.9 | D4: МОУ "Высоковская СОШ"
A5: общее | C5: =SUM(C2:C4) -> 32.2 | D5: Центр гражданского образования "Искорка"
A6: 1.17 | C6: =C5*A6 -> 37.674 | D6: Образовательная программа "Новое поколение"
A7: Общее количество слушателей образовательной Программы | H7: 15 | I7: человек
A8: Количество педагогических работников | H8: 3 | I8: человек
A9: Количество консультантов из числа опытных старшеклассников, выпускников Центра | H9: 0 | I9: человек
A10: Количество привлеченных специалистов | H10: 0 | I10: человек
A11: Продолжительность образовательной Программы | H11: 68 | I11: часов
A12: № | B12: Направ-ление | C12: Критерии | E12: Значение критерия | F12: Единица измерения | G12: Значение в единицах измерения | H12: Система оценки | I12: Рейтинговое значение
A13: 1 | B13: Образовательная программа | C13: адаптированность | D13: продолжительность образовательной Программы | E13: количество часов | G13: =H11 -> 68 | H13: 18-24 + 1б, 25-48 + 2б, более 48 + 3б | I13: =IF($G$13>17,1,0)+IF($G$13>24,1,0)+IF($G$13>48,1,0) -> 3
A14: 2 | D14: наличие модулей в образовательной Программе для разновозрастных групп | E14: для обучающихся = 1, для обучающихся и взрослых = 2 | G14: 1 | H14: 1 + 1б, 2 + 2б | I14: =IF(G14=1,1,0)+IF(G14=2,2,0) -> 1
A15: 3 | D15: наличие в образовательной Программе активных и интерактивных форм обучения | E15: менее 50% занятий = 1, более 50% занятий = 2 | G15: 1 | H15: 1 + 1б, 2 + 2б | I15: =IF(G15=1,1,0)+IF(G15=2,2,0) -> 1
A16: 4 | D16: преемственность образовательных Программ из года в год | E16: если существует = 1 | G16: 1 | H16: да + 1б | I16: =IF(G16=1,1,0) -> 1
A17: 5 | C17: доступность | D17: наличие модулей, предложенных слушателям на выбор | E17: если 2 модуля = 1, 3 и более модулей = 2 | G17: 0 | H17: 1 + 1б, 2 + 2б | I17: =IF(G17=1,1,0)+IF(G17=2,2,0) -> 0
A18: 6 | D18: проведение мониторинга уровня сформированности ключевых компетентностей | E18: если да = 1 | G18: 1 | H18: да + 3б | I18: =IF(G18=1,3,0) -> 3
A19: 7 | D19: программа реализуется в сетевом взаимодействии с другими Центрами | E19: если да = 1 | G19: 1 | H19: да + 2б | I19: =IF(G19=1,2,0) -> 2
A20: 8 | D20: доля слушателей, привлеченных из других ОУ | E20: количество | G20: 0 | H20: 100% + 3б | I20: =ROUND((G20/H7*3),1) -> 0
A21: 9 | C21: полнота реализации | D21: Программа реализуется в полном объеме | E21: если да = 1 | G21: 1 | H21: да + 1,5б, нет + 1б | I21: =IF(G21=1,1.5,1) -> 1.5
A22: 10 | D22: Программа изменилась при лучших условиях | E22: если да = 1 | G22: 0 | H22: да + 0,5б | I22: =IF(G22=1,0.5,0) -> 0
A23: 11 | B23: Организация образовательного процесса | C23: кадровое обеспечение | D23: укомплектованность преподавательского состава в соответствии с Программой | E23: состав полностью укомплектован = 1 | G23: 0 | H23: да + 2б, нет + 1б | I23: =IF(G23=1,2,1) -> 1
A24: 12 | D24: подготовка преподавателей по теме Программы | E24: количество | G24: 2 | H24: 100% + 2б | I24: =ROUND((G24/(H8+H9+H10)*2),1) -> 1.3
A25: 13 | D25: привлечение специалистов из профессионального сообщества | E25: количество | G25: =H10 -> 0 | H25: 100% + 2б | I25: =ROUND((G25/(H9+H10+H8)*2),1) -> 0
A26: 14 | D26: привлечение консультантов из числа обучающихся, выпускников | E26: количество | G26: =H9 -> 0 | H26: 100% + 2б | I26: =ROUND((G26/(H10+H9+H8)*2),1) -> 0
A27: 15 | C27: материально-техническое обеспечение | D27: наличие достаточной материальной базы для проведения знаний | E27: если да = 1 | G27: 0 | H27: да + 2б, нет + 1б | I27: =IF(G27=1,2,1) -> 1
A28: 16 | D28: использование материальной базы иных организаций | E28: если да = 1 | G28: 1 | H28: да + 2б | I28: =IF(G28=1,2,0) -> 2
A29: 17 | D29: наличие оборудованных рабочих мест для слушателей и преподавателей | E29: если да = 1, только преподавателей = 2 | G29: 1 | H29: 1 + 1б, 2 + 0,5б | I29: =IF(G29=1,1,0)+IF(G29=2,0.5,0) -> 1
A30: 18 | C30: информационно-технологическое обеспечение | D30: наличие страницы Центра на сайте образовательного учреждения | E30: если да = 1 | G30: 0 | H30: да + 1б | I30: =IF(G30=1,1,0) -> 0
A31: 19 | D31: регулярность обновления страницы Центра на сайте | E31: более 1 раза в месяц = 1, реже = 2 | G31: 0 | H31: 1 + 1б, 2 + 0,5б | I31: =IF(G31=1,1,0)+IF(G31=2,0.5,0) -> 0
A32: 20 | D32: использование доступа в интернет преподавателями и слушателями | E32: если да = 1, только преподавателями = 2 | G32: 1 | H32: 1 + 1б, 2 + 0,5б | I32: =IF(G32=1,1,0)+IF(G32=2,0.5,0) -> 1
A33: 21 | D33: наличие методических материалов Центра на сайте ОУ | E33: если да = 1 | G33: 0 | H33: да + 1б | I33: =IF(G33=1,1,0) -> 0
A34: 22 | D34: наличие Совета Центра | E34: если да = 1 | G34: 0 | H34: да + 0,5б | I34: =IF(G34=1,0.5,0) -> 0
A35: 23 | D35: наличие утвержденного положения о деятельности Центра | E35: если да = 1 | G35: 1 | H35: да + 0,5б | I35: =IF(G35=1,0.5,0) -> 0.5
A36: 24 | D36: наличие оформленных договоров с социальными партнерами | E36: если да = 1 | G36: 0 | H36: да + 1б | I36: =IF(G36=1,1,0) -> 0
A37: 25 | C37: учебно-методическое обеспечение | D37: обеспеченность слушателей учебниками, справочной литературой | E37: полное обеспечение = 1, частичное = 2 | G37: 0 | H37: 1 + 2б, 2 + 1б | I37: =IF(G37=1,2,0)+IF(G37=2,1,0) -> 0
A38: 26 | D38: обеспеченность преподавателей методической литературой, программными средствами обучения | E38: полное обеспечение = 1, частичное = 2 | G38: 2 | H38: 1 + 2б, 2 + 1б | I38: =IF(G38=1,2,0)+IF(G38=2,1,0) -> 1
A39: 27 | B39: Результаты образовательной деятельности | C39: уровень и качество общеобразовательной подготовки слушателей | D39: слушатели, применившие полученную информацию на практике | E39: количество | G39: 15 | H39: 100% + 2б | I39: =ROUND(G39/H7*2,1) -> 2
A40: 28 | D40: слушатели, освоившие программу и получившие удостоверение | E40: количество | G40: 15 | H40: 100% + 4б | I40: =ROUND(G40/$H$7*4,1) -> 4
A41: 29 | D41: слушатели, получившие сертификат | E41: количество | G41: 0 | H41: 100% + 1б | I41: =ROUND(G41/H7*1,1) -> 0
A42: 30 | C42: сформированность ключевых компетентностей слушателей | D42: слушатели, имеющие документально подтвержденные достижения по теме Программы:
D43: - на школьном уровне | E43: количество | G43: 14 | H43: 100% + 2б | I43: =ROUND(G43/$H$7*2,1) -> 1.9
D44: - на муниципальном уровне | E44: количество | G44: 3 | H44: 100% + 3б | I44: =ROUND(G44/$H$7*3,1) -> 0.6
D45: - на региональном уровне | E45: количество | G45: 2 | H45: 100% + 4б | I45: =ROUND(G45/$H$7*4,1) -> 0.5
D46: - на федеральном и международном уровнях | E46: количество | G46: 3 | H46: 100% + 5б | I46: =ROUND(G46/$H$7*5,1) -> 1
A47: 31 | C47: уровень обобщения и представления опыта деятельности Центра по теме Программы | D47: публичное представление промежуточных результатов реализации образовательной Программы:
D48: - на школьном уровне | E48: количество | G48: 1 | H48: за 1 + 0,1б | I48: =G48*0.1 -> 0.1
D49: - на муниципальном уровне | E49: количество | G49: 1 | H49: за 1 + 0,2б | I49: =G49*0.2 -> 0.2
D50: - на региональном уровне | E50: количество | G50: 0 | H50: за 1 + 0,3б | I50: =G50*0.3 -> 0
D51: - на федеральном и международном уровнях | E51: количество | G51: 0 | H51: за 1 + 0,5б | I51: =G51*0.4 -> 0
A52: 32 | D52: организация мероприятий, семинаров различного уровня по теме образовательной Программы:
D53: - на муниципальном уровне | E53: количество | G53: 1 | H53: за 1 + 0,3б | I53: =G53*0.3 -> 0.3
D54: - на региональном уровне | E54: количество | G54: 0 | H54: за 1 + 0,5б | I54: =G54*0.5 -> 0
D55: - на федеральном и международном уровнях | E55: количество | G55: 0 | H55: за 1 + 0,7б | I55: =G55*0.7 -> 0
A56: 33 | D56: внешкольная экспертная деятельность преподавателей Центра по теме Программы | E56: количество часов | G56: 0 | H56: за 100ч + 2б | I56: =G56*0.02 -> 0
A57: 34 | D57: наличие публикаций в методических изданиях по теме Программы | E57: количество страниц А4, интервал 1,5, шрифт 14 | G57: 0 | H57: за 24 стр. + 2б | I57: =ROUND(G57*2/24,1) -> 0
A58: 35 | D58: количество публикаций в СМИ муниципального и регионального уровня по теме Программы | E58: количество статей | G58: 0 | H58: за 1 ст. + 0,1б | I58: =G58*0.1 -> 0
A59: 36 | C59: уровень организации и степень достижения целей и задач инновационной деятельности | D59: наличие рецензии на образовательную Программу | E59: если да = 1 | G59: 0 | H59: да + 2б | I59: =IF(G59=1,2,0) -> 0
A60: 37 | D60: Программа Центра является частью программы развития ОУ | E60: если да = 1 | G60: 0 | H60: да + 1б | I60: =IF(G60=1,1,0) -> 0
A61: 38 | D61: Программа Центра является частью муниципальной программы развития | E61: если да = 1 | G61: 0 | H61: да + 2б | I61: =IF(G61=1,2,0) -> 0
A62: 39 | D62: наличие общественной экспертизы результатов реализации образовательной Программы | E62: если да = 1 | G62: 0 | H62: да + 1б | I62: =IF(G62=1,1,0) -> 0
A63: 40 | D63: публичное представление результатов инновационной деятельности на научно-практических конференциях
D64: - на школьном уровне | E64: если да = 1 | G64: 1 | H64: да + 0,3б | I64: =IF(G64=1,0.3,0) -> 0.3
D65: - на муниципальном уровне | E65: если да = 1 | G65: 0 | H65: да + 0,5б | I65: =IF(G65=1,0.5,0) -> 0
D66: - на региональном уровне | E66: если да = 1 | G66: 0 | H66: да + 1б | I66: =IF(G66=1,1,0) -> 0
D67: - на федеральном и международном уровнях | E67: если да = 1 | G67: 0 | H67: да + 2б | I67: =IF(G67=1,2,0) -> 0
A68: Общее рейтинговое значение | I68: =SUM(I13:I41,I43:I46,I48:I51,I53:I62,I64:I67) -> 32.2

Sheet КР Кож №1
A1: РЕЙТИНГ | D1: ОЦЕНОЧНЫЙ ЛИСТ РЕЙТИНГА РЕЗУЛЬТАТИВНОСТИ ОБРАЗОВАТЕЛЬНЫХ ПРОГРАММ ЦЕНТРОВ ГРАЖДАНСКОГО ОБРАЗОВАНИЯ 2012-2013
A2: первый | C2: =SUM(I13:I22) -> 15.9
A3: второй | C3: =SUM(I23:I38) -> 19.5
A4: третий | C4: =SUM(I39:I41,I43:I46,I48:I51,I53:I62,I64:I67) -> 20.88 | D4: МБОУ "Кожевниковская СОШ №1"
A5: общее | C5: =SUM(C2:C4) -> 56.28 | D5: Центр гражданского образования "Школьная параллель"
A6: 1.04 | C6: =C5*A6 -> 58.5312 | D6: Образовательная программа"Первый шаг в политику. Лидерство."
A7: Общее количество слушателей образовательной Программы | H7: 184 | I7: человек
A8: Количество педагогических работников | H8: 5 | I8: человек
A9: Количество консультантов из числа опытных старшеклассников, выпускников Центра | H9: 4 | I9: человек
A10: Количество привлеченных специалистов | H10: 1 | I10: человек
A11: Продолжительность образовательной Программы | H11: 42 | I11: часов
A12: № | B12: Направ-ление | C12: Критерии | E12: Значение критерия | F12: Единица измерения | G12: Значение в единицах измерения | H12: Система оценки | I12: Рейтинговое значение
A13: 1 | B13: Образовательная программа | C13: адаптированность | D13: продолжительность образовательной Программы | E13: количество часов | G13: =H11 -> 42 | H13: 18-24 + 1б, 25-48 + 2б, более 48 + 3б | I13: =IF($G$13>17,1,0)+IF($G$13>24,1,0)+IF($G$13>48,1,0) -> 2
A14: 2 | D14: наличие модулей в образовательной Программе для разновозрастных групп | E14: для обучающихся = 1, для обучающихся и взрослых = 2 | G14: 2 | H14: 1 + 1б, 2 + 2б | I14: =IF(G14=1,1,0)+IF(G14=2,2,0) -> 2
A15: 3 | D15: наличие в образовательной Программе активных и интерактивных форм обучения | E15: менее 50% занятий = 1, более 50% занятий = 2 | G15: 2 | H15: 1 + 1б, 2 + 2б | I15: =IF(G15=1,1,0)+IF(G15=2,2,0) -> 2
A16: 4 | D16: преемственность образовательных Программ из года в год | E16: если существует = 1 | G16: 1 | H16: да + 1б | I16: =IF(G16=1,1,0) -> 1
A17: 5 | C17: доступность | D17: наличие модулей, предложенных слушателям на выбор | E17: если 2 модуля = 1, 3 и более модулей = 2 | G17: 1 | H17: 1 + 1б, 2 + 2б | I17: =IF(G17=1,1,0)+IF(G17=2,2,0) -> 1
A18: 6 | D18: проведение мониторинга уровня сформированности ключевых компетентностей | E18: если да = 1 | G18: 1 | H18: да + 3б | I18: =IF(G18=1,3,0) -> 3
A19: 7 | D19: программа реализуется в сетевом взаимодействии с другими Центрами | E19: если да = 1 | G19: 1 | H19: да + 2б | I19: =IF(G19=1,2,0) -> 2
A20: 8 | D20: доля слушателей, привлеченных из других ОУ | E20: количество | G20: 55 | H20: 100% + 3б | I20: =ROUND((G20/H7*3),1) -> 0.9
A21: 9 | C21: полнота реализации | D21: Программа реализуется в полном объеме | E21: если да = 1 | G21: 1 | H21: да + 1,5б, нет + 1б | I21: =IF(G21=1,1.5,1) -> 1.5
A22: 10 | D22: Программа изменилась при лучших условиях | E22: если да = 1 | G22: 1 | H22: да + 0,5б | I22: =IF(G22=1,0.5,0) -> 0.5
A23: 11 | B23: Организация образовательного процесса | C23: кадровое обеспечение | D23: укомплектованность преподавательского состава в соответствии с Программой | E23: состав полностью укомплектован = 1 | G23: 1 | H23: да + 2б, нет + 1б | I23: =IF(G23=1,2,1) -> 2
A24: 12 | D24: подготовка преподавателей по теме Программы | E24: количество | G24: 5 | H24: 100% + 2б | I24: 2
A25: 13 | D25: привлечение специалистов из профессионального сообщества | E25: количество | G25: =H10 -> 1 | H25: 100% + 2б | I25: =ROUND((G25/(H9+H10+H8)*2),1) -> 0.2
A26: 14 | D26: привлечение консультантов из числа обучающихся, выпускников | E26: количество | G26: =H9 -> 4 | H26: 100% + 2б | I26: =ROUND((G26/(H10+H9+H8)*2),1) -> 0.8
A27: 15 | C27: материально-техническое обеспечение | D27: наличие достаточной материальной базы для проведения знаний | E27: если да = 1 | G27: 1 | H27: да + 2б, нет + 1б | I27: =IF(G27=1,2,1) -> 2
A28: 16 | D28: использование материальной базы иных организаций | E28: если да = 1 | G28: 1 | H28: да + 2б | I28: =IF(G28=1,2,0) -> 2
A29: 17 | D29: наличие оборудованных рабочих мест для слушателей и преподавателей | E29: если да = 1, только преподавателей = 2 | G29: 1 | H29: 1 + 1б, 2 + 0,5б | I29: =IF(G29=1,1,0)+IF(G29=2,0.5,0) -> 1
A30: 18 | C30: информационно-технологическое обеспечение | D30: наличие страницы Центра на сайте образовательного учреждения | E30: если да = 1 | G30: 1 | H30: да + 1б | I30: =IF(G30=1,1,0) -> 1
A31: 19 | D31: регулярность обновления страницы Центра на сайте | E31: более 1 раза в месяц = 1, реже = 2 | G31: 2 | H31: 1 + 1б, 2 + 0,5б | I31: =IF(G31=1,1,0)+IF(G31=2,0.5,0) -> 0.5
A32: 20 | D32: использование доступа в интернет преподавателями и слушателями | E32: если да = 1, только преподавателями = 2 | G32: 1 | H32: 1 + 1б, 2 + 0,5б | I32: =IF(G32=1,1,0)+IF(G32=2,0.5,0) -> 1
A33: 21 | D33: наличие методических материалов Центра на сайте ОУ | E33: если да = 1 | G33: 1 | H33: да + 1б | I33: =IF(G33=1,1,0) -> 1
A34: 22 | D34: наличие Совета Центра | E34: если да = 1 | G34: 1 | H34: да + 0,5б | I34: =IF(G34=1,0.5,0) -> 0.5
A35: 23 | D35: наличие утвержденного положения о деятельности Центра | E35: если да = 1 | G35: 1 | H35: да + 0,5б | I35: =IF(G35=1,0.5,0) -> 0.5
A36: 24 | D36: наличие оформленных договоров с социальными партнерами | E36: если да = 1 | G36: 1 | H36: да + 1б | I36: =IF(G36=1,1,0) -> 1
A37: 25 | C37: учебно-методическое обеспечение | D37: обеспеченность слушателей учебниками, справочной литературой | E37: полное обеспечение = 1, частичное = 2 | G37: 1 | H37: 1 + 2б, 2 + 1б | I37: =IF(G37=1,2,0)+IF(G37=2,1,0) -> 2
A38: 26 | D38: обеспеченность преподавателей методической литературой, программными средствами обучения | E38: полное обеспечение = 1, частичное = 2 | G38: 1 | H38: 1 + 2б, 2 + 1б | I38: =IF(G38=1,2,0)+IF(G38=2,1,0) -> 2
A39: 27 | B39: Результаты образовательной деятельности | C39: уровень и качество общеобразовательной подготовки слушателей | D39: слушатели, применившие полученную информацию на практике | E39: количество | G39: 184 | H39: 100% + 2б | I39: =ROUND(G39/H7*2,1) -> 2
A40: 28 | D40: слушатели, освоившие программу и получившие удостоверение | E40: количество | G40: 90 | H40: 100% + 4б | I40: =ROUND(G40/$H$7*4,1) -> 2
A41: 29 | D41: слушатели, получившие сертификат | E41: количество | G41: 94 | H41: 100% + 1б | I41: =ROUND(G41/H7*1,1) -> 0.5
A42: 30 | C42: сформированность ключевых компетентностей слушателей | D42: слушатели, имеющие документально подтвержденные достижения по теме Программы:
D43: - на школьном уровне | E43: количество | G43: 129 | H43: 100% + 2б | I43: =ROUND(G43/$H$7*2,1) -> 1.4
D44: - на муниципальном уровне | E44: количество | G44: 23 | H44: 100% + 3б | I44: =ROUND(G44/$H$7*3,1) -> 0.4
D45: - на региональном уровне | E45: количество | G45: 93 | H45: 100% + 4б | I45: =ROUND(G45/$H$7*4,1) -> 2
D46: - на федеральном и международном уровнях | E46: количество | G46: 6 | H46: 100% + 5б | I46: =ROUND(G46/$H$7*5,1) -> 0.2
A47: 31 | C47: уровень обобщения и представления опыта деятельности Центра по теме Программы | D47: публичное представление промежуточных результатов реализации образовательной Программы:
D48: - на школьном уровне | E48: количество | G48: 1 | H48: за 1 + 0,1б | I48: =G48*0.1 -> 0.1
D49: - на муниципальном уровне | E49: количество | G49: 0 | H49: за 1 + 0,2б | I49: =G49*0.2 -> 0
D50: - на региональном уровне | E50: количество | G50: 1 | H50: за 1 + 0,3б | I50: =G50*0.3 -> 0.3
D51: - на федеральном и международном уровнях | E51: количество | G51: 1 | H51: за 1 + 0,5б | I51: =G51*0.4 -> 0.4
A52: 32 | D52: организация мероприятий, семинаров различного уровня по теме образовательной Программы:
D53: - на муниципальном уровне | E53: количество | G53: 3 | H53: за 1 + 0,3б | I53: =G53*0.3 -> 0.9
D54: - на региональном уровне | E54: количество | G54: 4 | H54: за 1 + 0,5б | I54: =G54*0.5 -> 2
D55: - на федеральном и международном уровнях | E55: количество | G55: 0 | H55: за 1 + 0,7б | I55: =G55*0.7 -> 0
A56: 33 | D56: внешкольная экспертная деятельность преподавателей Центра по теме Программы | E56: количество часов | G56: 24 | H56: за 100ч + 2б | I56: =G56*0.02 -> 0.48
A57: 34 | D57: наличие публикаций в методических изданиях по теме Программы | E57: количество страниц А4, интервал 1,5, шрифт 14 | G57: 0 | H57: за 24 стр. + 2б | I57: =ROUND(G57*2/24,1) -> 0
A58: 35 | D58: количество публикаций в СМИ муниципального и регионального уровня по теме Программы | E58: количество статей | G58: 2 | H58: за 1 ст. + 0,1б | I58: =G58*0.1 -> 0.2
A59: 36 | C59: уровень организации и степень достижения целей и задач инновационной деятельности | D59: наличие рецензии на образовательную Программу | E59: если да = 1 | G59: 1 | H59: да + 2б | I59: =IF(G59=1,2,0) -> 2
A60: 37 | D60: Программа Центра является частью программы развития ОУ | E60: если да = 1 | G60: 1 | H60: да + 1б | I60: =IF(G60=1,1,0) -> 1
A61: 38 | D61: Программа Центра является частью муниципальной программы развития | E61: если да = 1 | G61: 1 | H61: да + 2б | I61: =IF(G61=1,2,0) -> 2
A62: 39 | D62: наличие общественной экспертизы результатов реализации образовательной Программы | E62: если да = 1 | G62: 1 | H62: да + 1б | I62: =IF(G62=1,1,0) -> 1
A63: 40 | D63: публичное представление результатов инновационной деятельности на научно-практических конференциях
D64: - на школьном уровне | E64: если да = 1 | G64: 0 | H64: да + 0,3б | I64: =IF(G64=1,0.3,0) -> 0
D65: - на муниципальном уровне | E65: если да = 1 | G65: 0 | H65: да + 0,5б | I65: =IF(G65=1,0.5,0) -> 0
D66: - на региональном уровне | E66: если да = 1 | G66: 0 | H66: да + 1б | I66: =IF(G66=1,1,0) -> 0
D67: - на федеральном и международном уровнях | E67: если да = 1 | G67: 1 | H67: да + 2б | I67: =IF(G67=1,2,0) -> 2
A68: Общее рейтинговое значение | I68: =SUM(I13:I41,I43:I46,I48:I51,I53:I62,I64:I67) -> 56.28

Sheet КР Кож №2
A1: РЕЙТИНГ | D1: ОЦЕНОЧНЫЙ ЛИСТ РЕЙТИНГА РЕЗУЛЬТАТИВНОСТИ ОБРАЗОВАТЕЛЬНЫХ ПРОГРАММ ЦЕНТРОВ ГРАЖДАНСКОГО ОБРАЗОВАНИЯ 2011-2012
A2: первый | C2: =SUM(I13:I22) -> 13.7
A3: второй | C3: =SUM(I23:I38) -> 17.5
A4: третий | C4: =SUM(I39:I41,I43:I46,I48:I51,I53:I62,I64:I67) -> 10.82 | D4: МАОУ "Кожевниковская СОШ № 2"
A5: общее | C5: =SUM(C2:C4) -> 42.02 | D5: ЦГО "Время перемен"
A6: 1.04 | C6: =C5*A6 -> 43.7008 | D6: Образовательная программа "Школа социального проектирования"
A7: Общее количество слушателей образовательной Программы | H7: 76 | I7: человек
A8: Количество педагогических работников | H8: 5 | I8: человек
A9: Количество консультантов из числа опытных старшеклассников, выпускников Центра | H9: 0 | I9: человек
A10: Количество привлеченных специалистов | H10: 1 | I10: человек
A11: Продолжительность образовательной Программы | H11: 24 | I11: часов
A12: № | B12: Направ-ление | C12: Критерии | E12: Значение критерия | F12: Единица измерения | G12: Значение в единицах измерения | H12: Система оценки | I12: Рейтинговое значение
A13: 1 | B13: Образовательная программа | C13: адаптированность | D13: продолжительность образовательной Программы | E13: количество часов | G13: =H11 -> 24 | H13: 18-24 + 1б, 25-48 + 2б, более 48 + 3б | I13: =IF($G$13>17,1,0)+IF($G$13>24,1,0)+IF($G$13>48,1,0) -> 1
A14: 2 | D14: наличие модулей в образовательной Программе для разновозрастных групп | E14: для обучающихся = 1, для обучающихся и взрослых = 2 | G14: 1 | H14: 1 + 1б, 2 + 2б | I14: =IF(G14=1,1,0)+IF(G14=2,2,0) -> 1
A15: 3 | D15: наличие в образовательной Программе активных и интерактивных форм обучения | E15: менее 50% занятий = 1, более 50% занятий = 2 | G15: 2 | H15: 1 + 1б, 2 + 2б | I15: =IF(G15=1,1,0)+IF(G15=2,2,0) -> 2
A16: 4 | D16: преемственность образовательных Программ из года в год | E16: если существует = 1 | G16: 1 | H16: да + 1б | I16: =IF(G16=1,1,0) -> 1
A17: 5 | C17: доступность | D17: наличие модулей, предложенных слушателям на выбор | E17: если 2 модуля = 1, 3 и более модулей = 2 | G17: 0 | H17: 1 + 1б, 2 + 2б | I17: =IF(G17=1,1,0)+IF(G17=2,2,0) -> 0
A18: 6 | D18: проведение мониторинга уровня сформированности ключевых компетентностей | E18: если да = 1 | G18: 1 | H18: да + 3б | I18: =IF(G18=1,3,0) -> 3
A19: 7 | D19: программа реализуется в сетевом взаимодействии с другими Центрами | E19: если да = 1 | G19: 1 | H19: да + 2б | I19: =IF(G19=1,2,0) -> 2
A20: 8 | D20: доля слушателей, привлеченных из других ОУ | E20: количество | G20: 44 | H20: 100% + 3б | I20: =ROUND((G20/H7*3),1) -> 1.7
A21: 9 | C21: полнота реализации | D21: Программа реализуется в полном объеме | E21: если да = 1 | G21: 1 | H21: да + 1,5б, нет + 1б | I21: =IF(G21=1,1.5,1) -> 1.5
A22: 10 | D22: Программа изменилась при лучших условиях | E22: если да = 1 | G22: 1 | H22: да + 0,5б | I22: =IF(G22=1,0.5,0) -> 0.5
A23: 11 | B23: Организация образовательного процесса | C23: кадровое обеспечение | D23: укомплектованность преподавательского состава в соответствии с Программой | E23: состав полностью укомплектован = 1 | G23: 1 | H23: да + 2б, нет + 1б | I23: =IF(G23=1,2,1) -> 2
A24: 12 | D24: подготовка преподавателей по теме Программы | E24: количество | G24: 2 | H24: 100% + 2б | I24: =ROUND((G24/(H8+H9+H10)*2),1) -> 0.7
A25: 13 | D25: привлечение специалистов из профессионального сообщества | E25: количество | G25: =H10 -> 1 | H25: 100% + 2б | I25: =ROUND((G25/(H9+H10+H8)*2),1) -> 0.3
A26: 14 | D26: привлечение консультантов из числа обучающихся, выпускников | E26: количество | G26: =H9 -> 0 | H26: 100% + 2б | I26: =ROUND((G26/(H10+H9+H8)*2),1) -> 0
A27: 15 | C27: материально-техническое обеспечение | D27: наличие достаточной материальной базы для проведения знаний | E27: если да = 1 | G27: 1 | H27: да + 2б, нет + 1б | I27: =IF(G27=1,2,1) -> 2
A28: 16 | D28: использование материальной базы иных организаций | E28: если да = 1 | G28: 1 | H28: да + 2б | I28: =IF(G28=1,2,0) -> 2
A29: 17 | D29: наличие оборудованных рабочих мест для слушателей и преподавателей | E29: если да = 1, только преподавателей = 2 | G29: 1 | H29: 1 + 1б, 2 + 0,5б | I29: =IF(G29=1,1,0)+IF(G29=2,0.5,0) -> 1
A30: 18 | C30: информационно-технологическое обеспечение | D30: наличие страницы Центра на сайте образовательного учреждения | E30: если да = 1 | G30: 1 | H30: да + 1б | I30: =IF(G30=1,1,0) -> 1
A31: 19 | D31: регулярность обновления страницы Центра на сайте | E31: более 1 раза в месяц = 1, реже = 2 | G31: 2 | H31: 1 + 1б, 2 + 0,5б | I31: =IF(G31=1,1,0)+IF(G31=2,0.5,0) -> 0.5
A32: 20 | D32: использование доступа в интернет преподавателями и слушателями | E32: если да = 1, только преподавателями = 2 | G32: 1 | H32: 1 + 1б, 2 + 0,5б | I32: =IF(G32=1,1,0)+IF(G32=2,0.5,0) -> 1
A33: 21 | D33: наличие методических материалов Центра на сайте ОУ | E33: если да = 1 | G33: 1 | H33: да + 1б | I33: =IF(G33=1,1,0) -> 1
A34: 22 | D34: наличие Совета Центра | E34: если да = 1 | G34: 1 | H34: да + 0,5б | I34: =IF(G34=1,0.5,0) -> 0.5
A35: 23 | D35: наличие утвержденного положения о деятельности Центра | E35: если да = 1 | G35: 1 | H35: да + 0,5б | I35: =IF(G35=1,0.5,0) -> 0.5
A36: 24 | D36: наличие оформленных договоров с социальными партнерами | E36: если да = 1 | G36: 1 | H36: да + 1б | I36: =IF(G36=1,1,0) -> 1
A37: 25 | C37: учебно-методическое обеспечение | D37: обеспеченность слушателей учебниками, справочной литературой | E37: полное обеспечение = 1, частичное = 2 | G37: 1 | H37: 1 + 2б, 2 + 1б | I37: =IF(G37=1,2,0)+IF(G37=2,1,0) -> 2
A38: 26 | D38: обеспеченность преподавателей методической литературой, программными средствами обучения | E38: полное обеспечение = 1, частичное = 2 | G38: 1 | H38: 1 + 2б, 2 + 1б | I38: =IF(G38=1,2,0)+IF(G38=2,1,0) -> 2
A39: 27 | B39: Результаты образовательной деятельности | C39: уровень и качество общеобразовательной подготовки слушателей | D39: слушатели, применившие полученную информацию на практике | E39: количество | G39: 76 | H39: 100% + 2б | I39: =ROUND(G39/H7*2,1) -> 2
A40: 28 | D40: слушатели, освоившие программу и получившие удостоверение | E40: количество | G40: 0 | H40: 100% + 4б | I40: =ROUND(G40/$H$7*4,1) -> 0
A41: 29 | D41: слушатели, получившие сертификат | E41: количество | G41: 75 | H41: 100% + 1б | I41: =ROUND(G41/H7*1,1) -> 1
A42: 30 | C42: сформированность ключевых компетентностей слушателей | D42: слушатели, имеющие документально подтвержденные достижения по теме Программы:
D43: - на школьном уровне | E43: количество | G43: 32 | H43: 100% + 2б | I43: =ROUND(G43/$H$7*2,1) -> 0.8
D44: - на муниципальном уровне | E44: количество | G44: 76 | H44: 100% + 3б | I44: =ROUND(G44/$H$7*3,1) -> 3
D45: - на региональном уровне | E45: количество | G45: 11 | H45: 100% + 4б | I45: =ROUND(G45/$H$7*4,1) -> 0.6
D46: - на федеральном и международном уровнях | E46: количество | G46: 4 | H46: 100% + 5б | I46: =ROUND(G46/$H$7*5,1) -> 0.3
A47: 31 | C47: уровень обобщения и представления опыта деятельности Центра по теме Программы | D47: публичное представление промежуточных результатов реализации образовательной Программы:
D48: - на школьном уровне | E48: количество | G48: 0 | H48: за 1 + 0,1б | I48: =G48*0.1 -> 0
D49: - на муниципальном уровне | E49: количество | G49: 0 | H49: за 1 + 0,2б | I49: =G49*0.2 -> 0
D50: - на региональном уровне | E50: количество | G50: 0 | H50: за 1 + 0,3б | I50: =G50*0.3 -> 0
D51: - на федеральном и международном уровнях | E51: количество | G51: 0 | H51: за 1 + 0,5б | I51: =G51*0.4 -> 0
A52: 32 | D52: организация мероприятий, семинаров различного уровня по теме образовательной Программы:
D53: - на муниципальном уровне | E53: количество | G53: 0 | H53: за 1 + 0,3б | I53: =G53*0.3 -> 0
D54: - на региональном уровне | E54: количество | G54: 0 | H54: за 1 + 0,5б | I54: =G54*0.5 -> 0
D55: - на федеральном и международном уровнях | E55: количество | H55: за 1 + 0,7б | I55: =G55*0.7 -> 0
A56: 33 | D56: внешкольная экспертная деятельность преподавателей Центра по теме Программы | E56: количество часов | G56: 6 | H56: за 100ч + 2б | I56: =G56*0.02 -> 0.12
A57: 34 | D57: наличие публикаций в методических изданиях по теме Программы | E57: количество страниц А4, интервал 1,5, шрифт 14 | G57: 0 | H57: за 24 стр. + 2б | I57: =ROUND(G57*2/24,1) -> 0
A58: 35 | D58: количество публикаций в СМИ муниципального и регионального уровня по теме Программы | E58: количество статей | G58: 0 | H58: за 1 ст. + 0,1б | I58: =G58*0.1 -> 0
A59: 36 | C59: уровень организации и степень достижения целей и задач инновационной деятельности | D59: наличие рецензии на образовательную Программу | E59: если да = 1 | G59: 1 | H59: да + 2б | I59: =IF(G59=1,2,0) -> 2
A60: 37 | D60: Программа Центра является частью программы развития ОУ | E60: если да = 1 | G60: 1 | H60: да + 1б | I60: =IF(G60=1,1,0) -> 1
A61: 38 | D61: Программа Центра является частью муниципальной программы развития | E61: если да = 1 | H61: да + 2б | I61: =IF(G61=1,2,0) -> 0
A62: 39 | D62: наличие общественной экспертизы результатов реализации образовательной Программы | E62: если да = 1 | H62: да + 1б | I62: =IF(G62=1,1,0) -> 0
A63: 40 | D63: публичное представление результатов инновационной деятельности на научно-практических конференциях
D64: - на школьном уровне | E64: если да = 1 | G64: 0 | H64: да + 0,3б | I64: =IF(G64=1,0.3,0) -> 0
D65: - на муниципальном уровне | E65: если да = 1 | G65: 0 | H65: да + 0,5б | I65: =IF(G65=1,0.5,0) -> 0
D66: - на региональном уровне | E66: если да = 1 | G66: 0 | H66: да + 1б | I66: =IF(G66=1,1,0) -> 0
D67: - на федеральном и международном уровнях | E67: если да = 1 | H67: да + 2б | I67: =IF(G67=1,2,0) -> 0
A68: Общее рейтинговое значение | I68: =SUM(I13:I41,I43:I46,I48:I51,I53:I62,I64:I67) -> 42.02

Sheet КР Вол Крив
A1: РЕЙТИНГ | D1: ОЦЕНОЧНЫЙ ЛИСТ РЕЙТИНГА РЕЗУЛЬТАТИВНОСТИ ОБРАЗОВАТЕЛЬНЫХ ПРОГРАММ ЦЕНТРОВ ГРАЖДАНСКОГО ОБРАЗОВАНИЯ 2012-2013
A2: первый | C2: =SUM(I13:I22) -> 12
A3: второй | C3: =SUM(I23:I38) -> 16.9
A4: третий | C4: =SUM(I39:I41,I43:I46,I48:I51,I53:I62,I64:I67) -> 13.3 | D4: МБОУ "Володинская СОШ"
A5: общее | C5: =SUM(C2:C4) -> 42.2 | D5: ЦГО "Юный правовед"
A6: 1.17 | C6: =C5*A6 -> 49.374 | D6: Образовательная программа "Права ребёнка"
A7: Общее количество слушателей образовательной Программы | H7: 22 | I7: человек
A8: Количество педагогических работников | H8: 2 | I8: человек
A9: Количество консультантов из числа опытных старшеклассников, выпускников Центра | H9: 6 | I9: человек
A10: Количество привлеченных специалистов | H10: 2 | I10: человек
A11: Продолжительность образовательной Программы | H11: 21 | I11: часов
A12: № | B12: Направ-ление | C12: Критерии | E12: Значение критерия | F12: Единица измерения | G12: Значение в единицах измерения | H12: Система оценки | I12: Рейтинговое значение
A13: 1 | B13: Образовательная программа | C13: адаптированность | D13: продолжительность образовательной Программы | E13: количество часов | G13: =H11 -> 21 | H13: 18-24 + 1б, 25-48 + 2б, более 48 + 3б | I13: =IF($G$13>17,1,0)+IF($G$13>24,1,0)+IF($G$13>48,1,0) -> 1
A14: 2 | D14: наличие модулей в образовательной Программе для разновозрастных групп | E14: для обучающихся = 1, для обучающихся и взрослых = 2 | G14: 1 | H14: 1 + 1б, 2 + 2б | I14: =IF(G14=1,1,0)+IF(G14=2,2,0) -> 1
A15: 3 | D15: наличие в образовательной Программе активных и интерактивных форм обучения | E15: менее 50% занятий = 1, более 50% занятий = 2 | G15: 2 | H15: 1 + 1б, 2 + 2б | I15: =IF(G15=1,1,0)+IF(G15=2,2,0) -> 2
A16: 4 | D16: преемственность образовательных Программ из года в год | E16: если существует = 1 | G16: 1 | H16: да + 1б | I16: =IF(G16=1,1,0) -> 1
A17: 5 | C17: доступность | D17: наличие модулей, предложенных слушателям на выбор | E17: если 2 модуля = 1, 3 и более модулей = 2 | G17: 0 | H17: 1 + 1б, 2 + 2б | I17: =IF(G17=1,1,0)+IF(G17=2,2,0) -> 0
A18: 6 | D18: проведение мониторинга уровня сформированности ключевых компетентностей | E18: если да = 1 | G18: 1 | H18: да + 3б | I18: =IF(G18=1,3,0) -> 3
A19: 7 | D19: программа реализуется в сетевом взаимодействии с другими Центрами | E19: если да = 1 | G19: 1 | H19: да + 2б | I19: =IF(G19=1,2,0) -> 2
A20: 8 | D20: доля слушателей, привлеченных из других ОУ | E20: количество | H20: 100% + 3б | I20: =ROUND((G20/H7*3),1) -> 0
A21: 9 | C21: полнота реализации | D21: Программа реализуется в полном объеме | E21: если да = 1 | G21: 1 | H21: да + 1,5б, нет + 1б | I21: =IF(G21=1,1.5,1) -> 1.5
A22: 10 | D22: Программа изменилась при лучших условиях | E22: если да = 1 | G22: 1 | H22: да + 0,5б | I22: =IF(G22=1,0.5,0) -> 0.5
A23: 11 | B23: Организация образовательного процесса | C23: кадровое обеспечение | D23: укомплектованность преподавательского состава в соответствии с Программой | E23: состав полностью укомплектован = 1 | G23: 1 | H23: да + 2б, нет + 1б | I23: =IF(G23=1,2,1) -> 2
A24: 12 | D24: подготовка преподавателей по теме Программы | E24: количество | G24: 4 | H24: 100% + 2б | I24: =ROUND((G24/(H8+H9+H10)*2),1) -> 0.8
A25: 13 | D25: привлечение специалистов из профессионального сообщества | E25: количество | G25: =H10 -> 2 | H25: 100% + 2б | I25: =ROUND((G25/(H9+H10+H8)*2),1) -> 0.4
A26: 14 | D26: привлечение консультантов из числа обучающихся, выпускников | E26: количество | G26: =H9 -> 6 | H26: 100% + 2б | I26: =ROUND((G26/(H10+H9+H8)*2),1) -> 1.2
A27: 15 | C27: материально-техническое обеспечение | D27: наличие достаточной материальной базы для проведения знаний | E27: если да = 1 | G27: 1 | H27: да + 2б, нет + 1б | I27: =IF(G27=1,2,1) -> 2
A28: 16 | D28: использование материальной базы иных организаций | E28: если да = 1 | G28: 1 | H28: да + 2б | I28: =IF(G28=1,2,0) -> 2
A29: 17 | D29: наличие оборудованных рабочих мест для слушателей и преподавателей | E29: если да = 1, только преподавателей = 2 | G29: 1 | H29: 1 + 1б, 2 + 0,5б | I29: =IF(G29=1,1,0)+IF(G29=2,0.5,0) -> 1
A30: 18 | C30: информационно-технологическое обеспечение | D30: наличие страницы Центра на сайте образовательного учреждения | E30: если да = 1 | G30: 2 | H30: да + 1б | I30: =IF(G30=1,1,0) -> 0
A31: 19 | D31: регулярность обновления страницы Центра на сайте | E31: более 1 раза в месяц = 1, реже = 2 | G31: 2 | H31: 1 + 1б, 2 + 0,5б | I31: =IF(G31=1,1,0)+IF(G31=2,0.5,0) -> 0.5
A32: 20 | D32: использование доступа в интернет преподавателями и слушателями | E32: если да = 1, только преподавателями = 2 | G32: 1 | H32: 1 + 1б, 2 + 0,5б | I32: =IF(G32=1,1,0)+IF(G32=2,0.5,0) -> 1
A33: 21 | D33: наличие методических материалов Центра на сайте ОУ | E33: если да = 1 | H33: да + 1б | I33: =IF(G33=1,1,0) -> 0
A34: 22 | D34: наличие Совета Центра | E34: если да = 1 | G34: 1 | H34: да + 0,5б | I34: =IF(G34=1,0.5,0) -> 0.5
A35: 23 | D35: наличие утвержденного положения о деятельности Центра | E35: если да = 1 | G35: 1 | H35: да + 0,5б | I35: =IF(G35=1,0.5,0) -> 0.5
A36: 24 | D36: наличие оформленных договоров с социальными партнерами | E36: если да = 1 | G36: 1 | H36: да + 1б | I36: =IF(G36=1,1,0) -> 1
A37: 25 | C37: учебно-методическое обеспечение | D37: обеспеченность слушателей учебниками, справочной литературой | E37: полное обеспечение = 1, частичное = 2 | G37: 1 | H37: 1 + 2б, 2 + 1б | I37: =IF(G37=1,2,0)+IF(G37=2,1,0) -> 2
A38: 26 | D38: обеспеченность преподавателей методической литературой, программными средствами обучения | E38: полное обеспечение = 1, частичное = 2 | G38: 1 | H38: 1 + 2б, 2 + 1б | I38: =IF(G38=1,2,0)+IF(G38=2,1,0) -> 2
A39: 27 | B39: Результаты образовательной деятельности | C39: уровень и качество общеобразовательной подготовки слушателей | D39: слушатели, применившие полученную информацию на практике | E39: количество | G39: 22 | H39: 100% + 2б | I39: =ROUND(G39/H7*2,1) -> 2
A40: 28 | D40: слушатели, освоившие программу и получившие удостоверение | E40: количество | H40: 100% + 4б | I40: =ROUND(G40/$H$7*4,1) -> 0
A41: 29 | D41: слушатели, получившие сертификат | E41: количество | G41: 22 | H41: 100% + 1б | I41: =ROUND(G41/H7*1,1) -> 1
A42: 30 | C42: сформированность ключевых компетентностей слушателей | D42: слушатели, имеющие документально подтвержденные достижения по теме Программы:
D43: - на школьном уровне | E43: количество | G43: 7 | H43: 100% + 2б | I43: =ROUND(G43/$H$7*2,1) -> 0.6
D44: - на муниципальном уровне | E44: количество | G44: 0 | H44: 100% + 3б | I44: =ROUND(G44/$H$7*3,1) -> 0
D45: - на региональном уровне | E45: количество | G45: 22 | H45: 100% + 4б | I45: =ROUND(G45/$H$7*4,1) -> 4
D46: - на федеральном и международном уровнях | E46: количество | H46: 100% + 5б | I46: =ROUND(G46/$H$7*5,1) -> 0
A47: 31 | C47: уровень обобщения и представления опыта деятельности Центра по теме Программы | D47: публичное представление промежуточных результатов реализации образовательной Программы:
D48: - на школьном уровне | E48: количество | G48: 0 | H48: за 1 + 0,1б | I48: =G48*0.1 -> 0
D49: - на муниципальном уровне | E49: количество | G49: 1 | H49: за 1 + 0,2б | I49: =G49*0.2 -> 0.2
D50: - на региональном уровне | E50: количество | H50: за 1 + 0,3б | I50: =G50*0.3 -> 0
D51: - на федеральном и международном уровнях | E51: количество | H51: за 1 + 0,5б | I51: =G51*0.4 -> 0
A52: 32 | D52: организация мероприятий, семинаров различного уровня по теме образовательной Программы:
D53: - на муниципальном уровне | E53: количество | G53: 0 | H53: за 1 + 0,3б | I53: =G53*0.3 -> 0
D54: - на региональном уровне | E54: количество | G54: 1 | H54: за 1 + 0,5б | I54: =G54*0.5 -> 0.5
D55: - на федеральном и международном уровнях | E55: количество | H55: за 1 + 0,7б | I55: =G55*0.7 -> 0
A56: 33 | D56: внешкольная экспертная деятельность преподавателей Центра по теме Программы | E56: количество часов | H56: за 100ч + 2б | I56: =G56*0.02 -> 0
A57: 34 | D57: наличие публикаций в методических изданиях по теме Программы | E57: количество страниц А4, интервал 1,5, шрифт 14 | H57: за 24 стр. + 2б | I57: =ROUND(G57*2/24,1) -> 0
A58: 35 | D58: количество публикаций в СМИ муниципального и регионального уровня по теме Программы | E58: количество статей | G58: 0 | H58: за 1 ст. + 0,1б | I58: =G58*0.1 -> 0
A59: 36 | C59: уровень организации и степень достижения целей и задач инновационной деятельности | D59: наличие рецензии на образовательную Программу | E59: если да = 1 | G59: 1 | H59: да + 2б | I59: =IF(G59=1,2,0) -> 2
A60: 37 | D60: Программа Центра является частью программы развития ОУ | E60: если да = 1 | G60: 1 | H60: да + 1б | I60: =IF(G60=1,1,0) -> 1
A61: 38 | D61: Программа Центра является частью муниципальной программы развития | E61: если да = 1 | G61: 1 | H61: да + 2б | I61: =IF(G61=1,2,0) -> 2
A62: 39 | D62: наличие общественной экспертизы результатов реализации образовательной Программы | E62: если да = 1 | H62: да + 1б | I62: =IF(G62=1,1,0) -> 0
A63: 40 | D63: публичное представление результатов инновационной деятельности на научно-практических конференциях
D64: - на школьном уровне | E64: если да = 1 | H64: да + 0,3б | I64: =IF(G64=1,0.3,0) -> 0
D65: - на муниципальном уровне | E65: если да = 1 | H65: да + 0,5б | I65: =IF(G65=1,0.5,0) -> 0
D66: - на региональном уровне | E66: если да = 1 | H66: да + 1б | I66: =IF(G66=1,1,0) -> 0
D67: - на федеральном и международном уровнях | E67: если да = 1 | H67: да + 2б | I67: =IF(G67=1,2,0) -> 0
A68: Общее рейтинговое значение | I68: =SUM(I13:I41,I43:I46,I48:I51,I53:I62,I64:I67) -> 42.2

Sheet КР Крив
A1: РЕЙТИНГ | D1: ОЦЕНОЧНЫЙ ЛИСТ РЕЙТИНГА РЕЗУЛЬТАТИВНОСТИ ОБРАЗОВАТЕЛЬНЫХ ПРОГРАММ ЦЕНТРОВ ГРАЖДАНСКОГО ОБРАЗОВАНИЯ 2012-2013
A2: первый | C2: =SUM(I13:I22) -> 11
A3: второй | C3: =SUM(I23:I38) -> 16.5
A4: третий | C4: =SUM(I39:I41,I43:I46,I48:I51,I53:I62,I64:I67) -> 11.1 | D4: МБОУ "Кривошеинская СОШ"
A5: общее | C5: =SUM(C2:C4) -> 38.6 | D5: Центр гражданского образования"Поколение NEXT"
A6: 1.04 | C6: =C5*A6 -> 40.144 | D6: Образовательная програма "Гражданином быть обязан"
A7: Общее количество слушателей образовательной Программы | H7: 24 | I7: человек
A8: Количество педагогических работников | H8: 1 | I8: человек
A9: Количество консультантов из числа опытных старшеклассников, выпускников Центра | H9: 3 | I9: человек
A10: Количество привлеченных специалистов | H10: 0 | I10: человек
A11: Продолжительность образовательной Программы | H11: 19 | I11: часов
A12: № | B12: Направ-ление | C12: Критерии | E12: Значение критерия | F12: Единица измерения | G12: Значение в единицах измерения | H12: Система оценки | I12: Рейтинговое значение
A13: 1 | B13: Образовательная программа | C13: адаптированность | D13: продолжительность образовательной Программы | E13: количество часов | G13: =H11 -> 19 | H13: 18-24 + 1б, 25-48 + 2б, более 48 + 3б | I13: =IF($G$13>17,1,0)+IF($G$13>24,1,0)+IF($G$13>48,1,0) -> 1
A14: 2 | D14: наличие модулей в образовательной Программе для разновозрастных групп | E14: для обучающихся = 1, для обучающихся и взрослых = 2 | G14: 1 | H14: 1 + 1б, 2 + 2б | I14: =IF(G14=1,1,0)+IF(G14=2,2,0) -> 1
A15: 3 | D15: наличие в образовательной Программе активных и интерактивных форм обучения | E15: менее 50% занятий = 1, более 50% занятий = 2 | G15: 2 | H15: 1 + 1б, 2 + 2б | I15: =IF(G15=1,1,0)+IF(G15=2,2,0) -> 2
A16: 4 | D16: преемственность образовательных Программ из года в год | E16: если существует = 1 | H16: да + 1б | I16: =IF(G16=1,1,0) -> 0
A17: 5 | C17: доступность | D17: наличие модулей, предложенных слушателям на выбор | E17: если 2 модуля = 1, 3 и более модулей = 2 | H17: 1 + 1б, 2 + 2б | I17: =IF(G17=1,1,0)+IF(G17=2,2,0) -> 0
A18: 6 | D18: проведение мониторинга уровня сформированности ключевых компетентностей | E18: если да = 1 | G18: 1 | H18: да + 3б | I18: =IF(G18=1,3,0) -> 3
A19: 7 | D19: программа реализуется в сетевом взаимодействии с другими Центрами | E19: если да = 1 | G19: 1 | H19: да + 2б | I19: =IF(G19=1,2,0) -> 2
A20: 8 | D20: доля слушателей, привлеченных из других ОУ | E20: количество | G20: 0 | H20: 100% + 3б | I20: =ROUND((G20/H7*3),1) -> 0
A21: 9 | C21: полнота реализации | D21: Программа реализуется в полном объеме | E21: если да = 1 | G21: 1 | H21: да + 1,5б, нет + 1б | I21: =IF(G21=1,1.5,1) -> 1.5
A22: 10 | D22: Программа изменилась при лучших условиях | E22: если да = 1 | G22: 1 | H22: да + 0,5б | I22: =IF(G22=1,0.5,0) -> 0.5
A23: 11 | B23: Организация образовательного процесса | C23: кадровое обеспечение | D23: укомплектованность преподавательского состава в соответствии с Программой | E23: состав полностью укомплектован = 1 | G23: 1 | H23: да + 2б, нет + 1б | I23: =IF(G23=1,2,1) -> 2
A24: 12 | D24: подготовка преподавателей по теме Программы | E24: количество | G24: 1 | H24: 100% + 2б | I24: =ROUND((G24/(H8+H9+H10)*2),1) -> 0.5
A25: 13 | D25: привлечение специалистов из профессионального сообщества | E25: количество | G25: =H10 -> 0 | H25: 100% + 2б | I25: =ROUND((G25/(H9+H10+H8)*2),1) -> 0
A26: 14 | D26: привлечение консультантов из числа обучающихся, выпускников | E26: количество | G26: =H9 -> 3 | H26: 100% + 2б | I26: =ROUND((G26/(H10+H9+H8)*2),1) -> 1.5
A27: 15 | C27: материально-техническое обеспечение | D27: наличие достаточной материальной базы для проведения знаний | E27: если да = 1 | G27: 1 | H27: да + 2б, нет + 1б | I27: =IF(G27=1,2,1) -> 2
A28: 16 | D28: использование материальной базы иных организаций | E28: если да = 1 | H28: да + 2б | I28: =IF(G28=1,2,0) -> 0
A29: 17 | D29: наличие оборудованных рабочих мест для слушателей и преподавателей | E29: если да = 1, только преподавателей = 2 | G29: 1 | H29: 1 + 1б, 2 + 0,5б | I29: =IF(G29=1,1,0)+IF(G29=2,0.5,0) -> 1
A30: 18 | C30: информационно-технологическое обеспечение | D30: наличие страницы Центра на сайте образовательного учреждения | E30: если да = 1 | G30: 1 | H30: да + 1б | I30: =IF(G30=1,1,0) -> 1
A31: 19 | D31: регулярность обновления страницы Центра на сайте | E31: более 1 раза в месяц = 1, реже = 2 | G31: 2 | H31: 1 + 1б, 2 + 0,5б | I31: =IF(G31=1,1,0)+IF(G31=2,0.5,0) -> 0.5
A32: 20 | D32: использование доступа в интернет преподавателями и слушателями | E32: если да = 1, только преподавателями = 2 | G32: 1 | H32: 1 + 1б, 2 + 0,5б | I32: =IF(G32=1,1,0)+IF(G32=2,0.5,0) -> 1
A33: 21 | D33: наличие методических материалов Центра на сайте ОУ | E33: если да = 1 | G33: 1 | H33: да + 1б | I33: =IF(G33=1,1,0) -> 1
A34: 22 | D34: наличие Совета Центра | E34: если да = 1 | G34: 1 | H34: да + 0,5б | I34: =IF(G34=1,0.5,0) -> 0.5
A35: 23 | D35: наличие утвержденного положения о деятельности Центра | E35: если да = 1 | G35: 1 | H35: да + 0,5б | I35: =IF(G35=1,0.5,0) -> 0.5
A36: 24 | D36: наличие оформленных договоров с социальными партнерами | E36: если да = 1 | G36: 1 | H36: да + 1б | I36: =IF(G36=1,1,0) -> 1
A37: 25 | C37: учебно-методическое обеспечение | D37: обеспеченность слушателей учебниками, справочной литературой | E37: полное обеспечение = 1, частичное = 2 | G37: 1 | H37: 1 + 2б, 2 + 1б | I37: =IF(G37=1,2,0)+IF(G37=2,1,0) -> 2
A38: 26 | D38: обеспеченность преподавателей методической литературой, программными средствами обучения | E38: полное обеспечение = 1, частичное = 2 | G38: 1 | H38: 1 + 2б, 2 + 1б | I38: =IF(G38=1,2,0)+IF(G38=2,1,0) -> 2
A39: 27 | B39: Результаты образовательной деятельности | C39: уровень и качество общеобразовательной подготовки слушателей | D39: слушатели, применившие полученную информацию на практике | E39: количество | G39: 24 | H39: 100% + 2б | I39: =ROUND(G39/H7*2,1) -> 2
A40: 28 | D40: слушатели, освоившие программу и получившие удостоверение | E40: количество | G40: 24 | H40: 100% + 4б | I40: =ROUND(G40/$H$7*4,1) -> 4
A41: 29 | D41: слушатели, получившие сертификат | E41: количество | H41: 100% + 1б | I41: =ROUND(G41/H7*1,1) -> 0
A42: 30 | C42: сформированность ключевых компетентностей слушателей | D42: слушатели, имеющие документально подтвержденные достижения по теме Программы:
D43: - на школьном уровне | E43: количество | G43: 0 | H43: 100% + 2б | I43: =ROUND(G43/$H$7*2,1) -> 0
D44: - на муниципальном уровне | E44: количество | G44: 0 | H44: 100% + 3б | I44: =ROUND(G44/$H$7*3,1) -> 0
D45: - на региональном уровне | E45: количество | G45: 2 | H45: 100% + 4б | I45: =ROUND(G45/$H$7*4,1) -> 0.3
D46: - на федеральном и международном уровнях | E46: количество | G46: 0 | H46: 100% + 5б | I46: =ROUND(G46/$H$7*5,1) -> 0
A47: 31 | C47: уровень обобщения и представления опыта деятельности Центра по теме Программы | D47: публичное представление промежуточных результатов реализации образовательной Программы:
D48: - на школьном уровне | E48: количество | H48: за 1 + 0,1б | I48: =G48*0.1 -> 0
D49: - на муниципальном уровне | E49: количество | G49: 1 | H49: за 1 + 0,2б | I49: =G49*0.2 -> 0.2
D50: - на региональном уровне | E50: количество | H50: за 1 + 0,3б | I50: =G50*0.3 -> 0
D51: - на федеральном и международном уровнях | E51: количество | H51: за 1 + 0,5б | I51: =G51*0.4 -> 0
A52: 32 | D52: организация мероприятий, семинаров различного уровня по теме образовательной Программы:
D53: - на муниципальном уровне | E53: количество | G53: 0 | H53: за 1 + 0,3б | I53: =G53*0.3 -> 0
D54: - на региональном уровне | E54: количество | G54: 1 | H54: за 1 + 0,5б | I54: =G54*0.5 -> 0.5
D55: - на федеральном и международном уровнях | E55: количество | H55: за 1 + 0,7б | I55: =G55*0.7 -> 0
A56: 33 | D56: внешкольная экспертная деятельность преподавателей Центра по теме Программы | E56: количество часов | H56: за 100ч + 2б | I56: =G56*0.02 -> 0
A57: 34 | D57: наличие публикаций в методических изданиях по теме Программы | E57: количество страниц А4, интервал 1,5, шрифт 14 | H57: за 24 стр. + 2б | I57: =ROUND(G57*2/24,1) -> 0
A58: 35 | D58: количество публикаций в СМИ муниципального и регионального уровня по теме Программы | E58: количество статей | G58: 1 | H58: за 1 ст. + 0,1б | I58: =G58*0.1 -> 0.1
A59: 36 | C59: уровень организации и степень достижения целей и задач инновационной деятельности | D59: наличие рецензии на образовательную Программу | E59: если да = 1 | H59: да + 2б | I59: =IF(G59=1,2,0) -> 0
A60: 37 | D60: Программа Центра является частью программы развития ОУ | E60: если да = 1 | G60: 1 | H60: да + 1б | I60: =IF(G60=1,1,0) -> 1
A61: 38 | D61: Программа Центра является частью муниципальной программы развития | E61: если да = 1 | G61: 1 | H61: да + 2б | I61: =IF(G61=1,2,0) -> 2
A62: 39 | D62: наличие общественной экспертизы результатов реализации образовательной Программы | E62: если да = 1 | G62: 1 | H62: да + 1б | I62: =IF(G62=1,1,0) -> 1
A63: 40 | D63: публичное представление результатов инновационной деятельности на научно-практических конференциях
D64: - на школьном уровне | E64: если да = 1 | G64: 0 | H64: да + 0,3б | I64: =IF(G64=1,0.3,0) -> 0
D65: - на муниципальном уровне | E65: если да = 1 | G65: 0 | H65: да + 0,5б | I65: =IF(G65=1,0.5,0) -> 0
D66: - на региональном уровне | E66: если да = 1 | H66: да + 1б | I66: =IF(G66=1,1,0) -> 0
D67: - на федеральном и международном уровнях | E67: если да = 1 | H67: да + 2б | I67: =IF(G67=1,2,0) -> 0
A68: Общее рейтинговое значение | I68: =SUM(I13:I41,I43:I46,I48:I51,I53:I62,I64:I67) -> 38.6

Sheet МР Мол
A1: РЕЙТИНГ | D1: ОЦЕНОЧНЫЙ ЛИСТ РЕЙТИНГА РЕЗУЛЬТАТИВНОСТИ ОБРАЗОВАТЕЛЬНЫХ ПРОГРАММ ЦЕНТРОВ ГРАЖДАНСКОГО ОБРАЗОВАНИЯ 2012-2013
A2: первый | C2: =SUM(I13:I22) -> 13
A3: второй | C3: =SUM(I23:I38) -> 18.2
A4: третий | C4: =SUM(I39:I41,I43:I46,I48:I51,I53:I62,I64:I67) -> 17.4 | D4: МАОУ Молчановская СОШ №2
A5: общее | C5: =SUM(C2:C4) -> 48.6 | D5: Центр гражданского образования "Социальное проектирование"
A6: 1.04 | C6: =C5*A6 -> 50.544 | D6: Образовательная программа "Социальное проектирование"
A7: Общее количество слушателей образовательной Программы | H7: 21 | I7: человек
A8: Количество педагогических работников | H8: 5 | I8: человек
A9: Количество консультантов из числа опытных старшеклассников, выпускников Центра | H9: 5 | I9: человек
A10: Количество привлеченных специалистов | H10: 0 | I10: человек
A11: Продолжительность образовательной Программы | H11: 36 | I11: часов
A12: № | B12: Направ-ление | C12: Критерии | E12: Значение критерия | F12: Единица измерения | G12: Значение в единицах измерения | H12: Система оценки | I12: Рейтинговое значение
A13: 1 | B13: Образовательная программа | C13: адаптированность | D13: продолжительность образовательной Программы | E13: количество часов | G13: =H11 -> 36 | H13: 18-24 + 1б, 25-48 + 2б, более 48 + 3б | I13: =IF($G$13>17,1,0)+IF($G$13>24,1,0)+IF($G$13>48,1,0) -> 2
A14: 2 | D14: наличие модулей в образовательной Программе для разновозрастных групп | E14: для обучающихся = 1, для обучающихся и взрослых = 2 | G14: 1 | H14: 1 + 1б, 2 + 2б | I14: =IF(G14=1,1,0)+IF(G14=2,2,0) -> 1
A15: 3 | D15: наличие в образовательной Программе активных и интерактивных форм обучения | E15: менее 50% занятий = 1, более 50% занятий = 2 | G15: 2 | H15: 1 + 1б, 2 + 2б | I15: =IF(G15=1,1,0)+IF(G15=2,2,0) -> 2
A16: 4 | D16: преемственность образовательных Программ из года в год | E16: если существует = 1 | G16: 1 | H16: да + 1б | I16: =IF(G16=1,1,0) -> 1
A17: 5 | C17: доступность | D17: наличие модулей, предложенных слушателям на выбор | E17: если 2 модуля = 1, 3 и более модулей = 2 | G17: 0 | H17: 1 + 1б, 2 + 2б | I17: =IF(G17=1,1,0)+IF(G17=2,2,0) -> 0
A18: 6 | D18: проведение мониторинга уровня сформированности ключевых компетентностей | E18: если да = 1 | G18: 1 | H18: да + 3б | I18: =IF(G18=1,3,0) -> 3
A19: 7 | D19: программа реализуется в сетевом взаимодействии с другими Центрами | E19: если да = 1 | G19: 1 | H19: да + 2б | I19: =IF(G19=1,2,0) -> 2
A20: 8 | D20: доля слушателей, привлеченных из других ОУ | E20: количество | G20: 0 | H20: 100% + 3б | I20: =ROUND((G20/H7*3),1) -> 0
A21: 9 | C21: полнота реализации | D21: Программа реализуется в полном объеме | E21: если да = 1 | G21: 1 | H21: да + 1,5б, нет + 1б | I21: =IF(G21=1,1.5,1) -> 1.5
A22: 10 | D22: Программа изменилась при лучших условиях | E22: если да = 1 | G22: 1 | H22: да + 0,5б | I22: =IF(G22=1,0.5,0) -> 0.5
A23: 11 | B23: Организация образовательного процесса | C23: кадровое обеспечение | D23: укомплектованность преподавательского состава в соответствии с Программой | E23: состав полностью укомплектован = 1 | G23: 1 | H23: да + 2б, нет + 1б | I23: =IF(G23=1,2,1) -> 2
A24: 12 | D24: подготовка преподавателей по теме Программы | E24: количество | G24: 1 | H24: 100% + 2б | I24: =ROUND((G24/(H8+H9+H10)*2),1) -> 0.2
A25: 13 | D25: привлечение специалистов из профессионального сообщества | E25: количество | G25: =H10 -> 0 | H25: 100% + 2б | I25: =ROUND((G25/(H9+H10+H8)*2),1) -> 0
A26: 14 | D26: привлечение консультантов из числа обучающихся, выпускников | E26: количество | G26: =H9 -> 5 | H26: 100% + 2б | I26: =ROUND((G26/(H10+H9+H8)*2),1) -> 1
A27: 15 | C27: материально-техническое обеспечение | D27: наличие достаточной материальной базы для проведения знаний | E27: если да = 1 | G27: 1 | H27: да + 2б, нет + 1б | I27: =IF(G27=1,2,1) -> 2
A28: 16 | D28: использование материальной базы иных организаций | E28: если да = 1 | G28: 1 | H28: да + 2б | I28: =IF(G28=1,2,0) -> 2
A29: 17 | D29: наличие оборудованных рабочих мест для слушателей и преподавателей | E29: если да = 1, только преподавателей = 2 | G29: 1 | H29: 1 + 1б, 2 + 0,5б | I29: =IF(G29=1,1,0)+IF(G29=2,0.5,0) -> 1
A30: 18 | C30: информационно-технологическое обеспечение | D30: наличие страницы Центра на сайте образовательного учреждения | E30: если да = 1 | G30: 1 | H30: да + 1б | I30: =IF(G30=1,1,0) -> 1
A31: 19 | D31: регулярность обновления страницы Центра на сайте | E31: более 1 раза в месяц = 1, реже = 2 | G31: 1 | H31: 1 + 1б, 2 + 0,5б | I31: =IF(G31=1,1,0)+IF(G31=2,0.5,0) -> 1
A32: 20 | D32: использование доступа в интернет преподавателями и слушателями | E32: если да = 1, только преподавателями = 2 | G32: 1 | H32: 1 + 1б, 2 + 0,5б | I32: =IF(G32=1,1,0)+IF(G32=2,0.5,0) -> 1
A33: 21 | D33: наличие методических материалов Центра на сайте ОУ | E33: если да = 1 | G33: 1 | H33: да + 1б | I33: =IF(G33=1,1,0) -> 1
A34: 22 | D34: наличие Совета Центра | E34: если да = 1 | G34: 1 | H34: да + 0,5б | I34: =IF(G34=1,0.5,0) -> 0.5
A35: 23 | D35: наличие утвержденного положения о деятельности Центра | E35: если да = 1 | G35: 1 | H35: да + 0,5б | I35: =IF(G35=1,0.5,0) -> 0.5
A36: 24 | D36: наличие оформленных договоров с социальными партнерами | E36: если да = 1 | G36: 1 | H36: да + 1б | I36: =IF(G36=1,1,0) -> 1
A37: 25 | C37: учебно-методическое обеспечение | D37: обеспеченность слушателей учебниками, справочной литературой | E37: полное обеспечение = 1, частичное = 2 | G37: 1 | H37: 1 + 2б, 2 + 1б | I37: =IF(G37=1,2,0)+IF(G37=2,1,0) -> 2
A38: 26 | D38: обеспеченность преподавателей методической литературой, программными средствами обучения | E38: полное обеспечение = 1, частичное = 2 | G38: 1 | H38: 1 + 2б, 2 + 1б | I38: =IF(G38=1,2,0)+IF(G38=2,1,0) -> 2
A39: 27 | B39: Результаты образовательной деятельности | C39: уровень и качество общеобразовательной подготовки слушателей | D39: слушатели, применившие полученную информацию на практике | E39: количество | G39: 21 | H39: 100% + 2б | I39: =ROUND(G39/H7*2,1) -> 2
A40: 28 | D40: слушатели, освоившие программу и получившие удостоверение | E40: количество | G40: 0 | H40: 100% + 4б | I40: =ROUND(G40/$H$7*4,1) -> 0
A41: 29 | D41: слушатели, получившие сертификат | E41: количество | G41: 21 | H41: 100% + 1б | I41: =ROUND(G41/H7*1,1) -> 1
A42: 30 | C42: сформированность ключевых компетентностей слушателей | D42: слушатели, имеющие документально подтвержденные достижения по теме Программы:
D43: - на школьном уровне | E43: количество | G43: 21 | H43: 100% + 2б | I43: =ROUND(G43/$H$7*2,1) -> 2
D44: - на муниципальном уровне | E44: количество | G44: 2 | H44: 100% + 3б | I44: =ROUND(G44/$H$7*3,1) -> 0.3
D45: - на региональном уровне | E45: количество | G45: 21 | H45: 100% + 4б | I45: =ROUND(G45/$H$7*4,1) -> 4
D46: - на федеральном и международном уровнях | E46: количество | H46: 100% + 5б | I46: =ROUND(G46/$H$7*5,1) -> 0
A47: 31 | C47: уровень обобщения и представления опыта деятельности Центра по теме Программы | D47: публичное представление промежуточных результатов реализации образовательной Программы:
D48: - на школьном уровне | E48: количество | G48: 1 | H48: за 1 + 0,1б | I48: =G48*0.1 -> 0.1
D49: - на муниципальном уровне | E49: количество | H49: за 1 + 0,2б | I49: =G49*0.2 -> 0
D50: - на региональном уровне | E50: количество | H50: за 1 + 0,3б | I50: =G50*0.3 -> 0
D51: - на федеральном и международном уровнях | E51: количество | H51: за 1 + 0,5б | I51: =G51*0.4 -> 0
A52: 32 | D52: организация мероприятий, семинаров различного уровня по теме образовательной Программы:
D53: - на муниципальном уровне | E53: количество | G53: 1 | H53: за 1 + 0,3б | I53: =G53*0.3 -> 0.3
D54: - на региональном уровне | E54: количество | G54: 1 | H54: за 1 + 0,5б | I54: =G54*0.5 -> 0.5
D55: - на федеральном и международном уровнях | E55: количество | H55: за 1 + 0,7б | I55: =G55*0.7 -> 0
A56: 33 | D56: внешкольная экспертная деятельность преподавателей Центра по теме Программы | E56: количество часов | G56: 0 | H56: за 100ч + 2б | I56: =G56*0.02 -> 0
A57: 34 | D57: наличие публикаций в методических изданиях по теме Программы | E57: количество страниц А4, интервал 1,5, шрифт 14 | H57: за 24 стр. + 2б | I57: =ROUND(G57*2/24,1) -> 0
A58: 35 | D58: количество публикаций в СМИ муниципального и регионального уровня по теме Программы | E58: количество статей | G58: 7 | H58: за 1 ст. + 0,1б | I58: =G58*0.1 -> 0.7
A59: 36 | C59: уровень организации и степень достижения целей и задач инновационной деятельности | D59: наличие рецензии на образовательную Программу | E59: если да = 1 | G59: 1 | H59: да + 2б | I59: =IF(G59=1,2,0) -> 2
A60: 37 | D60: Программа Центра является частью программы развития ОУ | E60: если да = 1 | G60: 1 | H60: да + 1б | I60: =IF(G60=1,1,0) -> 1
A61: 38 | D61: Программа Центра является частью муниципальной программы развития | E61: если да = 1 | G61: 1 | H61: да + 2б | I61: =IF(G61=1,2,0) -> 2
A62: 39 | D62: наличие общественной экспертизы результатов реализации образовательной Программы | E62: если да = 1 | G62: 1 | H62: да + 1б | I62: =IF(G62=1,1,0) -> 1
A63: 40 | D63: публичное представление результатов инновационной деятельности на научно-практических конференциях
D64: - на школьном уровне | E64: если да = 1 | H64: да + 0,3б | I64: =IF(G64=1,0.3,0) -> 0
D65: - на муниципальном уровне | E65: если да = 1 | G65: 1 | H65: да + 0,5б | I65: =IF(G65=1,0.5,0) -> 0.5
D66: - на региональном уровне | E66: если да = 1 | H66: да + 1б | I66: =IF(G66=1,1,0) -> 0
D67: - на федеральном и международном уровнях | E67: если да = 1 | H67: да + 2б | I67: =IF(G67=1,2,0) -> 0
A68: Общее рейтинговое значение | I68: =SUM(I13:I41,I43:I46,I48:I51,I53:I62,I64:I67) -> 48.6

Sheet ПР Пар. ДДТ
A1: РЕЙТИНГ | D1: ОЦЕНОЧНЫЙ ЛИСТ РЕЙТИНГА РЕЗУЛЬТАТИВНОСТИ ОБРАЗОВАТЕЛЬНЫХ ПРОГРАММ ЦЕНТРОВ ГРАЖДАНСКОГО ОБРАЗОВАНИЯ 2009-2010
A2: первый | C2: =SUM(I13:I22) -> 8.5
A3: второй | C3: =SUM(I23:I38) -> 14.3
A4: третий | C4: =SUM(I39:I41,I43:I46,I48:I51,I53:I62,I64:I67) -> 4 | D4: МБОУ ДОД ДДТ Парабельского района
A5: общее | C5: =SUM(C2:C4) -> 26.8 | D5: "Новая формация"
A6: 1 | C6: =C5*A6 -> 26.8 | D6: "Точки соприкосновения"
A7: Общее количество слушателей образовательной Программы | H7: 17 | I7: человек
A8: Количество педагогических работников | H8: 1 | I8: человек
A9: Количество консультантов из числа опытных старшеклассников, выпускников Центра | H9: 0 | I9: человек
A10: Количество привлеченных специалистов | H10: 9 | I10: человек
A11: Продолжительность образовательной Программы | H11: 68 | I11: часов
A12: № | B12: Направ-ление | C12: Критерии | E12: Значение критерия | F12: Единица измерения | G12: Значение в единицах измерения | H12: Система оценки | I12: Рейтинговое значение
A13: 1 | B13: Образовательная программа | C13: адаптированность | D13: продолжительность образовательной Программы | E13: количество часов | G13: =H11 -> 68 | H13: 18-24 + 1б, 25-48 + 2б, более 48 + 3б | I13: =IF($G$13>17,1,0)+IF($G$13>24,1,0)+IF($G$13>48,1,0) -> 3
A14: 2 | D14: наличие модулей в образовательной Программе для разновозрастных групп | E14: для обучающихся = 1, для обучающихся и взрослых = 2 | G14: 0 | H14: 1 + 1б, 2 + 2б | I14: =IF(G14=1,1,0)+IF(G14=2,2,0) -> 0
A15: 3 | D15: наличие в образовательной Программе активных и интерактивных форм обучения | E15: менее 50% занятий = 1, более 50% занятий = 2 | G15: 1 | H15: 1 + 1б, 2 + 2б | I15: =IF(G15=1,1,0)+IF(G15=2,2,0) -> 1
A16: 4 | D16: преемственность образовательных Программ из года в год | E16: если существует = 1 | H16: да + 1б | I16: =IF(G16=1,1,0) -> 0
A17: 5 | C17: доступность | D17: наличие модулей, предложенных слушателям на выбор | E17: если 2 модуля = 1, 3 и более модулей = 2 | H17: 1 + 1б, 2 + 2б | I17: =IF(G17=1,1,0)+IF(G17=2,2,0) -> 0
A18: 6 | D18: проведение мониторинга уровня сформированности ключевых компетентностей | E18: если да = 1 | H18: да + 3б | I18: =IF(G18=1,3,0) -> 0
A19: 7 | D19: программа реализуется в сетевом взаимодействии с другими Центрами | E19: если да = 1 | H19: да + 2б | I19: =IF(G19=1,2,0) -> 0
A20: 8 | D20: доля слушателей, привлеченных из других ОУ | E20: количество | G20: 17 | H20: 100% + 3б | I20: =ROUND((G20/H7*3),1) -> 3
A21: 9 | C21: полнота реализации | D21: Программа реализуется в полном объеме | E21: если да = 1 | G21: 1 | H21: да + 1,5б, нет + 1б | I21: =IF(G21=1,1.5,1) -> 1.5
A22: 10 | D22: Программа изменилась при лучших условиях | E22: если да = 1 | H22: да + 0,5б | I22: =IF(G22=1,0.5,0) -> 0
A23: 11 | B23: Организация образовательного процесса | C23: кадровое обеспечение | D23: укомплектованность преподавательского состава в соответствии с Программой | E23: состав полностью укомплектован = 1 | H23: да + 2б, нет + 1б | I23: =IF(G23=1,2,1) -> 1
A24: 12 | D24: подготовка преподавателей по теме Программы | E24: количество | H24: 100% + 2б | I24: =ROUND((G24/(H8+H9+H10)*2),1) -> 0
A25: 13 | D25: привлечение специалистов из профессионального сообщества | E25: количество | G25: =H10 -> 9 | H25: 100% + 2б | I25: =ROUND((G25/(H9+H10+H8)*2),1) -> 1.8
A26: 14 | D26: привлечение консультантов из числа обучающихся, выпускников | E26: количество | G26: =H9 -> 0 | H26: 100% + 2б | I26: =ROUND((G26/(H10+H9+H8)*2),1) -> 0
A27: 15 | C27: материально-техническое обеспечение | D27: наличие достаточной материальной базы для проведения знаний | E27: если да = 1 | G27: 1 | H27: да + 2б, нет + 1б | I27: =IF(G27=1,2,1) -> 2
A28: 16 | D28: использование материальной базы иных организаций | E28: если да = 1 | G28: 1 | H28: да + 2б | I28: =IF(G28=1,2,0) -> 2
A29: 17 | D29: наличие оборудованных рабочих мест для слушателей и преподавателей | E29: если да = 1, только преподавателей = 2 | G29: 1 | H29: 1 + 1б, 2 + 0,5б | I29: =IF(G29=1,1,0)+IF(G29=2,0.5,0) -> 1
A30: 18 | C30: информационно-технологическое обеспечение | D30: наличие страницы Центра на сайте образовательного учреждения | E30: если да = 1 | H30: да + 1б | I30: =IF(G30=1,1,0) -> 0
A31: 19 | D31: регулярность обновления страницы Центра на сайте | E31: более 1 раза в месяц = 1, реже = 2 | H31: 1 + 1б, 2 + 0,5б | I31: =IF(G31=1,1,0)+IF(G31=2,0.5,0) -> 0
A32: 20 | D32: использование доступа в интернет преподавателями и слушателями | E32: если да = 1, только преподавателями = 2 | G32: 1 | H32: 1 + 1б, 2 + 0,5б | I32: =IF(G32=1,1,0)+IF(G32=2,0.5,0) -> 1
A33: 21 | D33: наличие методических материалов Центра на сайте ОУ | E33: если да = 1 | H33: да + 1б | I33: =IF(G33=1,1,0) -> 0
A34: 22 | D34: наличие Совета Центра | E34: если да = 1 | G34: 0 | H34: да + 0,5б | I34: =IF(G34=1,0.5,0) -> 0
A35: 23 | D35: наличие утвержденного положения о деятельности Центра | E35: если да = 1 | G35: 1 | H35: да + 0,5б | I35: =IF(G35=1,0.5,0) -> 0.5
A36: 24 | D36: наличие оформленных договоров с социальными партнерами | E36: если да = 1 | G36: 1 | H36: да + 1б | I36: =IF(G36=1,1,0) -> 1
A37: 25 | C37: учебно-методическое обеспечение | D37: обеспеченность слушателей учебниками, справочной литературой | E37: полное обеспечение = 1, частичное = 2 | G37: 1 | H37: 1 + 2б, 2 + 1б | I37: =IF(G37=1,2,0)+IF(G37=2,1,0) -> 2
A38: 26 | D38: обеспеченность преподавателей методической литературой, программными средствами обучения | E38: полное обеспечение = 1, частичное = 2 | G38: 1 | H38: 1 + 2б, 2 + 1б | I38: =IF(G38=1,2,0)+IF(G38=2,1,0) -> 2
A39: 27 | B39: Результаты образовательной деятельности | C39: уровень и качество общеобразовательной подготовки слушателей | D39: слушатели, применившие полученную информацию на практике | E39: количество | G39: 17 | H39: 100% + 2б | I39: =ROUND(G39/H7*2,1) -> 2
A40: 28 | D40: слушатели, освоившие программу и получившие удостоверение | E40: количество | G40: 0 | H40: 100% + 4б | I40: =ROUND(G40/$H$7*4,1) -> 0
A41: 29 | D41: слушатели, получившие сертификат | E41: количество | G41: 17 | H41: 100% + 1б | I41: =ROUND(G41/H7*1,1) -> 1
A42: 30 | C42: сформированность ключевых компетентностей слушателей | D42: слушатели, имеющие документально подтвержденные достижения по теме Программы:
D43: - на школьном уровне | E43: количество | H43: 100% + 2б | I43: =ROUND(G43/$H$7*2,1) -> 0
D44: - на муниципальном уровне | E44: количество | H44: 100% + 3б | I44: =ROUND(G44/$H$7*3,1) -> 0
D45: - на региональном уровне | E45: количество | H45: 100% + 4б | I45: =ROUND(G45/$H$7*4,1) -> 0
D46: - на федеральном и международном уровнях | E46: количество | H46: 100% + 5б | I46: =ROUND(G46/$H$7*5,1) -> 0
A47: 31 | C47: уровень обобщения и представления опыта деятельности Центра по теме Программы | D47: публичное представление промежуточных результатов реализации образовательной Программы:
D48: - на школьном уровне | E48: количество | H48: за 1 + 0,1б | I48: =G48*0.1 -> 0
D49: - на муниципальном уровне | E49: количество | H49: за 1 + 0,2б | I49: =G49*0.2 -> 0
D50: - на региональном уровне | E50: количество | H50: за 1 + 0,3б | I50: =G50*0.3 -> 0
D51: - на федеральном и международном уровнях | E51: количество | H51: за 1 + 0,5б | I51: =G51*0.4 -> 0
A52: 32 | D52: организация мероприятий, семинаров различного уровня по теме образовательной Программы:
D53: - на муниципальном уровне | E53: количество | G53: 0 | H53: за 1 + 0,3б | I53: =G53*0.3 -> 0
D54: - на региональном уровне | E54: количество | G54: 1 | H54: за 1 + 0,5б | I54: =G54*0.5 -> 0.5
D55: - на федеральном и международном уровнях | E55: количество | H55: за 1 + 0,7б | I55: =G55*0.7 -> 0
A56: 33 | D56: внешкольная экспертная деятельность преподавателей Центра по теме Программы | E56: количество часов | H56: за 100ч + 2б | I56: =G56*0.02 -> 0
A57: 34 | D57: наличие публикаций в методических изданиях по теме Программы | E57: количество страниц А4, интервал 1,5, шрифт 14 | H57: за 24 стр. + 2б | I57: =ROUND(G57*2/24,1) -> 0
A58: 35 | D58: количество публикаций в СМИ муниципального и регионального уровня по теме Программы | E58: количество статей | G58: 5 | H58: за 1 ст. + 0,1б | I58: =G58*0.1 -> 0.5
A59: 36 | C59: уровень организации и степень достижения целей и задач инновационной деятельности | D59: наличие рецензии на образовательную Программу | E59: если да = 1 | H59: да + 2б | I59: =IF(G59=1,2,0) -> 0
A60: 37 | D60: Программа Центра является частью программы развития ОУ | E60: если да = 1 | H60: да + 1б | I60: =IF(G60=1,1,0) -> 0
A61: 38 | D61: Программа Центра является частью муниципальной программы развития | E61: если да = 1 | H61: да + 2б | I61: =IF(G61=1,2,0) -> 0
A62: 39 | D62: наличие общественной экспертизы результатов реализации образовательной Программы | E62: если да = 1 | H62: да + 1б | I62: =IF(G62=1,1,0) -> 0
A63: 40 | D63: публичное представление результатов инновационной деятельности на научно-практических конференциях
D64: - на школьном уровне | E64: если да = 1 | H64: да + 0,3б | I64: =IF(G64=1,0.3,0) -> 0
D65: - на муниципальном уровне | E65: если да = 1 | H65: да + 0,5б | I65: =IF(G65=1,0.5,0) -> 0
D66: - на региональном уровне | E66: если да = 1 | H66: да + 1б | I66: =IF(G66=1,1,0) -> 0
D67: - на федеральном и международном уровнях | E67: если да = 1 | H67: да + 2б | I67: =IF(G67=1,2,0) -> 0
A68: Общее рейтинговое значение | I68: =SUM(I13:I41,I43:I46,I48:I51,I53:I62,I64:I67) -> 26.8

Sheet ПР Куян
A1: РЕЙТИНГ | D1: ОЦЕНОЧНЫЙ ЛИСТ РЕЙТИНГА РЕЗУЛЬТАТИВНОСТИ ОБРАЗОВАТЕЛЬНЫХ ПРОГРАММ ЦЕНТРОВ ГРАЖДАНСКОГО ОБРАЗОВАНИЯ 2012-2013
A2: первый | C2: =SUM(I13:I22) -> 10.2
A3: второй | C3: =SUM(I23:I38) -> 16.5
A4: третий | C4: =SUM(I39:I41,I43:I46,I48:I51,I53:I62,I64:I67) -> 25.5 | D4: МБОУ Куяновская СОШ
A5: общее | C5: =SUM(C2:C4) -> 52.2 | D5: Центр гражданского образования "Собеседник"
A6: 1.17 | C6: =C5*A6 -> 61.074 | D6: Образовательная программа "Экополюс"
A7: Общее количество слушателей образовательной Программы | H7: 18 | I7: человек
A8: Количество педагогических работников | H8: 6 | I8: человек
A9: Количество консультантов из числа опытных старшеклассников, выпускников Центра | H9: 2 | I9: человек
A10: Количество привлеченных специалистов | H10: 2 | I10: человек
A11: Продолжительность образовательной Программы | H11: 34 | I11: часов
A12: № | B12: Направ-ление | C12: Критерии | E12: Значение критерия | F12: Единица измерения | G12: Значение в единицах измерения | H12: Система оценки | I12: Рейтинговое значение
A13: 1 | B13: Образовательная программа | C13: адаптированность | D13: продолжительность образовательной Программы | E13: количество часов | G13: =H11 -> 34 | H13: 18-24 + 1б, 25-48 + 2б, более 48 + 3б | I13: =IF($G$13>17,1,0)+IF($G$13>24,1,0)+IF($G$13>48,1,0) -> 2
A14: 2 | D14: наличие модулей в образовательной Программе для разновозрастных групп | E14: для обучающихся = 1, для обучающихся и взрослых = 2 | G14: 1 | H14: 1 + 1б, 2 + 2б | I14: =IF(G14=1,1,0)+IF(G14=2,2,0) -> 1
A15: 3 | D15: наличие в образовательной Программе активных и интерактивных форм обучения | E15: менее 50% занятий = 1, более 50% занятий = 2 | G15: 2 | H15: 1 + 1б, 2 + 2б | I15: =IF(G15=1,1,0)+IF(G15=2,2,0) -> 2
A16: 4 | D16: преемственность образовательных Программ из года в год | E16: если существует = 1 | G16: 0 | H16: да + 1б | I16: =IF(G16=1,1,0) -> 0
A17: 5 | C17: доступность | D17: наличие модулей, предложенных слушателям на выбор | E17: если 2 модуля = 1, 3 и более модулей = 2 | G17: 0 | H17: 1 + 1б, 2 + 2б | I17: =IF(G17=1,1,0)+IF(G17=2,2,0) -> 0
A18: 6 | D18: проведение мониторинга уровня сформированности ключевых компетентностей | E18: если да = 1 | G18: 1 | H18: да + 3б | I18: =IF(G18=1,3,0) -> 3
A19: 7 | D19: программа реализуется в сетевом взаимодействии с другими Центрами | E19: если да = 1 | G19: 0 | H19: да + 2б | I19: =IF(G19=1,2,0) -> 0
A20: 8 | D20: доля слушателей, привлеченных из других ОУ | E20: количество | G20: 1 | H20: 100% + 3б | I20: =ROUND((G20/H7*3),1) -> 0.2
A21: 9 | C21: полнота реализации | D21: Программа реализуется в полном объеме | E21: если да = 1 | G21: 1 | H21: да + 1,5б, нет + 1б | I21: =IF(G21=1,1.5,1) -> 1.5
A22: 10 | D22: Программа изменилась при лучших условиях | E22: если да = 1 | G22: 1 | H22: да + 0,5б | I22: =IF(G22=1,0.5,0) -> 0.5
A23: 11 | B23: Организация образовательного процесса | C23: кадровое обеспечение | D23: укомплектованность преподавательского состава в соответствии с Программой | E23: состав полностью укомплектован = 1 | G23: 1 | H23: да + 2б, нет + 1б | I23: =IF(G23=1,2,1) -> 2
A24: 12 | D24: подготовка преподавателей по теме Программы | E24: количество | G24: 6 | H24: 100% + 2б | I24: =ROUND((G24/(H8+H9+H10)*2),1) -> 1.2
A25: 13 | D25: привлечение специалистов из профессионального сообщества | E25: количество | G25: =H10 -> 2 | H25: 100% + 2б | I25: =ROUND((G25/(H9+H10+H8)*2),1) -> 0.4
A26: 14 | D26: привлечение консультантов из числа обучающихся, выпускников | E26: количество | G26: =H9 -> 2 | H26: 100% + 2б | I26: =ROUND((G26/(H10+H9+H8)*2),1) -> 0.4
A27: 15 | C27: материально-техническое обеспечение | D27: наличие достаточной материальной базы для проведения знаний | E27: если да = 1 | G27: 1 | H27: да + 2б, нет + 1б | I27: =IF(G27=1,2,1) -> 2
A28: 16 | D28: использование материальной базы иных организаций | E28: если да = 1 | G28: 1 | H28: да + 2б | I28: =IF(G28=1,2,0) -> 2
A29: 17 | D29: наличие оборудованных рабочих мест для слушателей и преподавателей | E29: если да = 1, только преподавателей = 2 | G29: 1 | H29: 1 + 1б, 2 + 0,5б | I29: =IF(G29=1,1,0)+IF(G29=2,0.5,0) -> 1
A30: 18 | C30: информационно-технологическое обеспечение | D30: наличие страницы Центра на сайте образовательного учреждения | E30: если да = 1 | G30: 1 | H30: да + 1б | I30: =IF(G30=1,1,0) -> 1
A31: 19 | D31: регулярность обновления страницы Центра на сайте | E31: более 1 раза в месяц = 1, реже = 2 | G31: 2 | H31: 1 + 1б, 2 + 0,5б | I31: =IF(G31=1,1,0)+IF(G31=2,0.5,0) -> 0.5
A32: 20 | D32: использование доступа в интернет преподавателями и слушателями | E32: если да = 1, только преподавателями = 2 | G32: 1 | H32: 1 + 1б, 2 + 0,5б | I32: =IF(G32=1,1,0)+IF(G32=2,0.5,0) -> 1
A33: 21 | D33: наличие методических материалов Центра на сайте ОУ | E33: если да = 1 | G33: 0 | H33: да + 1б | I33: =IF(G33=1,1,0) -> 0
A34: 22 | D34: наличие Совета Центра | E34: если да = 1 | G34: 1 | H34: да + 0,5б | I34: =IF(G34=1,0.5,0) -> 0.5
A35: 23 | D35: наличие утвержденного положения о деятельности Центра | E35: если да = 1 | G35: 1 | H35: да + 0,5б | I35: =IF(G35=1,0.5,0) -> 0.5
A36: 24 | D36: наличие оформленных договоров с социальными партнерами | E36: если да = 1 | G36: 1 | H36: да + 1б | I36: =IF(G36=1,1,0) -> 1
A37: 25 | C37: учебно-методическое обеспечение | D37: обеспеченность слушателей учебниками, справочной литературой | E37: полное обеспечение = 1, частичное = 2 | G37: 2 | H37: 1 + 2б, 2 + 1б | I37: =IF(G37=1,2,0)+IF(G37=2,1,0) -> 1
A38: 26 | D38: обеспеченность преподавателей методической литературой, программными средствами обучения | E38: полное обеспечение = 1, частичное = 2 | G38: 1 | H38: 1 + 2б, 2 + 1б | I38: =IF(G38=1,2,0)+IF(G38=2,1,0) -> 2
A39: 27 | B39: Результаты образовательной деятельности | C39: уровень и качество общеобразовательной подготовки слушателей | D39: слушатели, применившие полученную информацию на практике | E39: количество | G39: 18 | H39: 100% + 2б | I39: =ROUND(G39/H7*2,1) -> 2
A40: 28 | D40: слушатели, освоившие программу и получившие удостоверение | E40: количество | G40: 18 | H40: 100% + 4б | I40: =ROUND(G40/$H$7*4,1) -> 4
A41: 29 | D41: слушатели, получившие сертификат | E41: количество | G41: 0 | H41: 100% + 1б | I41: =ROUND(G41/H7*1,1) -> 0
A42: 30 | C42: сформированность ключевых компетентностей слушателей | D42: слушатели, имеющие документально подтвержденные достижения по теме Программы:
D43: - на школьном уровне | E43: количество | G43: 18 | H43: 100% + 2б | I43: =ROUND(G43/$H$7*2,1) -> 2
D44: - на муниципальном уровне | E44: количество | G44: 18 | H44: 100% + 3б | I44: =ROUND(G44/$H$7*3,1) -> 3
D45: - на региональном уровне | E45: количество | G45: 10 | H45: 100% + 4б | I45: =ROUND(G45/$H$7*4,1) -> 2.2
D46: - на федеральном и международном уровнях | E46: количество | G46: 0 | H46: 100% + 5б | I46: =ROUND(G46/$H$7*5,1) -> 0
A47: 31 | C47: уровень обобщения и представления опыта деятельности Центра по теме Программы | D47: публичное представление промежуточных результатов реализации образовательной Программы:
D48: - на школьном уровне | E48: количество | G48: 2 | H48: за 1 + 0,1б | I48: =G48*0.1 -> 0.2
D49: - на муниципальном уровне | E49: количество | G49: 2 | H49: за 1 + 0,2б | I49: =G49*0.2 -> 0.4
D50: - на региональном уровне | E50: количество | G50: 4 | H50: за 1 + 0,3б | I50: =G50*0.3 -> 1.2
D51: - на федеральном и международном уровнях | E51: количество | H51: за 1 + 0,5б | I51: =G51*0.4 -> 0
A52: 32 | D52: организация мероприятий, семинаров различного уровня по теме образовательной Программы:
D53: - на муниципальном уровне | E53: количество | G53: 1 | H53: за 1 + 0,3б | I53: =G53*0.3 -> 0.3
D54: - на региональном уровне | E54: количество | G54: 1 | H54: за 1 + 0,5б | I54: =G54*0.5 -> 0.5
D55: - на федеральном и международном уровнях | E55: количество | G55: 0 | H55: за 1 + 0,7б | I55: =G55*0.7 -> 0
A56: 33 | D56: внешкольная экспертная деятельность преподавателей Центра по теме Программы | E56: количество часов | G56: 0 | H56: за 100ч + 2б | I56: =G56*0.02 -> 0
A57: 34 | D57: наличие публикаций в методических изданиях по теме Программы | E57: количество страниц А4, интервал 1,5, шрифт 14 | G57: 7 | H57: за 24 стр. + 2б | I57: =ROUND(G57*2/24,1) -> 0.6
A58: 35 | D58: количество публикаций в СМИ муниципального и регионального уровня по теме Программы | E58: количество статей | G58: 1 | H58: за 1 ст. + 0,1б | I58: =G58*0.1 -> 0.1
A59: 36 | C59: уровень организации и степень достижения целей и задач инновационной деятельности | D59: наличие рецензии на образовательную Программу | E59: если да = 1 | G59: 1 | H59: да + 2б | I59: =IF(G59=1,2,0) -> 2
A60: 37 | D60: Программа Центра является частью программы развития ОУ | E60: если да = 1 | G60: 1 | H60: да + 1б | I60: =IF(G60=1,1,0) -> 1
A61: 38 | D61: Программа Центра является частью муниципальной программы развития | E61: если да = 1 | G61: 1 | H61: да + 2б | I61: =IF(G61=1,2,0) -> 2
A62: 39 | D62: наличие общественной экспертизы результатов реализации образовательной Программы | E62: если да = 1 | G62: 1 | H62: да + 1б | I62: =IF(G62=1,1,0) -> 1
A63: 40 | D63: публичное представление результатов инновационной деятельности на научно-практических конференциях
D64: - на школьном уровне | E64: если да = 1 | G64: 0 | H64: да + 0,3б | I64: =IF(G64=1,0.3,0) -> 0
D65: - на муниципальном уровне | E65: если да = 1 | G65: 0 | H65: да + 0,5б | I65: =IF(G65=1,0.5,0) -> 0
D66: - на региональном уровне | E66: если да = 1 | G66: 1 | H66: да + 1б | I66: =IF(G66=1,1,0) -> 1
D67: - на федеральном и международном уровнях | E67: если да = 1 | G67: 1 | H67: да + 2б | I67: =IF(G67=1,2,0) -> 2
A68: Общее рейтинговое значение | I68: =SUM(I13:I41,I43:I46,I48:I51,I53:I62,I64:I67) -> 52.2

Sheet ПР Пер
A1: РЕЙТИНГ | D1: ОЦЕНОЧНЫЙ ЛИСТ РЕЙТИНГА РЕЗУЛЬТАТИВНОСТИ ОБРАЗОВАТЕЛЬНЫХ ПРОГРАММ ЦЕНТРОВ ГРАЖДАНСКОГО ОБРАЗОВАНИЯ 2012-2013
A2: первый | C2: =SUM(I13:I22) -> 9
A3: второй | C3: =SUM(I23:I38) -> 15.5
A4: третий | C4: =SUM(I39:I41,I43:I46,I48:I51,I53:I62,I64:I67) -> 17.34 | D4: МБОУ Первомайская СОШ
A5: общее | C5: =SUM(C2:C4) -> 41.84 | D5: Центр гражданского образования "Шаги"
A6: 1.04 | C6: =C5*A6 -> 43.5136 | D6: Образовательная программа : «Социальное проектирование» (социально-образовательный проект «Гражданин»)
A7: Общее количество слушателей образовательной Программы | H7: 20 | I7: человек
A8: Количество педагогических работников | H8: 5 | I8: человек
A9: Количество консультантов из числа опытных старшеклассников, выпускников Центра | H9: 4 | I9: человек
A10: Количество привлеченных специалистов | H10: 3 | I10: человек
A11: Продолжительность образовательной Программы | H11: 22 | I11: часов
A12: № | B12: Направ-ление | C12: Критерии | E12: Значение критерия | F12: Единица измерения | G12: Значение в единицах измерения | H12: Система оценки | I12: Рейтинговое значение
A13: 1 | B13: Образовательная программа | C13: адаптированность | D13: продолжительность образовательной Программы | E13: количество часов | G13: =H11 -> 22 | H13: 18-24 + 1б, 25-48 + 2б, более 48 + 3б | I13: =IF($G$13>17,1,0)+IF($G$13>24,1,0)+IF($G$13>48,1,0) -> 1
